Department Family,Entity,Date Paid,Expense Type,Expenses Area,Supplier Name,Transaction Reference,Total,VAT Registration Number
Department Family,Entity,Date Paid,Expense Type,Expenses Area,Supplier Name,Transaction Reference,Total,VAT Registration Number
Department of Health,Imperial College Healthcare NHS Trust,05/04/2016,Agency Nursing: Qualified,Div Of Med & Integrated Care,Reed,3340122,"71,208.74",Optional requirement only
Department of Health,Imperial College Healthcare NHS Trust,05/04/2016,Agency Nursing: Qualified,"Div Of Surg, Cardiov & Cancer",Reed,3340122,"72,139.45",Optional requirement only
Department of Health,Imperial College Healthcare NHS Trust,05/04/2016,Agency Nursing: Qualified,Div Of Women & Clin Support,Reed,3340122,"53,658.32",Optional requirement only
Department of Health,Imperial College Healthcare NHS Trust,05/04/2016,Med & Surg Equip Repair,Div Of Women & Clin Support,Carestream Health Uk Ltd,3340287,"34,800.00",Optional requirement only
Department of Health,Imperial College Healthcare NHS Trust,05/04/2016,Non-Nhs Pay Recharge In: Med,Div Of Med & Integrated Care,London Central & West Unscheduled Care Collab,3339879,"36,876.30",Optional requirement only
Department of Health,Imperial College Healthcare NHS Trust,05/04/2016,Non-Nhs Pay Recharge In: Med,Div Of Med & Integrated Care,London Central & West Unscheduled Care Collab,3339880,"40,872.65",Optional requirement only
Department of Health,Imperial College Healthcare NHS Trust,05/04/2016,Non-Nhs Pay Recharge In: Med,Div Of Med & Integrated Care,London Central & West Unscheduled Care Collab,3339881,"45,277.31",Optional requirement only
Department of Health,Imperial College Healthcare NHS Trust,05/04/2016,Non-Nhs Pay Recharge In: Med,Div Of Med & Integrated Care,London Central & West Unscheduled Care Collab,3339882,"29,702.83",Optional requirement only
Department of Health,Imperial College Healthcare NHS Trust,05/04/2016,Non-Nhs Pay Recharge In: Med,Div Of Med & Integrated Care,London Central & West Unscheduled Care Collab,3339883,"36,680.22",Optional requirement only
Department of Health,Imperial College Healthcare NHS Trust,05/04/2016,Other Research Exp - Non-Pay,Rd Medical Directorate,Dnu West Middlesex University Hospita Nhstrus,3340277,"85,220.00",Optional requirement only
Department of Health,Imperial College Healthcare NHS Trust,05/04/2016,Other Research Exp - Pay,Rdwomen And Children Division,Imperial College London,3340002,"246,214.94",Optional requirement only
Department of Health,Imperial College Healthcare NHS Trust,07/04/2016,Childcare Voucher (Kids Unltd),Childcare Vouchers,Dnu Computershare Voucher Services,3340571,"75,753.99",Optional requirement only
Department of Health,Imperial College Healthcare NHS Trust,07/04/2016,Consultancy Fees,Finance Directorate,Salford Royal Nhs Foundation Trust,3340410,"34,215.00",Optional requirement only
Department of Health,Imperial College Healthcare NHS Trust,07/04/2016,Isotopes,Div Of Women & Clin Support,Dnu Mallinckrodt Uk Commercial Ltd,3342100,"51,304.80",Optional requirement only
Department of Health,Imperial College Healthcare NHS Trust,07/04/2016,Items Pending Investigation,Capital Summary,Feilden Clegg Bardley Studios,3340577,"96,000.00",Optional requirement only
Department of Health,Imperial College Healthcare NHS Trust,07/04/2016,Items Pending Investigation,Capital Summary,Feilden Clegg Bardley Studios,3340579,"57,028.80",Optional requirement only
Department of Health,Imperial College Healthcare NHS Trust,07/04/2016,Items Pending Investigation,Capital Summary,Feilden Clegg Bardley Studios,3340581,"60,000.00",Optional requirement only
Department of Health,Imperial College Healthcare NHS Trust,07/04/2016,Other Research Exp - Non-Pay,Rd Medical Directorate,London North West Healthcare Nhs Trust,3341563,"362,794.00",Optional requirement only
Department of Health,Imperial College Healthcare NHS Trust,07/04/2016,Other Research Exp - Pay,Rd Surgery & Cancer Division,Imperial College London,3342740,"132,450.68",Optional requirement only
Department of Health,Imperial College Healthcare NHS Trust,07/04/2016,Other Research Exp - Pay,Rd Surgery & Cancer Division,Imperial College London,3342755,"58,540.44",Optional requirement only
Department of Health,Imperial College Healthcare NHS Trust,12/04/2016,Agency Admin & Clerical,Information & Comms Technology,Brook Street Uk Ltd,3343405,"84,887.90",Optional requirement only
Department of Health,Imperial College Healthcare NHS Trust,12/04/2016,Agency Scient & Prof Qualified,"Div Of Surg, Cardiov & Cancer",Reed,3345025,"33,444.50",Optional requirement only
Department of Health,Imperial College Healthcare NHS Trust,12/04/2016,Agency Scient & Prof Qualified,Div Of Women & Clin Support,Reed,3345025,"90,360.17",Optional requirement only
Department of Health,Imperial College Healthcare NHS Trust,12/04/2016,Agency Scient & Prof: Unqu'D,Div Of Women & Clin Support,Reed,3345025,"36,509.06",Optional requirement only
Department of Health,Imperial College Healthcare NHS Trust,12/04/2016,Buildings-Additions-Purchased,Capital Summary,Eta  Projects Ltd,3345028,"47,754.00",Optional requirement only
Department of Health,Imperial College Healthcare NHS Trust,12/04/2016,Buildings-Additions-Purchased,Capital Summary,Nightglade Limited,3343989,"111,102.12",Optional requirement only
Department of Health,Imperial College Healthcare NHS Trust,12/04/2016,Buildings-Additions-Purchased,Capital Summary,Playfords Limited,3344189,"390,055.56",Optional requirement only
Department of Health,Imperial College Healthcare NHS Trust,12/04/2016,Buildings-Additions-Purchased,Capital Summary,Playfords Limited,3344958,"261,229.86",Optional requirement only
Department of Health,Imperial College Healthcare NHS Trust,12/04/2016,Clinical Managed Service Contr,"Div Of Surg, Cardiov & Cancer",Medtronic Ltd,3344312,"1,023,128.23",Optional requirement only
Department of Health,Imperial College Healthcare NHS Trust,12/04/2016,Clinical Managed Service Contr,"Div Of Surg, Cardiov & Cancer",Medtronic Ltd,3344313,"36,545.48",Optional requirement only
Department of Health,Imperial College Healthcare NHS Trust,12/04/2016,Clinical Managed Service Contr,"Div Of Surg, Cardiov & Cancer",Medtronic Ltd,3344314,"31,727.69",Optional requirement only
Department of Health,Imperial College Healthcare NHS Trust,12/04/2016,Computer Software/License,Information & Comms Technology,Hornet It Limited,3345069,"32,102.10",Optional requirement only
Department of Health,Imperial College Healthcare NHS Trust,12/04/2016,Jac - Stock,Stock,Roche Products Ltd,3344937,"80,679.06",Optional requirement only
Department of Health,Imperial College Healthcare NHS Trust,12/04/2016,Jac - Stock,Stock,Roche Products Ltd,3344939,"81,948.78",Optional requirement only
Department of Health,Imperial College Healthcare NHS Trust,14/04/2016,Buildings-Additions-Purchased,Capital Summary,Evac Chair International Ltd,3346522,"41,841.00",Optional requirement only
Department of Health,Imperial College Healthcare NHS Trust,14/04/2016,Buildings-Additions-Purchased,Capital Summary,Philips Healthcare,3341586,"67,316.69",Optional requirement only
Department of Health,Imperial College Healthcare NHS Trust,14/04/2016,Contr Refuse & Clin Waste,Nursing Directorate,Grundon Waste Management Ltd,3346880,"31,495.12",Optional requirement only
Department of Health,Imperial College Healthcare NHS Trust,14/04/2016,Drugs Nhs,Div Of Med & Integrated Care,Central & North West London,3340273,"57,321.23",Optional requirement only
Department of Health,Imperial College Healthcare NHS Trust,14/04/2016,Jac - Stock,Stock,Aah Pharmaceuticals Limited,3340706,"30,775.26",Optional requirement only
Department of Health,Imperial College Healthcare NHS Trust,14/04/2016,Jac - Stock,Stock,Bayer Plc,3345442,"98,587.20",Optional requirement only
Department of Health,Imperial College Healthcare NHS Trust,14/04/2016,Jac - Stock,Stock,Qualasept Ltd,3346281,"196,040.78",Optional requirement only
Department of Health,Imperial College Healthcare NHS Trust,14/04/2016,Med & Surg Equip General,Pathology,Leica Microsystems (Uk) Ltd,3346798,"74,446.09",Optional requirement only
Department of Health,Imperial College Healthcare NHS Trust,14/04/2016,Other Research Exp - Non-Pay,Rd Medical Directorate,Dnu West Middlesex University Hospita Nhstrus,3340278,"85,220.00",Optional requirement only
Department of Health,Imperial College Healthcare NHS Trust,14/04/2016,Other Research Exp - Pay,Rd Surgery & Cancer Division,Imperial College London,3345066,"58,962.04",Optional requirement only
Department of Health,Imperial College Healthcare NHS Trust,14/04/2016,P & M-Additions-Purchased,Capital Summary,Stryker Uk Ltd,3340060,"63,423.96",Optional requirement only
Department of Health,Imperial College Healthcare NHS Trust,14/04/2016,Water,Nursing Directorate,Thames Water Utilities Limited,3344011,"26,910.28",Optional requirement only
Department of Health,Imperial College Healthcare NHS Trust,15/04/2016,Contr Refuse & Clin Waste,Nursing Directorate,Grundon Waste Management Ltd,3348101,"75,940.81",Optional requirement only
Department of Health,Imperial College Healthcare NHS Trust,18/04/2016,Rates,Nursing Directorate,City Of Westminster,3348810,"119,944.00",Optional requirement only
Department of Health,Imperial College Healthcare NHS Trust,18/04/2016,Rates,Nursing Directorate,London Borough Hammersmith & Fulham,3348808,"158,719.00",Optional requirement only
Department of Health,Imperial College Healthcare NHS Trust,18/04/2016,Rates,Nursing Directorate,London Borough Hammersmith & Fulham,3348809,"139,073.00",Optional requirement only
Department of Health,Imperial College Healthcare NHS Trust,19/04/2016,Buildings-Additions-Purchased,Capital Summary,Philips Healthcare,3349018,"61,819.14",Optional requirement only
Department of Health,Imperial College Healthcare NHS Trust,19/04/2016,Clinical Managed Service Contr,Pathology,Genmed.Me Ltd,3347604,"140,534.33",Optional requirement only
Department of Health,Imperial College Healthcare NHS Trust,19/04/2016,Decontamination Services,Nursing Directorate,Berendsen Uk,3347675,"320,891.38",Optional requirement only
Department of Health,Imperial College Healthcare NHS Trust,19/04/2016,Decontamination Services,Nursing Directorate,Berendsen Uk,3348988,"320,891.38",Optional requirement only
Department of Health,Imperial College Healthcare NHS Trust,19/04/2016,Drugs Nhs,Div Of Med & Integrated Care,London North West Healthcare Nhs Trust,3348461,"42,254.09",Optional requirement only
Department of Health,Imperial College Healthcare NHS Trust,19/04/2016,Ext Contr Laundry,Nursing Directorate,Synergy Health Managed Services Ltd,3348811,"58,530.17",Optional requirement only
Department of Health,Imperial College Healthcare NHS Trust,19/04/2016,It Eqpt-Additions,Capital Summary,Hornet It Limited,3347657,"32,722.80",Optional requirement only
Department of Health,Imperial College Healthcare NHS Trust,19/04/2016,Jac - Stock,Stock,Genzyme Therapeutics Ltd,3345307,"92,994.00",Optional requirement only
Department of Health,Imperial College Healthcare NHS Trust,19/04/2016,Jac - Stock,Stock,Genzyme Therapeutics Ltd,3345308,"67,632.00",Optional requirement only
Department of Health,Imperial College Healthcare NHS Trust,19/04/2016,Jac - Stock,Stock,Roche Products Ltd,3341784,"73,482.44",Optional requirement only
Department of Health,Imperial College Healthcare NHS Trust,19/04/2016,Nhs Pay Recharge In: Med,Information & Comms Technology,Hillingdon Hospital Nhs Trust,3344257,"43,997.50",Optional requirement only
Department of Health,Imperial College Healthcare NHS Trust,19/04/2016,Non-Nhs Pay Recharge In: Med,Div Of Med & Integrated Care,London Central & West Unscheduled Care Collab,3348118,"43,928.56",Optional requirement only
Department of Health,Imperial College Healthcare NHS Trust,19/04/2016,Other Research Exp - Non-Pay,Rd Medical Directorate,Chelsea And  Westminster Hospital Nhs,3340285,"242,941.00",Optional requirement only
Department of Health,Imperial College Healthcare NHS Trust,19/04/2016,Other Research Exp - Non-Pay,Rd Medical Directorate,Hillingdon Hospital Nhs Trust,3347685,"97,827.00",Optional requirement only
Department of Health,Imperial College Healthcare NHS Trust,19/04/2016,Other Research Exp - Non-Pay,Rd Medicine Division,Imperial College London,3346759,"67,626.46",Optional requirement only
Department of Health,Imperial College Healthcare NHS Trust,19/04/2016,Other Research Exp - Pay,Rd Medicine Division,Imperial College London,3343938,"33,570.69",Optional requirement only
Department of Health,Imperial College Healthcare NHS Trust,19/04/2016,Other Research Exp - Pay,Rd Medicine Division,Imperial College London,3346762,"68,139.84",Optional requirement only
Department of Health,Imperial College Healthcare NHS Trust,19/04/2016,Other Research Exp - Pay,Rd Medicine Division,Imperial College London,3347689,"32,450.80",Optional requirement only
Department of Health,Imperial College Healthcare NHS Trust,19/04/2016,Other Research Exp - Pay,Rd Surgery & Cancer Division,Imperial College London,3344627,"28,361.81",Optional requirement only
Department of Health,Imperial College Healthcare NHS Trust,19/04/2016,Other Research Exp - Pay,Rdwomen And Children Division,Imperial College London,3344628,"25,993.84",Optional requirement only
Department of Health,Imperial College Healthcare NHS Trust,20/04/2016,Cnst Contributions,Other Hq Departments,Nhs Litigation Authority,3349096,"2,757,489.00",Optional requirement only
Department of Health,Imperial College Healthcare NHS Trust,20/04/2016,Income Tax Paye,Ichnt Balance Sheet,Hmrc Government Employers Account,3348844,"11,719,332.78",Optional requirement only
Department of Health,Imperial College Healthcare NHS Trust,20/04/2016,Insurance Costs,Nursing Directorate,Nhs Litigation Authority,3349097,"45,941.00",Optional requirement only
Department of Health,Imperial College Healthcare NHS Trust,20/04/2016,Supplies Issues Recharges,Stock,Nhs Supply Chain,3349006,"94,480.80",Optional requirement only
Department of Health,Imperial College Healthcare NHS Trust,20/04/2016,Supplies Issues Recharges,Stock,Nhs Supply Chain,3350338,"103,216.20",Optional requirement only
Department of Health,Imperial College Healthcare NHS Trust,20/04/2016,Supplies Issues Recharges,Stock,Nhs Supply Chain,3350339,"122,459.07",Optional requirement only
Department of Health,Imperial College Healthcare NHS Trust,21/04/2016,Buildings-Additions-Purchased,Capital Summary,Alarm Communication Limited,3340217,"160,596.25",Optional requirement only
Department of Health,Imperial College Healthcare NHS Trust,21/04/2016,Buildings-Add(Prof Fee)-Purch,Capital Summary,Savills (Uk) Limited,3345244,"58,545.60",Optional requirement only
Department of Health,Imperial College Healthcare NHS Trust,21/04/2016,Buildings-Add(Prof Fee)-Purch,Capital Summary,Savills (Uk) Limited,3345538,"61,905.60",Optional requirement only
Department of Health,Imperial College Healthcare NHS Trust,21/04/2016,Computer Software/License,Information & Comms Technology,Cerner Uk Ltd,3350690,"123,999.60",Optional requirement only
Department of Health,Imperial College Healthcare NHS Trust,21/04/2016,Computer Software/License,Information & Comms Technology,Cerner Uk Ltd,3350691,"123,999.60",Optional requirement only
Department of Health,Imperial College Healthcare NHS Trust,21/04/2016,Computer Software/License,Information & Comms Technology,Cerner Uk Ltd,3350692,"149,520.00",Optional requirement only
Department of Health,Imperial College Healthcare NHS Trust,21/04/2016,Computer Software/License,Information & Comms Technology,Hornet It Limited,3350112,"51,801.30",Optional requirement only
Department of Health,Imperial College Healthcare NHS Trust,21/04/2016,Computer Software/License,Information & Comms Technology,Hornet It Limited,3350114,"47,611.20",Optional requirement only
Department of Health,Imperial College Healthcare NHS Trust,21/04/2016,Consultancy Fees,Nhs Elect,Jeremy Pease Associates Ltd,3351116,"84,962.94",Optional requirement only
Department of Health,Imperial College Healthcare NHS Trust,21/04/2016,Ext Contract Portering,Nursing Directorate,Sodexo Limited,3350167,"450,366.06",Optional requirement only
Department of Health,Imperial College Healthcare NHS Trust,21/04/2016,Ext Contr Catering,Nursing Directorate,Sodexo Limited,3350167,"616,582.46",Optional requirement only
Department of Health,Imperial College Healthcare NHS Trust,21/04/2016,Ext Contr Domestics,Nursing Directorate,Sodexo Limited,3350167,"1,199,406.14",Optional requirement only
Department of Health,Imperial College Healthcare NHS Trust,21/04/2016,Ext Contr Oth Hotel Srv,Nursing Directorate,Sodexo Limited,3350167,"89,174.20",Optional requirement only
Department of Health,Imperial College Healthcare NHS Trust,21/04/2016,Ext Contr Oth Hotel Srv,Private Patients Directorate,Sodexo Limited,3350046,"165,075.94",Optional requirement only
Department of Health,Imperial College Healthcare NHS Trust,21/04/2016,Furniture & Fittings,Information & Comms Technology,Cerner Uk Ltd,3350690,"169,052.39",Optional requirement only
Department of Health,Imperial College Healthcare NHS Trust,21/04/2016,Furniture & Fittings,Information & Comms Technology,Cerner Uk Ltd,3350691,"169,052.39",Optional requirement only
Department of Health,Imperial College Healthcare NHS Trust,21/04/2016,It Eqpt-Additions,Capital Summary,Insight Direct (Uk) Ltd,3347694,"37,627.20",Optional requirement only
Department of Health,Imperial College Healthcare NHS Trust,21/04/2016,Jac - Stock,Stock,Baxalta Uk Limited,3341945,"61,714.00",Optional requirement only
Department of Health,Imperial College Healthcare NHS Trust,21/04/2016,Jac - Stock,Stock,Csl Behring Uk Ltd,3341934,"46,732.50",Optional requirement only
Department of Health,Imperial College Healthcare NHS Trust,21/04/2016,Jac - Stock,Stock,Janssen-Cilag Ltd,3341891,"32,934.82",Optional requirement only
Department of Health,Imperial College Healthcare NHS Trust,21/04/2016,Med & Surg Equip Repair,Nursing Directorate,Ge Medical Systems Limited,3350687,"707,732.40",Optional requirement only
Department of Health,Imperial College Healthcare NHS Trust,21/04/2016,Nhs Pay Recharge In: Med,Div Of Women & Clin Support,Chelsea And  Westminster Hospital Nhs,3350826,"36,546.00",Optional requirement only
Department of Health,Imperial College Healthcare NHS Trust,21/04/2016,Nhs Pay Recharge In: Med,Div Of Women & Clin Support,Great Ormond Street Hospital For Children,3350831,"26,946.56",Optional requirement only
Department of Health,Imperial College Healthcare NHS Trust,21/04/2016,Nhs Pay Recharge In: Med,Div Of Women & Clin Support,Great Ormond Street Hospital For Children,3350833,"25,793.44",Optional requirement only
Department of Health,Imperial College Healthcare NHS Trust,21/04/2016,Nhs Pay Recharge In: Other,Div Of Women & Clin Support,Central & North West London,3351110,"26,799.00",Optional requirement only
Department of Health,Imperial College Healthcare NHS Trust,21/04/2016,Organ Donor Expenses,Div Of Women & Clin Support,The Anthony Nolan Trust,3350910,"44,510.00",Optional requirement only
Department of Health,Imperial College Healthcare NHS Trust,21/04/2016,Other Research Exp - Non-Pay,Rd Surgery & Cancer Division,Imperial College London,3350857,"80,000.00",Optional requirement only
Department of Health,Imperial College Healthcare NHS Trust,21/04/2016,Other Research Exp - Non-Pay,Rd Surgery & Cancer Division,Imperial College London,3350860,"48,780.00",Optional requirement only
Department of Health,Imperial College Healthcare NHS Trust,21/04/2016,Other Research Exp - Non-Pay,Rdwomen And Children Division,Imperial College London,3350840,"113,072.37",Optional requirement only
Department of Health,Imperial College Healthcare NHS Trust,21/04/2016,Other Research Exp - Pay,Rd Medicine Division,Imperial College London,3346095,"43,856.89",Optional requirement only
Department of Health,Imperial College Healthcare NHS Trust,21/04/2016,Other Research Exp - Pay,Rd Medicine Division,Imperial College London,3350851,"44,496.69",Optional requirement only
Department of Health,Imperial College Healthcare NHS Trust,21/04/2016,Other Research Exp - Pay,Rd Surgery & Cancer Division,Imperial College London,3350839,"85,523.36",Optional requirement only
Department of Health,Imperial College Healthcare NHS Trust,21/04/2016,Other Research Exp - Pay,Rd Surgery & Cancer Division,Imperial College London,3350844,"28,989.29",Optional requirement only
Department of Health,Imperial College Healthcare NHS Trust,21/04/2016,Other Research Exp - Pay,Rd Surgery & Cancer Division,Imperial College London,3350856,"55,000.80",Optional requirement only
Department of Health,Imperial College Healthcare NHS Trust,21/04/2016,Other Research Exp - Pay,Rdwomen And Children Division,Imperial College London,3350852,"37,263.27",Optional requirement only
Department of Health,Imperial College Healthcare NHS Trust,21/04/2016,P & M-Additions-Purchased,Capital Summary,Heidelberg Engineering Limited,3349113,"135,000.00",Optional requirement only
Department of Health,Imperial College Healthcare NHS Trust,21/04/2016,P & M-Additions-Purchased,Capital Summary,Heidelberg Engineering Limited,3350575,"112,500.00",Optional requirement only
Department of Health,Imperial College Healthcare NHS Trust,21/04/2016,Season Ticket Cr Abellio,Ichnt Balance Sheet,Abellio Transport Holdings Ltd,3348945,"30,495.30",Optional requirement only
Department of Health,Imperial College Healthcare NHS Trust,21/04/2016,Service Charge,Finance Directorate,Oxford University Hospital Nhs Ft,3351021,"100,000.00",Optional requirement only
Department of Health,Imperial College Healthcare NHS Trust,21/04/2016,Services Received - Nhsts,Div Of Med & Integrated Care,University Hospital Birmingham Nhs Foundation,3350415,"50,658.75",Optional requirement only
Department of Health,Imperial College Healthcare NHS Trust,21/04/2016,Supplies Issues Recharges,Stock,Nhs Supply Chain,3340054,"143,232.20",Optional requirement only
Department of Health,Imperial College Healthcare NHS Trust,21/04/2016,Supplies Issues Recharges,Stock,Nhs Supply Chain,3340055,"96,889.41",Optional requirement only
Department of Health,Imperial College Healthcare NHS Trust,21/04/2016,Supplies Issues Recharges,Stock,Nhs Supply Chain,3340056,"92,036.02",Optional requirement only
Department of Health,Imperial College Healthcare NHS Trust,21/04/2016,Supplies Issues Recharges,Stock,Nhs Supply Chain,3342877,"51,593.26",Optional requirement only
Department of Health,Imperial College Healthcare NHS Trust,21/04/2016,Supplies Issues Recharges,Stock,Nhs Supply Chain,3342878,"81,250.85",Optional requirement only
Department of Health,Imperial College Healthcare NHS Trust,21/04/2016,Supplies Issues Recharges,Stock,Nhs Supply Chain,3342895,"73,636.46",Optional requirement only
Department of Health,Imperial College Healthcare NHS Trust,21/04/2016,Supplies Issues Recharges,Stock,Nhs Supply Chain,3350866,"82,935.65",Optional requirement only
Department of Health,Imperial College Healthcare NHS Trust,21/04/2016,Supplies Issues Recharges,Stock,Nhs Supply Chain,3350868,"132,191.72",Optional requirement only
Department of Health,Imperial College Healthcare NHS Trust,21/04/2016,Supplies Issues Recharges,Stock,Nhs Supply Chain,3350871,"101,146.30",Optional requirement only
Department of Health,Imperial College Healthcare NHS Trust,21/04/2016,Training Expenses,Medical Director Summary,Central & North West London,3350402,"47,628.00",Optional requirement only
Department of Health,Imperial College Healthcare NHS Trust,26/04/2016,Buildings-Additions-Purchased,Capital Summary,Me Construction Ltd,3344303,"41,260.80",Optional requirement only
Department of Health,Imperial College Healthcare NHS Trust,26/04/2016,Buildings-Additions-Purchased,Capital Summary,Metricab Power Engineering Ltd,3350688,"324,754.80",Optional requirement only
Department of Health,Imperial College Healthcare NHS Trust,26/04/2016,Buildings-Additions-Purchased,Capital Summary,Nightglade Limited,3348159,"151,514.16",Optional requirement only
Department of Health,Imperial College Healthcare NHS Trust,26/04/2016,Cx-Hh Consultant Load,Ichnt Balance Sheet,Dr Andrew Wright,3352142,"66,980.95",Optional requirement only
Department of Health,Imperial College Healthcare NHS Trust,26/04/2016,Cx-Hh Consultant Load,Ichnt Balance Sheet,Dr J. De La Fuente,3352146,"32,939.00",Optional requirement only
Department of Health,Imperial College Healthcare NHS Trust,26/04/2016,Electricity,Nursing Directorate,Edf Energy Customer Plc,3348139,"34,510.31",Optional requirement only
Department of Health,Imperial College Healthcare NHS Trust,26/04/2016,Electricity,Nursing Directorate,Edf Energy Customer Plc,3348142,"43,954.79",Optional requirement only
Department of Health,Imperial College Healthcare NHS Trust,26/04/2016,Electricity,Nursing Directorate,Edf Energy Customer Plc,3348146,"227,936.43",Optional requirement only
Department of Health,Imperial College Healthcare NHS Trust,26/04/2016,Ext Contract - Patient Travel,Nursing Directorate,Dhl Supply Chain  (Former Excel),3351677,"1,322,771.48",Optional requirement only
Department of Health,Imperial College Healthcare NHS Trust,26/04/2016,Gas,Nursing Directorate,Corona Energy,3344017,"65,718.43",Optional requirement only
Department of Health,Imperial College Healthcare NHS Trust,26/04/2016,Gas,Nursing Directorate,Corona Energy,3344021,"161,237.78",Optional requirement only
Department of Health,Imperial College Healthcare NHS Trust,26/04/2016,Gas,Nursing Directorate,Corona Energy,3344028,"72,653.18",Optional requirement only
Department of Health,Imperial College Healthcare NHS Trust,26/04/2016,Gas,Nursing Directorate,Corona Energy,3344044,"101,387.36",Optional requirement only
Department of Health,Imperial College Healthcare NHS Trust,26/04/2016,It Eqpt-Additions,Capital Summary,Ultima Business Solutions Ltd,3342806,"43,350.00",Optional requirement only
Department of Health,Imperial College Healthcare NHS Trust,26/04/2016,Med & Prof Fees (Imaging Cons),Ichnt Balance Sheet,Lindo Wing Radiology Llp,3352211,"131,268.17",Optional requirement only
Department of Health,Imperial College Healthcare NHS Trust,26/04/2016,Med & Surg Equip General,Div Of Women & Clin Support,Alliance Diagnostic Services Ltd,3346716,"79,200.00",Optional requirement only
Department of Health,Imperial College Healthcare NHS Trust,26/04/2016,Med & Surg Maint Contract,Div Of Med & Integrated Care,Nhs Supply Chain,3351480,"61,316.44",Optional requirement only
Department of Health,Imperial College Healthcare NHS Trust,26/04/2016,P & M-Additions-Purchased,Capital Summary,Carl Zeiss Ltd,3351503,"55,364.40",Optional requirement only
Department of Health,Imperial College Healthcare NHS Trust,26/04/2016,P & M-Additions-Purchased,Capital Summary,Heidelberg Engineering Limited,3342105,"112,500.00",Optional requirement only
Department of Health,Imperial College Healthcare NHS Trust,26/04/2016,P & M-Additions-Purchased,Capital Summary,Quantum Production Ltd,3340429,"47,064.00",Optional requirement only
Department of Health,Imperial College Healthcare NHS Trust,26/04/2016,P & M-Additions-Purchased,Capital Summary,Sigmacon Uk  Ltd,3340388,"40,794.00",Optional requirement only
Department of Health,Imperial College Healthcare NHS Trust,03/05/2016,Agency Nursing: Qualified,Div Of Med & Integrated Care,Reed,3355070,"168,773.37",Optional requirement only
Department of Health,Imperial College Healthcare NHS Trust,03/05/2016,Agency Nursing: Qualified,Div Of Med & Integrated Care,Reed,3355073,"83,964.64",Optional requirement only
Department of Health,Imperial College Healthcare NHS Trust,03/05/2016,Agency Nursing: Qualified,"Div Of Surg, Cardiov & Cancer",Reed,3355070,"145,796.12",Optional requirement only
Department of Health,Imperial College Healthcare NHS Trust,03/05/2016,Agency Nursing: Qualified,"Div Of Surg, Cardiov & Cancer",Reed,3355073,"86,321.96",Optional requirement only
Department of Health,Imperial College Healthcare NHS Trust,03/05/2016,Agency Nursing: Qualified,Div Of Women & Clin Support,Reed,3355070,"97,216.53",Optional requirement only
Department of Health,Imperial College Healthcare NHS Trust,03/05/2016,Agency Nursing: Qualified,Div Of Women & Clin Support,Reed,3355073,"39,489.62",Optional requirement only
Department of Health,Imperial College Healthcare NHS Trust,03/05/2016,Agency Scient & Prof Qualified,Div Of Women & Clin Support,Reed,3355071,"30,916.58",Optional requirement only
Department of Health,Imperial College Healthcare NHS Trust,03/05/2016,Agency Scient & Prof Qualified,Div Of Women & Clin Support,Reed,3355072,"34,078.42",Optional requirement only
Department of Health,Imperial College Healthcare NHS Trust,03/05/2016,Blood Products,Pathology,Nhs Blood And Transplant,3344324,"146,430.08",Optional requirement only
Department of Health,Imperial College Healthcare NHS Trust,03/05/2016,Blood Products,Pathology,Nhs Blood And Transplant,3353782,"312,901.75",Optional requirement only
Department of Health,Imperial College Healthcare NHS Trust,03/05/2016,Buildings-Additions-Purchased,Capital Summary,Alarm Communication Limited,3349043,"85,884.00",Optional requirement only
Department of Health,Imperial College Healthcare NHS Trust,03/05/2016,Buildings-Additions-Purchased,Capital Summary,Alarm Communication Limited,3350225,"81,120.00",Optional requirement only
Department of Health,Imperial College Healthcare NHS Trust,03/05/2016,Buildings-Additions-Purchased,Capital Summary,Amber Group Limited,3348954,"100,023.60",Optional requirement only
Department of Health,Imperial College Healthcare NHS Trust,03/05/2016,Buildings-Additions-Purchased,Capital Summary,Gray Dungate Poole Ltd,3341593,"56,869.31",Optional requirement only
Department of Health,Imperial College Healthcare NHS Trust,03/05/2016,Buildings-Additions-Purchased,Capital Summary,Howard Electrical Ltd,3353191,"118,187.08",Optional requirement only
Department of Health,Imperial College Healthcare NHS Trust,03/05/2016,Buildings-Additions-Purchased,Capital Summary,Me Construction Ltd,3344305,"48,556.80",Optional requirement only
Department of Health,Imperial College Healthcare NHS Trust,03/05/2016,Buildings-Add(Prof Fee)-Purch,Capital Summary,T & B Contractors Ltd,3354012,"54,300.00",Optional requirement only
Department of Health,Imperial College Healthcare NHS Trust,03/05/2016,Cleaning Materials,Nursing Directorate,Synergy Health Managed Services Ltd,3343451,"41,005.07",Optional requirement only
Department of Health,Imperial College Healthcare NHS Trust,03/05/2016,Clinical Managed Service Contr,"Div Of Surg, Cardiov & Cancer",Chas A Blatchford And Sons Ltd,3350407,"46,259.60",Optional requirement only
Department of Health,Imperial College Healthcare NHS Trust,03/05/2016,Clinical Managed Service Contr,Pathology,Abbott Laboratories Ltd,3343457,"191,180.67",Optional requirement only
Department of Health,Imperial College Healthcare NHS Trust,03/05/2016,Clinical Managed Service Contr,Pathology,Abbott Laboratories Ltd,3343458,"380,972.40",Optional requirement only
Department of Health,Imperial College Healthcare NHS Trust,03/05/2016,Clinical Managed Service Contr,Pathology,Abbott Laboratories Ltd,3343462,"60,246.55",Optional requirement only
Department of Health,Imperial College Healthcare NHS Trust,03/05/2016,Clinical Managed Service Contr,Pathology,Genmed.Me Ltd,3354609,"86,035.49",Optional requirement only
Department of Health,Imperial College Healthcare NHS Trust,03/05/2016,Computer Maintenance,Information & Comms Technology,Mill Systems Ltd,3350331,"41,800.80",Optional requirement only
Department of Health,Imperial College Healthcare NHS Trust,03/05/2016,Consultancy Fees,Information & Comms Technology,Ideal Health Consultants Ltd,3354946,"40,636.80",Optional requirement only
Department of Health,Imperial College Healthcare NHS Trust,03/05/2016,Dialysers,Div Of Med & Integrated Care,Baxter Healthcare Ltd,3353975,"67,291.14",Optional requirement only
Department of Health,Imperial College Healthcare NHS Trust,03/05/2016,Drugs Nhs,Div Of Women & Clin Support,Lloyds Retail Chemists Ltd,3353976,"3,642,146.89",Optional requirement only
Department of Health,Imperial College Healthcare NHS Trust,03/05/2016,Electricity,Nursing Directorate,Edf Energy Customer Plc,3348143,"248,851.94",Optional requirement only
Department of Health,Imperial College Healthcare NHS Trust,03/05/2016,Ext Contr Laundry,Nursing Directorate,Synergy Health Managed Services Ltd,3343452,"55,680.81",Optional requirement only
Department of Health,Imperial College Healthcare NHS Trust,03/05/2016,Ext Contr Laundry,Nursing Directorate,Synergy Health Managed Services Ltd,3343453,"54,711.54",Optional requirement only
Department of Health,Imperial College Healthcare NHS Trust,03/05/2016,Ext Contr Laundry,Nursing Directorate,Synergy Health Managed Services Ltd,3343454,"37,767.69",Optional requirement only
Department of Health,Imperial College Healthcare NHS Trust,03/05/2016,Ic Library Expenditure,Medical Director Summary,Imperial College London,3352937,"92,131.00",Optional requirement only
Department of Health,Imperial College Healthcare NHS Trust,03/05/2016,It Eqpt-Additions,Capital Summary,Cdw Ltd,3341575,"56,117.36",Optional requirement only
Department of Health,Imperial College Healthcare NHS Trust,03/05/2016,It Eqpt-Additions,Capital Summary,Cdw Ltd,3341576,"42,432.38",Optional requirement only
Department of Health,Imperial College Healthcare NHS Trust,03/05/2016,It Eqpt-Additions,Capital Summary,Cdw Ltd,3341577,"96,432.18",Optional requirement only
Department of Health,Imperial College Healthcare NHS Trust,03/05/2016,It Eqpt-Additions,Capital Summary,Cdw Ltd,3341582,"327,018.41",Optional requirement only
Department of Health,Imperial College Healthcare NHS Trust,03/05/2016,It Eqpt-Additions,Capital Summary,Cdw Ltd,3355287,"99,220.18",Optional requirement only
Department of Health,Imperial College Healthcare NHS Trust,03/05/2016,It Eqpt-Additions,Capital Summary,European Electronique Ltd,3345043,"72,411.13",Optional requirement only
Department of Health,Imperial College Healthcare NHS Trust,03/05/2016,Jac - Stock,Stock,Alloga Uk Ltd,3341900,"82,719.00",Optional requirement only
Department of Health,Imperial College Healthcare NHS Trust,03/05/2016,Jac - Stock,Stock,Bms Pharmaceuticals Ltd (0034),3348682,"53,055.00",Optional requirement only
Department of Health,Imperial College Healthcare NHS Trust,03/05/2016,Jac - Stock,Stock,Idis Limited,3348749,"39,420.00",Optional requirement only
Department of Health,Imperial College Healthcare NHS Trust,03/05/2016,Other Gen Supplies & Srv,Information & Comms Technology,Crown Records Management,3345039,"33,644.40",Optional requirement only
Department of Health,Imperial College Healthcare NHS Trust,03/05/2016,Other Research Exp - Pay,Rd Medical Directorate,Imperial College London,3352936,"65,064.88",Optional requirement only
Department of Health,Imperial College Healthcare NHS Trust,03/05/2016,Other Research Exp - Pay,Rd Medical Directorate,Imperial College London,3353152,"35,301.60",Optional requirement only
Department of Health,Imperial College Healthcare NHS Trust,03/05/2016,Other Research Exp - Pay,Rd Medical Directorate,Imperial College London,3353153,"26,516.51",Optional requirement only
Department of Health,Imperial College Healthcare NHS Trust,03/05/2016,Other Research Exp - Pay,Rd Medicine Division,Imperial College London,3350861,"44,316.80",Optional requirement only
Department of Health,Imperial College Healthcare NHS Trust,03/05/2016,Other Research Exp - Pay,Rd Medicine Division,Imperial College London,3350900,"37,086.76",Optional requirement only
Department of Health,Imperial College Healthcare NHS Trust,03/05/2016,Other Research Exp - Pay,Rd Medicine Division,Imperial College London,3353972,"197,232.07",Optional requirement only
Department of Health,Imperial College Healthcare NHS Trust,03/05/2016,Other Research Exp - Pay,Rd Medicine Division,Imperial College London,3353973,"183,562.74",Optional requirement only
Department of Health,Imperial College Healthcare NHS Trust,03/05/2016,Other Research Exp - Pay,Rd Surgery & Cancer Division,Imperial College London,3353978,"158,096.10",Optional requirement only
Department of Health,Imperial College Healthcare NHS Trust,03/05/2016,Other Research Exp - Pay,Rd Surgery & Cancer Division,Imperial College London,3353983,"162,291.33",Optional requirement only
Department of Health,Imperial College Healthcare NHS Trust,03/05/2016,Other Research Exp - Pay,Rdwomen And Children Division,Imperial College London,3352935,"43,550.70",Optional requirement only
Department of Health,Imperial College Healthcare NHS Trust,03/05/2016,Other Research Exp - Pay,Rdwomen And Children Division,Imperial College London,3353986,"162,314.60",Optional requirement only
Department of Health,Imperial College Healthcare NHS Trust,03/05/2016,Patients Appl: Purchase,"Div Of Surg, Cardiov & Cancer",Chas A Blatchford And Sons Ltd,3344180,"39,354.92",Optional requirement only
Department of Health,Imperial College Healthcare NHS Trust,03/05/2016,Phone Instal & Maint,Information & Comms Technology,M&S Medicom,3346878,"93,855.00",Optional requirement only
Department of Health,Imperial College Healthcare NHS Trust,03/05/2016,P & M-Additions-Purchased,Capital Summary,Pentax Uk Ltd,3353011,"31,398.90",Optional requirement only
Department of Health,Imperial College Healthcare NHS Trust,03/05/2016,Rent,Nursing Directorate,Thames Valley Charitable Housing,3355006,"42,028.71",Optional requirement only
Department of Health,Imperial College Healthcare NHS Trust,03/05/2016,Services Received - Nhsts,Div Of Med & Integrated Care,West London Mental Health Nhs Trust,3346218,"49,054.00",Optional requirement only
Department of Health,Imperial College Healthcare NHS Trust,03/05/2016,Services Received - Nhsts,Other Hq Departments,Nhs Hammersmith And Fulham Ccg,3352969,"400,000.00",Optional requirement only
Department of Health,Imperial College Healthcare NHS Trust,03/05/2016,Srvcsrecd-Other Nhs,Finance Directorate,Salford Royal Nhs Foundation Trust,3346199,"34,215.00",Optional requirement only
Department of Health,Imperial College Healthcare NHS Trust,03/05/2016,Staff Location/Bleeps,Information & Comms Technology,Multitone Electronics Plc,3353144,"104,316.00",Optional requirement only
Department of Health,Imperial College Healthcare NHS Trust,03/05/2016,Transcription Services,Div Of Med & Integrated Care,Dictate It Ltd,3353777,"32,432.30",Optional requirement only
Department of Health,Imperial College Healthcare NHS Trust,03/05/2016,Transcription Services,"Div Of Surg, Cardiov & Cancer",Dictate It Ltd,3353780,"34,409.11",Optional requirement only
Department of Health,Imperial College Healthcare NHS Trust,03/05/2016,X-Ray Equip Maint/Repair,Div Of Women & Clin Support,Ge Medical Systems Limited,3351479,"284,910.64",Optional requirement only
Department of Health,Imperial College Healthcare NHS Trust,05/05/2016,Agency Nursing: Qualified,Div Of Med & Integrated Care,Reed,3357664,"35,741.81",Optional requirement only
Department of Health,Imperial College Healthcare NHS Trust,05/05/2016,Agency Nursing: Qualified,"Div Of Surg, Cardiov & Cancer",Reed,3357664,"57,427.82",Optional requirement only
Department of Health,Imperial College Healthcare NHS Trust,05/05/2016,Agency Scient & Prof Qualified,Div Of Women & Clin Support,Reed,3357665,"43,223.09",Optional requirement only
Department of Health,Imperial College Healthcare NHS Trust,05/05/2016,Clinical Managed Service Contr,Pathology,Genmed.Me Ltd,3350110,"626,341.42",Optional requirement only
Department of Health,Imperial College Healthcare NHS Trust,05/05/2016,Computer Software/License,Medical Director Summary,Datix Ltd,3356926,"57,695.10",Optional requirement only
Department of Health,Imperial College Healthcare NHS Trust,05/05/2016,Depn Of Donated Assets,Div Of Women & Clin Support,Ivf Hammersmith Ltd,3356954,"58,824.00",Optional requirement only
Department of Health,Imperial College Healthcare NHS Trust,05/05/2016,Interpreting Services,Div Of Women & Clin Support,Dnu Pearl Linguistics Ltd [In]  [Use 042172],3357787,"30,814.32",Optional requirement only
Department of Health,Imperial College Healthcare NHS Trust,05/05/2016,Jac - Stock,Stock,Genzyme Therapeutics Ltd,3357166,"135,264.00",Optional requirement only
Department of Health,Imperial College Healthcare NHS Trust,05/05/2016,Jac - Stock,Stock,Roche Products Ltd,3346318,"77,832.36",Optional requirement only
Department of Health,Imperial College Healthcare NHS Trust,05/05/2016,Laboratory Test Kits,Pathology,Becton Dickinson Uk Ltd,3350756,"87,114.53",Optional requirement only
Department of Health,Imperial College Healthcare NHS Trust,05/05/2016,Med & Surg Equip General,Div Of Med & Integrated Care,Dnu Covidien (Uk) Commercial Ltd,3354072,"48,696.00",Optional requirement only
Department of Health,Imperial College Healthcare NHS Trust,05/05/2016,Med & Surg Maint Contract,"Div Of Surg, Cardiov & Cancer",Intuitive Surgical Sarl,3357398,"140,000.00",Optional requirement only
Department of Health,Imperial College Healthcare NHS Trust,05/05/2016,Other Research Exp - Non-Pay,Rd Medical Directorate,West London Mental Health Nhs Trust,3356165,"167,964.00",Optional requirement only
Department of Health,Imperial College Healthcare NHS Trust,05/05/2016,Other Research Exp - Pay,Rd Medical Directorate,Imperial College London,3355859,"69,353.44",Optional requirement only
Department of Health,Imperial College Healthcare NHS Trust,05/05/2016,Other Research Exp - Pay,Rd Medical Directorate,Imperial College London,3355865,"39,710.09",Optional requirement only
Department of Health,Imperial College Healthcare NHS Trust,05/05/2016,Other Research Exp - Pay,Rd Medicine Division,Imperial College London,3348463,"107,937.75",Optional requirement only
Department of Health,Imperial College Healthcare NHS Trust,05/05/2016,Other Research Exp - Pay,Rd Surgery & Cancer Division,Imperial College London,3355872,"27,448.47",Optional requirement only
Department of Health,Imperial College Healthcare NHS Trust,05/05/2016,Other Research Exp - Pay,Rd Surgery & Cancer Division,Imperial College London,3355876,"31,652.04",Optional requirement only
Department of Health,Imperial College Healthcare NHS Trust,05/05/2016,Other Research Exp - Pay,Rd Surgery & Cancer Division,Imperial College London,3357862,"154,848.72",Optional requirement only
Department of Health,Imperial College Healthcare NHS Trust,05/05/2016,Purch Hcare Independent Sector,Div Of Women & Clin Support,Ivf Hammersmith Ltd,3355848,"30,006.00",Optional requirement only
Department of Health,Imperial College Healthcare NHS Trust,05/05/2016,Purch Hcare Independent Sector,Div Of Women & Clin Support,Ivf Hammersmith Ltd,3355849,"154,616.00",Optional requirement only
Department of Health,Imperial College Healthcare NHS Trust,05/05/2016,Purch Hcare Independent Sector,Div Of Women & Clin Support,Ivf Hammersmith Ltd,3355851,"33,669.00",Optional requirement only
Department of Health,Imperial College Healthcare NHS Trust,05/05/2016,Purch Hcare Independent Sector,Div Of Women & Clin Support,Ivf Hammersmith Ltd,3355853,"39,474.00",Optional requirement only
Department of Health,Imperial College Healthcare NHS Trust,05/05/2016,Purch Hcare Independent Sector,Div Of Women & Clin Support,Ivf Hammersmith Ltd,3356936,"43,146.00",Optional requirement only
Department of Health,Imperial College Healthcare NHS Trust,05/05/2016,Purch Hcare Independent Sector,Div Of Women & Clin Support,Ivf Hammersmith Ltd,3356937,"43,560.00",Optional requirement only
Department of Health,Imperial College Healthcare NHS Trust,05/05/2016,Purch Hcare Independent Sector,Div Of Women & Clin Support,Ivf Hammersmith Ltd,3356939,"142,054.00",Optional requirement only
Department of Health,Imperial College Healthcare NHS Trust,05/05/2016,Purch Hcare Independent Sector,Div Of Women & Clin Support,Ivf Hammersmith Ltd,3356940,"42,957.00",Optional requirement only
Department of Health,Imperial College Healthcare NHS Trust,05/05/2016,Purch Hcare Independent Sector,Div Of Women & Clin Support,Ivf Hammersmith Ltd,3356948,"48,654.00",Optional requirement only
Department of Health,Imperial College Healthcare NHS Trust,05/05/2016,Purch Hcare Independent Sector,Div Of Women & Clin Support,Ivf Hammersmith Ltd,3356950,"69,212.00",Optional requirement only
Department of Health,Imperial College Healthcare NHS Trust,05/05/2016,Purch Hcare Independent Sector,Div Of Women & Clin Support,Ivf Hammersmith Ltd,3356953,"238,458.00",Optional requirement only
Department of Health,Imperial College Healthcare NHS Trust,05/05/2016,Season Ticket Cr Abellio,Ichnt Balance Sheet,Abellio Transport Holdings Ltd,3357707,"39,368.80",Optional requirement only
Department of Health,Imperial College Healthcare NHS Trust,05/05/2016,Stents,"Div Of Surg, Cardiov & Cancer",Cook Uk,3357134,"32,400.00",Optional requirement only
Department of Health,Imperial College Healthcare NHS Trust,05/05/2016,Supplies Issues Recharges,Stock,Nhs Supply Chain,3356968,"91,983.67",Optional requirement only
Department of Health,Imperial College Healthcare NHS Trust,05/05/2016,Supplies Issues Recharges,Stock,Nhs Supply Chain,3357799,"100,414.65",Optional requirement only
Department of Health,Imperial College Healthcare NHS Trust,05/05/2016,Supplies Issues Recharges,Stock,Nhs Supply Chain,3357800,"156,728.58",Optional requirement only
Department of Health,Imperial College Healthcare NHS Trust,10/05/2016,Acton Housing Association,Housing Deductions,A2dominion Housing Group Ltd,3360160,"180,781.86",Optional requirement only
Department of Health,Imperial College Healthcare NHS Trust,10/05/2016,Computer Maintenance,Information & Comms Technology,Block Solutions Ltd,3351729,"304,887.23",Optional requirement only
Department of Health,Imperial College Healthcare NHS Trust,10/05/2016,Contr Photocopier Rental,Information & Comms Technology,Canon (Uk) Ltd,3360069,"199,710.02",Optional requirement only
Department of Health,Imperial College Healthcare NHS Trust,10/05/2016,Ext Contr Catering,Div Of Med & Integrated Care,Sodexo Limited,3358556,"78,636.06",Optional requirement only
Department of Health,Imperial College Healthcare NHS Trust,10/05/2016,Ext Contr Catering,Div Of Med & Integrated Care,Sodexo Limited,3358560,"81,244.93",Optional requirement only
Department of Health,Imperial College Healthcare NHS Trust,10/05/2016,Ext Contr Catering,Nursing Directorate,Sodexo Limited,3358557,"41,482.15",Optional requirement only
Department of Health,Imperial College Healthcare NHS Trust,10/05/2016,Ext Contr Catering,Nursing Directorate,Sodexo Limited,3358561,"41,482.15",Optional requirement only
Department of Health,Imperial College Healthcare NHS Trust,10/05/2016,Jac - Stock,Stock,Qualasept Ltd,3357530,"142,322.64",Optional requirement only
Department of Health,Imperial College Healthcare NHS Trust,10/05/2016,Miscellaneous Expenditure,"Div Of Surg, Cardiov & Cancer",Imperial College London,3358580,"81,648.27",Optional requirement only
Department of Health,Imperial College Healthcare NHS Trust,10/05/2016,Nhs Pay Recharge In: Med,"Div Of Surg, Cardiov & Cancer",Mid Essex Hospitals  Nhs Trust,3358569,"29,204.42",Optional requirement only
Department of Health,Imperial College Healthcare NHS Trust,10/05/2016,Other Research Exp - Non-Pay,Rdwomen And Children Division,Imperial College London,3358597,"25,584.74",Optional requirement only
Department of Health,Imperial College Healthcare NHS Trust,10/05/2016,Other Research Exp - Non-Pay,Rdwomen And Children Division,Imperial College London,3358605,"75,203.47",Optional requirement only
Department of Health,Imperial College Healthcare NHS Trust,10/05/2016,Other Research Exp - Pay,Rd Medical Directorate,Imperial College London,3358585,"75,703.86",Optional requirement only
Department of Health,Imperial College Healthcare NHS Trust,10/05/2016,Other Research Exp - Pay,Rd Medicine Division,Imperial College London,3358583,"154,830.45",Optional requirement only
Department of Health,Imperial College Healthcare NHS Trust,10/05/2016,Other Research Exp - Pay,Rd Medicine Division,Imperial College London,3358589,"32,582.94",Optional requirement only
Department of Health,Imperial College Healthcare NHS Trust,10/05/2016,Other Research Exp - Pay,Rd Medicine Division,Imperial College London,3358591,"40,467.87",Optional requirement only
Department of Health,Imperial College Healthcare NHS Trust,10/05/2016,Other Research Exp - Pay,Rd Medicine Division,Imperial College London,3358592,"37,250.82",Optional requirement only
Department of Health,Imperial College Healthcare NHS Trust,10/05/2016,Other Research Exp - Pay,Rd Medicine Division,Imperial College London,3360112,"31,694.34",Optional requirement only
Department of Health,Imperial College Healthcare NHS Trust,10/05/2016,Other Research Exp - Pay,Rd Surgery & Cancer Division,Imperial College London,3350835,"94,884.80",Optional requirement only
Department of Health,Imperial College Healthcare NHS Trust,10/05/2016,Other Research Exp - Pay,Rd Surgery & Cancer Division,Imperial College London,3358590,"28,496.02",Optional requirement only
Department of Health,Imperial College Healthcare NHS Trust,10/05/2016,Other Research Exp - Pay,Rd Surgery & Cancer Division,Imperial College London,3358598,"246,734.22",Optional requirement only
Department of Health,Imperial College Healthcare NHS Trust,10/05/2016,Other Research Exp - Pay,Rd Surgery & Cancer Division,Imperial College London,3358604,"99,725.22",Optional requirement only
Department of Health,Imperial College Healthcare NHS Trust,10/05/2016,Other Research Exp - Pay,Rdwomen And Children Division,Imperial College London,3358587,"62,631.76",Optional requirement only
Department of Health,Imperial College Healthcare NHS Trust,10/05/2016,Other Research Exp - Pay,Rdwomen And Children Division,Imperial College London,3358606,"41,471.62",Optional requirement only
Department of Health,Imperial College Healthcare NHS Trust,10/05/2016,Other Research Exp - Pay,Rdwomen And Children Division,Imperial College London,3358607,"33,726.60",Optional requirement only
Department of Health,Imperial College Healthcare NHS Trust,10/05/2016,Other Research Exp - Pay,Rdwomen And Children Division,Imperial College London,3358611,"69,009.80",Optional requirement only
Department of Health,Imperial College Healthcare NHS Trust,10/05/2016,Supplies Issues Recharges,Stock,Nhs Supply Chain,3358621,"119,337.18",Optional requirement only
Department of Health,Imperial College Healthcare NHS Trust,10/05/2016,Supplies Issues Recharges,Stock,Nhs Supply Chain,3358628,"104,837.40",Optional requirement only
Department of Health,Imperial College Healthcare NHS Trust,10/05/2016,Thames Valley Housing Assoc,Housing Deductions,Thames Valley Charitable Housing,3360161,"111,351.98",Optional requirement only
Department of Health,Imperial College Healthcare NHS Trust,11/05/2016,Audit Fees: External,Finance Directorate,Bdo Llp,3361763,"82,080.00",Optional requirement only
Department of Health,Imperial College Healthcare NHS Trust,11/05/2016,Rates,Nursing Directorate,City Of Westminster,3361865,"119,944.00",Optional requirement only
Department of Health,Imperial College Healthcare NHS Trust,12/05/2016,Agency Nursing: Qualified,Div Of Med & Integrated Care,Reed,3361632,"33,636.65",Optional requirement only
Department of Health,Imperial College Healthcare NHS Trust,12/05/2016,Agency Nursing: Qualified,"Div Of Surg, Cardiov & Cancer",Reed,3361632,"48,562.35",Optional requirement only
Department of Health,Imperial College Healthcare NHS Trust,12/05/2016,Agency Scient & Prof Qualified,Div Of Women & Clin Support,Reed,3361630,"30,359.41",Optional requirement only
Department of Health,Imperial College Healthcare NHS Trust,12/05/2016,Consultancy Fees,Div Of Women & Clin Support,Cloud 21 Limited,3361740,"43,166.40",Optional requirement only
Department of Health,Imperial College Healthcare NHS Trust,12/05/2016,Consultancy Fees,Finance Directorate,Rsm Uk Consulting Llp,3360313,"31,551.12",Optional requirement only
Department of Health,Imperial College Healthcare NHS Trust,12/05/2016,Consultancy Fees,Nursing Directorate,Oakleaf Surveying Limited,3360417,"32,219.40",Optional requirement only
Department of Health,Imperial College Healthcare NHS Trust,12/05/2016,Contr Refuse & Clin Waste,Nursing Directorate,Grundon Waste Management Ltd,3361894,"30,025.56",Optional requirement only
Department of Health,Imperial College Healthcare NHS Trust,12/05/2016,It Eqpt-Additions,Capital Summary,Gecko Technologies Ltd,3352876,"31,200.00",Optional requirement only
Department of Health,Imperial College Healthcare NHS Trust,12/05/2016,Jac - Stock,Stock,Bayer Plc,3360901,"76,038.00",Optional requirement only
Department of Health,Imperial College Healthcare NHS Trust,12/05/2016,Jac - Stock,Stock,Csl Behring Uk Ltd,3350476,"25,668.00",Optional requirement only
Department of Health,Imperial College Healthcare NHS Trust,12/05/2016,Jac - Stock,Stock,Genzyme Therapeutics Ltd,3357165,"76,086.00",Optional requirement only
Department of Health,Imperial College Healthcare NHS Trust,12/05/2016,Jac - Stock,Stock,Gilead Sciences Ltd,3359121,"117,752.62",Optional requirement only
Department of Health,Imperial College Healthcare NHS Trust,12/05/2016,Jac - Stock,Stock,Janssen-Cilag Ltd,3359043,"38,423.95",Optional requirement only
Department of Health,Imperial College Healthcare NHS Trust,12/05/2016,Jac - Stock,Stock,Movianto Uk Limited,3359139,"35,970.00",Optional requirement only
Department of Health,Imperial College Healthcare NHS Trust,12/05/2016,Jac - Stock,Stock,Novartis Pharmaceutical (Uk) Ltd,3352676,"40,068.00",Optional requirement only
Department of Health,Imperial College Healthcare NHS Trust,12/05/2016,Jac - Stock,Stock,Roche Products Ltd,3352339,"47,876.26",Optional requirement only
Department of Health,Imperial College Healthcare NHS Trust,12/05/2016,Jac - Stock,Stock,Roche Products Ltd,3352344,"50,843.52",Optional requirement only
Department of Health,Imperial College Healthcare NHS Trust,12/05/2016,Laboratory Culture Media,Pathology,Dhl Supply Chain  (Former Excel),3350086,"37,044.00",Optional requirement only
Department of Health,Imperial College Healthcare NHS Trust,12/05/2016,Med & Surg Maint Contract,"Div Of Surg, Cardiov & Cancer",Hansen Medical Inc,3362076,"38,855.00",Optional requirement only
Department of Health,Imperial College Healthcare NHS Trust,12/05/2016,Other Research Exp - Non-Pay,Rd Medicine Division,Imperial College London,3360110,"45,343.80",Optional requirement only
Department of Health,Imperial College Healthcare NHS Trust,12/05/2016,Other Research Exp - Pay,Rdwomen And Children Division,Imperial College London,3358617,"164,861.84",Optional requirement only
Department of Health,Imperial College Healthcare NHS Trust,12/05/2016,Other Research Exp - Pay,Rdwomen And Children Division,Imperial College London,3361340,"605,112.10",Optional requirement only
Department of Health,Imperial College Healthcare NHS Trust,12/05/2016,Other Transport Costs,Pathology,Dhl Supply Chain  (Former Excel),3354611,"78,951.28",Optional requirement only
Department of Health,Imperial College Healthcare NHS Trust,12/05/2016,Supplies Issues Recharges,Stock,Nhs Supply Chain,3358620,"101,409.06",Optional requirement only
Department of Health,Imperial College Healthcare NHS Trust,12/05/2016,Taxi & Other Vehicle Hire,Nursing Directorate,Dhl Supply Chain  (Former Excel),3360181,"78,147.38",Optional requirement only
Department of Health,Imperial College Healthcare NHS Trust,12/05/2016,Training Expenses,Medical Director Summary,Mentice Ab,3357832,"49,500.00",Optional requirement only
Department of Health,Imperial College Healthcare NHS Trust,17/05/2016,Buildings-Additions-Purchased,Capital Summary,Howard Electrical Ltd,3363379,"31,790.42",Optional requirement only
Department of Health,Imperial College Healthcare NHS Trust,17/05/2016,Drugs Nhs,Div Of Women & Clin Support,Lloyds Retail Chemists Ltd,3363083,"3,884,448.57",Optional requirement only
Department of Health,Imperial College Healthcare NHS Trust,17/05/2016,Electricity,Nursing Directorate,Edf Energy Customer Plc,3360125,"71,986.90",Optional requirement only
Department of Health,Imperial College Healthcare NHS Trust,17/05/2016,Jac - Stock,Stock,Aah Pharmaceuticals Limited,3362202,"40,649.76",Optional requirement only
Department of Health,Imperial College Healthcare NHS Trust,17/05/2016,Medical Gases,Div Of Women & Clin Support,Qualasept Ltd,3362951,"203,400.00",Optional requirement only
Department of Health,Imperial College Healthcare NHS Trust,17/05/2016,Med & Surg Equip General,"Div Of Surg, Cardiov & Cancer",Novacor Uk Ltd,3363738,"57,881.61",Optional requirement only
Department of Health,Imperial College Healthcare NHS Trust,17/05/2016,Med & Surg Equip General,"Div Of Surg, Cardiov & Cancer",Novacor Uk Ltd,3363740,"48,861.81",Optional requirement only
Department of Health,Imperial College Healthcare NHS Trust,17/05/2016,Med & Surg Equip General,"Div Of Surg, Cardiov & Cancer",Novacor Uk Ltd,3363761,"34,324.86",Optional requirement only
Department of Health,Imperial College Healthcare NHS Trust,17/05/2016,Med & Surg Maint Contract,"Div Of Surg, Cardiov & Cancer",Aurora Health Physics Services Ltd,3363427,"32,763.90",Optional requirement only
Department of Health,Imperial College Healthcare NHS Trust,17/05/2016,Nhs Pay Recharge In: Med,Div Of Women & Clin Support,Hca International Limited,3363133,"36,344.82",Optional requirement only
Department of Health,Imperial College Healthcare NHS Trust,17/05/2016,P & M-Additions-Purchased,Capital Summary,Ge Healthcare [Use Supplier 205916],3354920,"112,889.68",Optional requirement only
Department of Health,Imperial College Healthcare NHS Trust,18/05/2016,Income Tax Paye,Ichnt Balance Sheet,Hmrc Government Employers Account,3363119,"13,106,292.08",Optional requirement only
Department of Health,Imperial College Healthcare NHS Trust,19/05/2016,Cnst Contributions,Other Hq Departments,Nhs Litigation Authority,3364691,"2,757,489.00",Optional requirement only
Department of Health,Imperial College Healthcare NHS Trust,19/05/2016,Cx-Hh Consultant Load,Ichnt Balance Sheet,Dr Andrew Wright,3365146,"54,990.15",Optional requirement only
Department of Health,Imperial College Healthcare NHS Trust,19/05/2016,Cx-Hh Consultant Load,Ichnt Balance Sheet,Dr J. De La Fuente,3365152,"31,966.50",Optional requirement only
Department of Health,Imperial College Healthcare NHS Trust,19/05/2016,Electricity,Nursing Directorate,Edf Energy Customer Plc,3360126,"74,222.72",Optional requirement only
Department of Health,Imperial College Healthcare NHS Trust,19/05/2016,Electricity,Nursing Directorate,Edf Energy Customer Plc,3360127,"79,592.53",Optional requirement only
Department of Health,Imperial College Healthcare NHS Trust,19/05/2016,Electricity,Nursing Directorate,Edf Energy Customer Plc,3361606,"31,879.04",Optional requirement only
Department of Health,Imperial College Healthcare NHS Trust,19/05/2016,Electricity,Nursing Directorate,Edf Energy Customer Plc,3361609,"209,028.24",Optional requirement only
Department of Health,Imperial College Healthcare NHS Trust,19/05/2016,Electricity,Nursing Directorate,Edf Energy Customer Plc,3361612,"206,640.28",Optional requirement only
Department of Health,Imperial College Healthcare NHS Trust,19/05/2016,Electricity,Nursing Directorate,Edf Energy Customer Plc,3361615,"71,550.33",Optional requirement only
Department of Health,Imperial College Healthcare NHS Trust,19/05/2016,Ext Contract - Patient Travel,Nursing Directorate,Dhl Supply Chain  (Former Excel),3360183,"44,311.42",Optional requirement only
Department of Health,Imperial College Healthcare NHS Trust,19/05/2016,Insurance Costs,Office Of Chief Executive,Nhs Litigation Authority,3364691,"50,617.00",Optional requirement only
Department of Health,Imperial College Healthcare NHS Trust,19/05/2016,It Eqpt-Additions,Capital Summary,Esaloni Systems Limited,3363390,"36,000.00",Optional requirement only
Department of Health,Imperial College Healthcare NHS Trust,19/05/2016,It Eqpt-Additions,Capital Summary,Royal Brompton & Harefield Hospital,3363310,"126,582.00",Optional requirement only
Department of Health,Imperial College Healthcare NHS Trust,19/05/2016,Jac - Stock,Stock,Gilead Sciences Ltd,3359116,"94,679.42",Optional requirement only
Department of Health,Imperial College Healthcare NHS Trust,19/05/2016,Jac - Stock,Stock,Qualasept Ltd,3362151,"154,404.60",Optional requirement only
Department of Health,Imperial College Healthcare NHS Trust,19/05/2016,Laboratory Chemicals/ Reagents,Pathology,Diamed Gb Ltd,3364003,"194,521.52",Optional requirement only
Department of Health,Imperial College Healthcare NHS Trust,19/05/2016,Lecture Fees,Medical Director Summary,Imperial College London,3362070,"32,000.00",Optional requirement only
Department of Health,Imperial College Healthcare NHS Trust,19/05/2016,Med & Prof Fees (Imaging Cons),Ichnt Balance Sheet,Lindo Wing Radiology Llp,3365206,"68,034.75",Optional requirement only
Department of Health,Imperial College Healthcare NHS Trust,19/05/2016,Med & Surg Maint Contract,Div Of Women & Clin Support,Ge Healthcare [Use Supplier 205916],3365378,"40,471.20",Optional requirement only
Department of Health,Imperial College Healthcare NHS Trust,19/05/2016,Med & Surg Maint Contract,Div Of Women & Clin Support,Ge Medical Systems Limited,3365268,"40,471.20",Optional requirement only
Department of Health,Imperial College Healthcare NHS Trust,19/05/2016,Other Research Exp - Pay,Rd Medicine Division,Imperial College London,3363082,"58,974.20",Optional requirement only
Department of Health,Imperial College Healthcare NHS Trust,19/05/2016,Other Research Exp - Pay,Rd Medicine Division,Imperial College London,3363084,"55,477.42",Optional requirement only
Department of Health,Imperial College Healthcare NHS Trust,19/05/2016,Other Research Exp - Pay,Rd Medicine Division,Imperial College London,3363085,"77,729.11",Optional requirement only
Department of Health,Imperial College Healthcare NHS Trust,19/05/2016,Other Research Exp - Pay,Rd Medicine Division,Imperial College London,3363086,"73,433.96",Optional requirement only
Department of Health,Imperial College Healthcare NHS Trust,19/05/2016,Other Research Exp - Pay,Rd Medicine Division,Imperial College London,3363274,"158,818.81",Optional requirement only
Department of Health,Imperial College Healthcare NHS Trust,19/05/2016,Other Research Exp - Pay,Rdwomen And Children Division,Imperial College London,3363087,"96,658.85",Optional requirement only
Department of Health,Imperial College Healthcare NHS Trust,19/05/2016,Other Research Exp - Pay,Rdwomen And Children Division,Imperial College London,3363273,"88,235.71",Optional requirement only
Department of Health,Imperial College Healthcare NHS Trust,19/05/2016,Other Research Exp - Pay,Rdwomen And Children Division,Imperial College London,3363321,"135,000.00",Optional requirement only
Department of Health,Imperial College Healthcare NHS Trust,19/05/2016,Rates,Nursing Directorate,London Borough Hammersmith & Fulham,3364684,"158,719.00",Optional requirement only
Department of Health,Imperial College Healthcare NHS Trust,19/05/2016,Rates,Nursing Directorate,London Borough Hammersmith & Fulham,3364688,"139,073.00",Optional requirement only
Department of Health,Imperial College Healthcare NHS Trust,24/05/2016,Buildings-Additions-Purchased,Capital Summary,Power Electrics Generators Ltd,3357841,"40,292.51",Optional requirement only
Department of Health,Imperial College Healthcare NHS Trust,24/05/2016,Clinical Managed Service Contr,"Div Of Surg, Cardiov & Cancer",Medtronic Ltd,3360059,"52,232.40",Optional requirement only
Department of Health,Imperial College Healthcare NHS Trust,24/05/2016,Clinical Managed Service Contr,"Div Of Surg, Cardiov & Cancer",Medtronic Ltd,3360063,"294,644.40",Optional requirement only
Department of Health,Imperial College Healthcare NHS Trust,24/05/2016,Computer Hardware Purch,Nursing Directorate,Optimum Contact Limited,3366471,"35,980.80",Optional requirement only
Department of Health,Imperial College Healthcare NHS Trust,24/05/2016,Computer Software/License,Medical Director Summary,Crab Clinical Informatics Ltd,3366594,"42,000.00",Optional requirement only
Department of Health,Imperial College Healthcare NHS Trust,24/05/2016,Dialysers,Div Of Med & Integrated Care,Baxter Healthcare Ltd,3366288,"68,197.67",Optional requirement only
Department of Health,Imperial College Healthcare NHS Trust,24/05/2016,Ext Contract - Patient Travel,Div Of Med & Integrated Care,Dhl Supply Chain  (Former Excel),3367244,"760,198.48",Optional requirement only
Department of Health,Imperial College Healthcare NHS Trust,24/05/2016,Ext Contract - Patient Travel,"Div Of Surg, Cardiov & Cancer",Dhl Supply Chain  (Former Excel),3367244,"242,995.00",Optional requirement only
Department of Health,Imperial College Healthcare NHS Trust,24/05/2016,Ext Contract - Patient Travel,Finance Directorate,Dhl Supply Chain  (Former Excel),3367244,"47,118.23",Optional requirement only
Department of Health,Imperial College Healthcare NHS Trust,24/05/2016,Ext Contract Portering,Nursing Directorate,Sodexo Limited,3357085,"450,366.06",Optional requirement only
Department of Health,Imperial College Healthcare NHS Trust,24/05/2016,Ext Contr Catering,Nursing Directorate,Sodexo Limited,3357085,"616,582.46",Optional requirement only
Department of Health,Imperial College Healthcare NHS Trust,24/05/2016,Ext Contr Domestics,Nursing Directorate,Sodexo Limited,3357085,"1,199,406.14",Optional requirement only
Department of Health,Imperial College Healthcare NHS Trust,24/05/2016,Ext Contr Laundry,Nursing Directorate,Berendsen Uk Limited,3366699,"38,687.82",Optional requirement only
Department of Health,Imperial College Healthcare NHS Trust,24/05/2016,Ext Contr Laundry,Nursing Directorate,Berendsen Uk Limited,3366704,"45,495.19",Optional requirement only
Department of Health,Imperial College Healthcare NHS Trust,24/05/2016,Ext Contr Oth Hotel Srv,Nursing Directorate,Sodexo Limited,3357085,"89,174.20",Optional requirement only
Department of Health,Imperial College Healthcare NHS Trust,24/05/2016,Jac - Stock,Stock,Gilead Sciences Ltd,3359120,"47,339.71",Optional requirement only
Department of Health,Imperial College Healthcare NHS Trust,24/05/2016,Jac - Stock,Stock,Gilead Sciences Ltd,3365301,"104,668.99",Optional requirement only
Department of Health,Imperial College Healthcare NHS Trust,24/05/2016,Miscellaneous Expenditure,Div Of Med & Integrated Care,Hayes Cottage Renal Unit Ltd,3366524,"68,244.00",Optional requirement only
Department of Health,Imperial College Healthcare NHS Trust,24/05/2016,Supplies Issues Recharges,Stock,Nhs Supply Chain,3364969,"64,125.85",Optional requirement only
Department of Health,Imperial College Healthcare NHS Trust,24/05/2016,Supplies Issues Recharges,Stock,Nhs Supply Chain,3365002,"99,615.74",Optional requirement only
Department of Health,Imperial College Healthcare NHS Trust,24/05/2016,Supplies Issues Recharges,Stock,Nhs Supply Chain,3365013,"98,977.35",Optional requirement only
Department of Health,Imperial College Healthcare NHS Trust,24/05/2016,Supplies Issues Recharges,Stock,Nhs Supply Chain,3366302,"131,547.39",Optional requirement only
Department of Health,Imperial College Healthcare NHS Trust,24/05/2016,Supplies Issues Recharges,Stock,Nhs Supply Chain,3366314,"161,408.72",Optional requirement only
Department of Health,Imperial College Healthcare NHS Trust,24/05/2016,Supplies Issues Recharges,Stock,Nhs Supply Chain,3366323,"102,347.62",Optional requirement only
Department of Health,Imperial College Healthcare NHS Trust,26/05/2016,Buildings-Additions-Purchased,Capital Summary,Playfords Limited,3360101,"52,588.20",Optional requirement only
Department of Health,Imperial College Healthcare NHS Trust,26/05/2016,Childcare Voucher (Kids Unltd),Childcare Vouchers,Dnu Computershare Voucher Services,3357892,"73,853.93",Optional requirement only
Department of Health,Imperial College Healthcare NHS Trust,26/05/2016,Cleaning Materials,Nursing Directorate,Synergy Health Managed Services Ltd,3369612,"41,005.07",Optional requirement only
Department of Health,Imperial College Healthcare NHS Trust,26/05/2016,Clinical Managed Service Contr,"Div Of Surg, Cardiov & Cancer",Chas A Blatchford And Sons Ltd,3357565,"49,735.20",Optional requirement only
Department of Health,Imperial College Healthcare NHS Trust,26/05/2016,Clinical Managed Service Contr,"Div Of Surg, Cardiov & Cancer",Medtronic Ltd,3356237,"1,027,851.83",Optional requirement only
Department of Health,Imperial College Healthcare NHS Trust,26/05/2016,Clinical Managed Service Contr,Pathology,Abbott Laboratories Ltd,3363326,"146,412.29",Optional requirement only
Department of Health,Imperial College Healthcare NHS Trust,26/05/2016,Clinical Managed Service Contr,Pathology,Abbott Laboratories Ltd,3363329,"71,503.61",Optional requirement only
Department of Health,Imperial College Healthcare NHS Trust,26/05/2016,Clinical Managed Service Contr,Pathology,Abbott Laboratories Ltd,3363330,"453,887.32",Optional requirement only
Department of Health,Imperial College Healthcare NHS Trust,26/05/2016,Consultancy Fees,Div Of Women & Clin Support,Cloud 21 Limited,3367532,"43,166.40",Optional requirement only
Department of Health,Imperial College Healthcare NHS Trust,26/05/2016,Consultancy Fees,Information & Comms Technology,Ideal Health Consultants Ltd,3369547,"34,070.40",Optional requirement only
Department of Health,Imperial College Healthcare NHS Trust,26/05/2016,Decontamination Services,Nursing Directorate,Berendsen Uk,3369513,"325,014.85",Optional requirement only
Department of Health,Imperial College Healthcare NHS Trust,26/05/2016,Dist Award - Local Cea,Div Of Med & Integrated Care,Imperial College London,3365556,"41,514.85",Optional requirement only
Department of Health,Imperial College Healthcare NHS Trust,26/05/2016,Dist Award - Local Cea,"Div Of Surg, Cardiov & Cancer",Imperial College London,3365556,"30,403.81",Optional requirement only
Department of Health,Imperial College Healthcare NHS Trust,26/05/2016,Dist Award - Nat Cea,Div Of Med & Integrated Care,Imperial College London,3365556,"71,888.34",Optional requirement only
Department of Health,Imperial College Healthcare NHS Trust,26/05/2016,Dist Award - Nat Cea,Div Of Women & Clin Support,Imperial College London,3365556,"34,295.26",Optional requirement only
Department of Health,Imperial College Healthcare NHS Trust,26/05/2016,Dist Award - Nat Cea,Medical Director Summary,Imperial College London,3365556,"30,514.75",Optional requirement only
Department of Health,Imperial College Healthcare NHS Trust,26/05/2016,Ext Contr Laundry,Nursing Directorate,Synergy Health Managed Services Ltd,3369614,"55,688.45",Optional requirement only
Department of Health,Imperial College Healthcare NHS Trust,26/05/2016,Ext Contr Laundry,Nursing Directorate,Synergy Health Managed Services Ltd,3369615,"47,527.36",Optional requirement only
Department of Health,Imperial College Healthcare NHS Trust,26/05/2016,Ext Contr Laundry,Nursing Directorate,Synergy Health Managed Services Ltd,3369616,"46,725.99",Optional requirement only
Department of Health,Imperial College Healthcare NHS Trust,26/05/2016,Ic Pay Recharge In: Med,Div Of Med & Integrated Care,Imperial College London,3365556,"72,087.15",Optional requirement only
Department of Health,Imperial College Healthcare NHS Trust,26/05/2016,Ic Pay Recharge In: Med,Div Of Med & Integrated Care,Imperial College London,3365558,"112,934.19",Optional requirement only
Department of Health,Imperial College Healthcare NHS Trust,26/05/2016,Ic Pay Recharge In: Med,"Div Of Surg, Cardiov & Cancer",Imperial College London,3365556,"113,495.04",Optional requirement only
Department of Health,Imperial College Healthcare NHS Trust,26/05/2016,Ic Pay Recharge In: Med,"Div Of Surg, Cardiov & Cancer",Imperial College London,3365557,"27,464.22",Optional requirement only
Department of Health,Imperial College Healthcare NHS Trust,26/05/2016,Ic Pay Recharge In: Med,"Div Of Surg, Cardiov & Cancer",Imperial College London,3365558,"215,730.49",Optional requirement only
Department of Health,Imperial College Healthcare NHS Trust,26/05/2016,Ic Pay Recharge In: Med,Div Of Women & Clin Support,Imperial College London,3365558,"74,861.38",Optional requirement only
Department of Health,Imperial College Healthcare NHS Trust,26/05/2016,Ic Pay Recharge In: Med,Pathology,Imperial College London,3365558,"39,903.92",Optional requirement only
Department of Health,Imperial College Healthcare NHS Trust,26/05/2016,Items Pending Investigation,Capital Summary,Feilden Clegg Bardley Studios,3361575,"106,800.00",Optional requirement only
Department of Health,Imperial College Healthcare NHS Trust,26/05/2016,Jac - Stock,Stock,Bayer Plc,3368063,"97,014.00",Optional requirement only
Department of Health,Imperial College Healthcare NHS Trust,26/05/2016,Jac - Stock,Stock,Csl Behring Uk Ltd,3357532,"61,938.00",Optional requirement only
Department of Health,Imperial College Healthcare NHS Trust,26/05/2016,Jac - Stock,Stock,Roche Products Ltd,3359329,"59,723.46",Optional requirement only
Department of Health,Imperial College Healthcare NHS Trust,26/05/2016,Med & Surg Equip General,Medical Director Summary,Scotia Uk Plc,3357617,"55,892.16",Optional requirement only
Department of Health,Imperial College Healthcare NHS Trust,26/05/2016,Organ Donor Expenses,Div Of Women & Clin Support,The Anthony Nolan Trust,3369722,"39,470.00",Optional requirement only
Department of Health,Imperial College Healthcare NHS Trust,26/05/2016,Organ Donor Expenses,Div Of Women & Clin Support,The Anthony Nolan Trust,3369723,"40,920.00",Optional requirement only
Department of Health,Imperial College Healthcare NHS Trust,26/05/2016,Organ Donor Expenses,Div Of Women & Clin Support,The Anthony Nolan Trust,3369727,"29,323.25",Optional requirement only
Department of Health,Imperial College Healthcare NHS Trust,26/05/2016,Other Research Exp - Pay,Rd Medicine Division,Imperial College London,3363088,"383,799.12",Optional requirement only
Department of Health,Imperial College Healthcare NHS Trust,26/05/2016,Other Research Exp - Pay,Rd Medicine Division,Imperial College London,3366280,"55,250.53",Optional requirement only
Department of Health,Imperial College Healthcare NHS Trust,26/05/2016,Other Research Exp - Pay,Rd Surgery & Cancer Division,Imperial College London,3366319,"172,361.23",Optional requirement only
Department of Health,Imperial College Healthcare NHS Trust,26/05/2016,Patients Appl: Purchase,"Div Of Surg, Cardiov & Cancer",Chas A Blatchford And Sons Ltd,3357585,"32,567.52",Optional requirement only
Department of Health,Imperial College Healthcare NHS Trust,26/05/2016,Prostheses,"Div Of Surg, Cardiov & Cancer",Chas A Blatchford And Sons Ltd,3357538,"33,125.14",Optional requirement only
Department of Health,Imperial College Healthcare NHS Trust,26/05/2016,Rent,Nursing Directorate,Thames Valley Charitable Housing,3368551,"42,028.71",Optional requirement only
Department of Health,Imperial College Healthcare NHS Trust,26/05/2016,Season Ticket Cr Abellio,Ichnt Balance Sheet,Abellio Transport Holdings Ltd,3366337,"27,646.00",Optional requirement only
Department of Health,Imperial College Healthcare NHS Trust,26/05/2016,Services Received - Nhsts,Div Of Med & Integrated Care,West London Mental Health Nhs Trust,3361939,"49,054.00",Optional requirement only
Department of Health,Imperial College Healthcare NHS Trust,26/05/2016,Transcription Services,Div Of Med & Integrated Care,Dictate It Ltd,3364744,"31,050.49",Optional requirement only
Department of Health,Imperial College Healthcare NHS Trust,26/05/2016,Transcription Services,"Div Of Surg, Cardiov & Cancer",Dictate It Ltd,3364746,"35,569.45",Optional requirement only
Department of Health,Imperial College Healthcare NHS Trust,01/06/2016,"Books, Journals & Subscr",Div Of Med & Integrated Care,The Renal Registry,3370824,"95,672.50",Optional requirement only
Department of Health,Imperial College Healthcare NHS Trust,01/06/2016,Consultancy Fees,Nhs Elect,Camlyn Associates Ltd,3371362,"31,466.03",Optional requirement only
Department of Health,Imperial College Healthcare NHS Trust,01/06/2016,Gas,Nursing Directorate,Corona Energy,3363481,"108,084.89",Optional requirement only
Department of Health,Imperial College Healthcare NHS Trust,01/06/2016,Gas,Nursing Directorate,Corona Energy,3363496,"50,662.69",Optional requirement only
Department of Health,Imperial College Healthcare NHS Trust,01/06/2016,Gas,Nursing Directorate,Corona Energy,3363497,"65,481.82",Optional requirement only
Department of Health,Imperial College Healthcare NHS Trust,01/06/2016,Gas,Nursing Directorate,Corona Energy,3363498,"37,451.48",Optional requirement only
Department of Health,Imperial College Healthcare NHS Trust,01/06/2016,Other Research Exp - Non-Pay,Rd Medical Directorate,Central & North West London,3370887,"109,207.00",Optional requirement only
Department of Health,Imperial College Healthcare NHS Trust,01/06/2016,Srvcsrecd-Other Nhs,Pathology,Micropathology Ltd,3370829,"25,476.00",Optional requirement only
Department of Health,Imperial College Healthcare NHS Trust,02/06/2016,Buildings-Additions-Purchased,Capital Summary,Kpl Electrical Services Limited,3372183,"62,435.86",Optional requirement only
Department of Health,Imperial College Healthcare NHS Trust,02/06/2016,Buildings-Add(Prof Fee)-Purch,Capital Summary,Alarm Communication Limited,3371768,"38,592.00",Optional requirement only
Department of Health,Imperial College Healthcare NHS Trust,02/06/2016,Consultancy Fees,Finance Directorate,Rsm Uk Consulting Llp,3371769,"37,498.24",Optional requirement only
Department of Health,Imperial College Healthcare NHS Trust,02/06/2016,Ext Contr Oth Hotel Srv,Private Patients Directorate,Sodexo Limited,3371091,"165,075.94",Optional requirement only
Department of Health,Imperial College Healthcare NHS Trust,02/06/2016,Ext Contr Oth Hotel Srv,Private Patients Directorate,Sodexo Limited,3371576,"165,075.94",Optional requirement only
Department of Health,Imperial College Healthcare NHS Trust,02/06/2016,Jac - Stock,Stock,Baxalta Uk Limited,3371867,"38,500.00",Optional requirement only
Department of Health,Imperial College Healthcare NHS Trust,02/06/2016,Jac - Stock,Stock,Baxalta Uk Limited,3371869,"59,111.20",Optional requirement only
Department of Health,Imperial College Healthcare NHS Trust,02/06/2016,Jac - Stock,Stock,Mawdsleys-Brooks & Co Ltd,3368149,"36,000.00",Optional requirement only
Department of Health,Imperial College Healthcare NHS Trust,02/06/2016,Other Research Exp - Pay,Rd Medical Directorate,Imperial College London,3372526,"40,418.73",Optional requirement only
Department of Health,Imperial College Healthcare NHS Trust,02/06/2016,Other Research Exp - Pay,Rd Medical Directorate,Imperial College London,3373534,"574,251.39",Optional requirement only
Department of Health,Imperial College Healthcare NHS Trust,02/06/2016,Other Research Exp - Pay,Rd Medicine Division,Imperial College London,3372807,"49,804.18",Optional requirement only
Department of Health,Imperial College Healthcare NHS Trust,02/06/2016,Other Research Exp - Pay,Rd Surgery & Cancer Division,Imperial College London,3373535,"150,170.64",Optional requirement only
Department of Health,Imperial College Healthcare NHS Trust,02/06/2016,Other Research Exp - Pay,Rd Surgery & Cancer Division,Imperial College London,3373536,"64,049.33",Optional requirement only
Department of Health,Imperial College Healthcare NHS Trust,02/06/2016,P & M-Additions-Purchased,Capital Summary,Nhs Supply Chain,3372175,"172,371.02",Optional requirement only
Department of Health,Imperial College Healthcare NHS Trust,02/06/2016,P & M-Additions-Purchased,Capital Summary,Nhs Supply Chain,3372176,"113,335.20",Optional requirement only
Department of Health,Imperial College Healthcare NHS Trust,02/06/2016,Services Received - Nhsts,Div Of Med & Integrated Care,West London Mental Health Nhs Trust,3372758,"33,761.00",Optional requirement only
Department of Health,Imperial College Healthcare NHS Trust,03/06/2016,Supplies Issues Recharges,Stock,Nhs Supply Chain,3374545,"90,687.45",Optional requirement only
Department of Health,Imperial College Healthcare NHS Trust,07/06/2016,Acton Housing Association,Housing Deductions,A2dominion Housing Group Ltd,3375194,"180,391.67",Optional requirement only
Department of Health,Imperial College Healthcare NHS Trust,07/06/2016,Agency Nursing: Qualified,Div Of Med & Integrated Care,Reed,3375200,"44,130.57",Optional requirement only
Department of Health,Imperial College Healthcare NHS Trust,07/06/2016,Agency Nursing: Qualified,Div Of Med & Integrated Care,Reed,3375201,"52,800.07",Optional requirement only
Department of Health,Imperial College Healthcare NHS Trust,07/06/2016,Agency Nursing: Qualified,"Div Of Surg, Cardiov & Cancer",Reed,3375200,"37,702.08",Optional requirement only
Department of Health,Imperial College Healthcare NHS Trust,07/06/2016,Agency Nursing: Qualified,"Div Of Surg, Cardiov & Cancer",Reed,3375201,"31,209.18",Optional requirement only
Department of Health,Imperial College Healthcare NHS Trust,07/06/2016,Agency Nursing: Qualified,Div Of Women & Clin Support,Reed,3375200,"34,340.83",Optional requirement only
Department of Health,Imperial College Healthcare NHS Trust,07/06/2016,Agency Nursing: Qualified,Div Of Women & Clin Support,Reed,3375201,"72,884.41",Optional requirement only
Department of Health,Imperial College Healthcare NHS Trust,07/06/2016,Agency Scient & Prof: Unqu'D,Div Of Women & Clin Support,Reed,3375134,"38,344.37",Optional requirement only
Department of Health,Imperial College Healthcare NHS Trust,07/06/2016,Buildings-Add(Prof Fee)-Purch,Capital Summary,Aecom,3374773,"86,034.00",Optional requirement only
Department of Health,Imperial College Healthcare NHS Trust,07/06/2016,Childcare Voucher (Kids Unltd),Childcare Vouchers,Dnu Computershare Voucher Services,3373678,"75,271.93",Optional requirement only
Department of Health,Imperial College Healthcare NHS Trust,07/06/2016,Consultancy Fees,Finance Directorate,Salford Royal Nhs Foundation Trust,3374917,"34,215.00",Optional requirement only
Department of Health,Imperial College Healthcare NHS Trust,07/06/2016,Consultancy Fees,Finance Directorate,Salford Royal Nhs Foundation Trust,3374918,"34,215.00",Optional requirement only
Department of Health,Imperial College Healthcare NHS Trust,07/06/2016,Drugs Nhs,Div Of Women & Clin Support,Nhs Business Services Authority,3375400,"35,928.90",Optional requirement only
Department of Health,Imperial College Healthcare NHS Trust,07/06/2016,Jac - Stock,Stock,Novartis Pharmaceutical (Uk) Ltd,3374881,"63,574.56",Optional requirement only
Department of Health,Imperial College Healthcare NHS Trust,07/06/2016,Jac - Stock,Stock,Qualasept Ltd,3374835,"67,758.77",Optional requirement only
Department of Health,Imperial College Healthcare NHS Trust,07/06/2016,Jac - Stock,Stock,Qualasept Ltd,3374961,"83,255.28",Optional requirement only
Department of Health,Imperial College Healthcare NHS Trust,07/06/2016,Legal Fees,Human Resources,Capsticks Solicitors Llp,3375277,"32,453.20",Optional requirement only
Department of Health,Imperial College Healthcare NHS Trust,07/06/2016,Other Gen Supplies & Srv,Information & Comms Technology,Crown Records Management,3375309,"34,366.09",Optional requirement only
Department of Health,Imperial College Healthcare NHS Trust,07/06/2016,Rent,Nursing Directorate,Thames Valley Charitable Housing,3375484,"42,028.71",Optional requirement only
Department of Health,Imperial College Healthcare NHS Trust,07/06/2016,Supplies Issues Recharges,Stock,Nhs Supply Chain,3375415,"164,278.46",Optional requirement only
Department of Health,Imperial College Healthcare NHS Trust,07/06/2016,Supplies Issues Recharges,Stock,Nhs Supply Chain,3375422,"129,770.40",Optional requirement only
Department of Health,Imperial College Healthcare NHS Trust,07/06/2016,Thames Valley Housing Assoc,Housing Deductions,Thames Valley Charitable Housing,3375195,"114,702.23",Optional requirement only
Department of Health,Imperial College Healthcare NHS Trust,08/06/2016,Jac - Stock,Stock,Healthcare At Home Ltd,3377321,"372,174.56",Optional requirement only
Department of Health,Imperial College Healthcare NHS Trust,09/06/2016,Buildings-Additions-Purchased,Capital Summary,T & B Contractors Ltd,3375674,"46,791.60",Optional requirement only
Department of Health,Imperial College Healthcare NHS Trust,09/06/2016,Buildings-Additions-Purchased,Capital Summary,T & B Contractors Ltd,3377370,"73,323.60",Optional requirement only
Department of Health,Imperial College Healthcare NHS Trust,09/06/2016,Clinical Managed Service Contr,Pathology,Abbott Laboratories Ltd,3377058,"120,281.50",Optional requirement only
Department of Health,Imperial College Healthcare NHS Trust,09/06/2016,Clinical Managed Service Contr,Pathology,Abbott Laboratories Ltd,3377062,"370,299.68",Optional requirement only
Department of Health,Imperial College Healthcare NHS Trust,09/06/2016,Clinical Managed Service Contr,Pathology,Genmed.Me Ltd,3364071,"49,497.25",Optional requirement only
Department of Health,Imperial College Healthcare NHS Trust,09/06/2016,Clinical Managed Service Contr,Pathology,Genmed.Me Ltd,3364715,"69,148.37",Optional requirement only
Department of Health,Imperial College Healthcare NHS Trust,09/06/2016,Computer Maintenance,Information & Comms Technology,Optimus It Infra Ltd,3366420,"35,724.90",Optional requirement only
Department of Health,Imperial College Healthcare NHS Trust,09/06/2016,Computer Software/License,Information & Comms Technology,Cdw Ltd,3367507,"45,409.25",Optional requirement only
Department of Health,Imperial College Healthcare NHS Trust,09/06/2016,Computer Software/License,Information & Comms Technology,Cerner Uk Ltd,3376634,"134,673.22",Optional requirement only
Department of Health,Imperial College Healthcare NHS Trust,09/06/2016,Computer Software/License,Information & Comms Technology,Optimus It Infra Ltd,3366417,"53,371.18",Optional requirement only
Department of Health,Imperial College Healthcare NHS Trust,09/06/2016,Computer Software/License,Information & Comms Technology,Patients Know Best Limited,3366841,"48,000.00",Optional requirement only
Department of Health,Imperial College Healthcare NHS Trust,09/06/2016,Furniture & Fittings,Information & Comms Technology,Cerner Uk Ltd,3376634,"169,182.93",Optional requirement only
Department of Health,Imperial College Healthcare NHS Trust,09/06/2016,Lease Rents,Nursing Directorate,London Borough Of Hammersmith/Fulham,3368935,"94,471.80",Optional requirement only
Department of Health,Imperial College Healthcare NHS Trust,09/06/2016,Med & Surg Equip General,"Div Of Surg, Cardiov & Cancer",Parkside Hospital,3377649,"151,875.00",Optional requirement only
Department of Health,Imperial College Healthcare NHS Trust,09/06/2016,Med & Surg Maint Contract,"Div Of Surg, Cardiov & Cancer",Hansen Medical Inc,3356170,"42,000.00",Optional requirement only
Department of Health,Imperial College Healthcare NHS Trust,09/06/2016,Nhs Pay Recharge In: Clerical,Nursing Directorate,Nhs England,3347880,"46,737.25",Optional requirement only
Department of Health,Imperial College Healthcare NHS Trust,09/06/2016,Other Transport Costs,Pathology,Dhl Supply Chain  (Former Excel),3364583,"78,951.28",Optional requirement only
Department of Health,Imperial College Healthcare NHS Trust,09/06/2016,Supplies Issues Recharges,Stock,Nhs Supply Chain,3376947,"75,684.41",Optional requirement only
Department of Health,Imperial College Healthcare NHS Trust,13/06/2016,Supplies Issues Recharges,Stock,Nhs Supply Chain,3379349,"91,976.30",Optional requirement only
Department of Health,Imperial College Healthcare NHS Trust,14/06/2016,Agency Nursing: Qualified,Div Of Med & Integrated Care,Reed,3377274,"233,343.77",Optional requirement only
Department of Health,Imperial College Healthcare NHS Trust,14/06/2016,Agency Nursing: Qualified,"Div Of Surg, Cardiov & Cancer",Reed,3377274,"239,949.82",Optional requirement only
Department of Health,Imperial College Healthcare NHS Trust,14/06/2016,Agency Nursing: Qualified,Div Of Women & Clin Support,Reed,3377274,"93,337.27",Optional requirement only
Department of Health,Imperial College Healthcare NHS Trust,14/06/2016,Agency Nursing: Qualified,Private Patients Directorate,Reed,3377274,"32,510.53",Optional requirement only
Department of Health,Imperial College Healthcare NHS Trust,14/06/2016,Agency Scient & Prof Qualified,Div Of Women & Clin Support,Reed,3380680,"77,350.62",Optional requirement only
Department of Health,Imperial College Healthcare NHS Trust,14/06/2016,Contr Refuse & Clin Waste,Nursing Directorate,Grundon Waste Management Ltd,3379772,"35,440.57",Optional requirement only
Department of Health,Imperial College Healthcare NHS Trust,14/06/2016,Decontamination Services,Nursing Directorate,Berendsen Uk,3367455,"325,014.85",Optional requirement only
Department of Health,Imperial College Healthcare NHS Trust,14/06/2016,Drugs Nhs,Div Of Women & Clin Support,Lloyds Retail Chemists Ltd,3376865,"3,527,695.13",Optional requirement only
Department of Health,Imperial College Healthcare NHS Trust,14/06/2016,Equip Maint Contracts,Pathology,Leica Microsystems (Uk) Ltd,3379624,"77,907.61",Optional requirement only
Department of Health,Imperial College Healthcare NHS Trust,14/06/2016,Equip Maint Contracts,Pathology,Leica Microsystems (Uk) Ltd,3379625,"77,907.61",Optional requirement only
Department of Health,Imperial College Healthcare NHS Trust,14/06/2016,Equip Maint Contracts,Pathology,Leica Microsystems (Uk) Ltd,3379626,"74,446.09",Optional requirement only
Department of Health,Imperial College Healthcare NHS Trust,14/06/2016,Ext Contract - Patient Travel,Div Of Med & Integrated Care,Dhl Supply Chain  (Former Excel),3379940,"760,198.48",Optional requirement only
Department of Health,Imperial College Healthcare NHS Trust,14/06/2016,Ext Contract - Patient Travel,"Div Of Surg, Cardiov & Cancer",Dhl Supply Chain  (Former Excel),3379940,"242,995.00",Optional requirement only
Department of Health,Imperial College Healthcare NHS Trust,14/06/2016,Ext Contract - Patient Travel,Finance Directorate,Dhl Supply Chain  (Former Excel),3379940,"47,118.23",Optional requirement only
Department of Health,Imperial College Healthcare NHS Trust,14/06/2016,Ext Contract - Patient Travel,Nursing Directorate,Dhl Supply Chain  (Former Excel),3377983,"48,361.40",Optional requirement only
Department of Health,Imperial College Healthcare NHS Trust,14/06/2016,Interpreting Services,Div Of Women & Clin Support,Dnu Pearl Linguistics Ltd [In]  [Use 042172],3380129,"33,306.76",Optional requirement only
Department of Health,Imperial College Healthcare NHS Trust,14/06/2016,Jac - Stock,Stock,Csl Behring Uk Ltd,3373134,"66,402.00",Optional requirement only
Department of Health,Imperial College Healthcare NHS Trust,14/06/2016,Med & Surg Equip General,"Div Of Surg, Cardiov & Cancer",Harrow Health Limited,3379805,"61,213.05",Optional requirement only
Department of Health,Imperial College Healthcare NHS Trust,14/06/2016,Other Research Exp - Non-Pay,Rd Medical Directorate,Multiple Sclerosis Trials Collaboration,3378772,"50,000.00",Optional requirement only
Department of Health,Imperial College Healthcare NHS Trust,14/06/2016,Postage & Carriage,Nursing Directorate,Francotyp-Postalia Uk Limited,3379810,"30,000.00",Optional requirement only
Department of Health,Imperial College Healthcare NHS Trust,14/06/2016,Rates,Nursing Directorate,City Of Westminster,3379939,"119,944.00",Optional requirement only
Department of Health,Imperial College Healthcare NHS Trust,14/06/2016,Taxi & Other Vehicle Hire,Nursing Directorate,Dhl Supply Chain  (Former Excel),3377981,"69,902.21",Optional requirement only
Department of Health,Imperial College Healthcare NHS Trust,16/06/2016,"Books, Journals & Subscr",Office Of Chief Executive,Care Quality Commission,3382380,"224,847.00",Optional requirement only
Department of Health,Imperial College Healthcare NHS Trust,16/06/2016,Buildings-Add(Prof Fee)-Purch,Capital Summary,Essentia Trading Ltd,3382546,"160,261.20",Optional requirement only
Department of Health,Imperial College Healthcare NHS Trust,16/06/2016,Buildings-Add(Prof Fee)-Purch,Capital Summary,Princebuild Limited,3374696,"69,767.56",Optional requirement only
Department of Health,Imperial College Healthcare NHS Trust,16/06/2016,Cnst Contributions,Other Hq Departments,Nhs Litigation Authority,3382307,"2,757,489.00",Optional requirement only
Department of Health,Imperial College Healthcare NHS Trust,16/06/2016,Computer Software/License,Information & Comms Technology,Cerner Uk Ltd,3382531,"303,856.15",Optional requirement only
Department of Health,Imperial College Healthcare NHS Trust,16/06/2016,Consultancy Fees,Nhs Elect,Insight Health Economics,3380765,"40,950.00",Optional requirement only
Department of Health,Imperial College Healthcare NHS Trust,16/06/2016,Contr Other External,Nursing Directorate,Cbre Managed Services Ltd,3379223,"722,893.15",Optional requirement only
Department of Health,Imperial College Healthcare NHS Trust,16/06/2016,Contr Other External,Nursing Directorate,Cbre Managed Services Ltd,3379224,"722,893.15",Optional requirement only
Department of Health,Imperial College Healthcare NHS Trust,16/06/2016,Dialysers,Div Of Med & Integrated Care,Baxter Healthcare Ltd,3380798,"61,738.55",Optional requirement only
Department of Health,Imperial College Healthcare NHS Trust,16/06/2016,Dialysers,Div Of Med & Integrated Care,Baxter Healthcare Ltd,3381354,"66,727.39",Optional requirement only
Department of Health,Imperial College Healthcare NHS Trust,16/06/2016,Dist Award - Local Cea,Div Of Med & Integrated Care,Imperial College London,3379333,"49,408.46",Optional requirement only
Department of Health,Imperial College Healthcare NHS Trust,16/06/2016,Dist Award - Local Cea,"Div Of Surg, Cardiov & Cancer",Imperial College London,3379333,"39,122.68",Optional requirement only
Department of Health,Imperial College Healthcare NHS Trust,16/06/2016,Dist Award - Nat Cea,Div Of Med & Integrated Care,Imperial College London,3379333,"80,769.51",Optional requirement only
Department of Health,Imperial College Healthcare NHS Trust,16/06/2016,Dist Award - Nat Cea,"Div Of Surg, Cardiov & Cancer",Imperial College London,3379333,"62,914.45",Optional requirement only
Department of Health,Imperial College Healthcare NHS Trust,16/06/2016,Dist Award - Nat Cea,Div Of Women & Clin Support,Imperial College London,3379333,"30,688.56",Optional requirement only
Department of Health,Imperial College Healthcare NHS Trust,16/06/2016,Dist Award - Nat Cea,Medical Director Summary,Imperial College London,3379333,"28,785.49",Optional requirement only
Department of Health,Imperial College Healthcare NHS Trust,16/06/2016,Ic Pay Recharge In: Med,Div Of Med & Integrated Care,Imperial College London,3379332,"125,600.39",Optional requirement only
Department of Health,Imperial College Healthcare NHS Trust,16/06/2016,Ic Pay Recharge In: Med,Div Of Med & Integrated Care,Imperial College London,3379333,"72,781.79",Optional requirement only
Department of Health,Imperial College Healthcare NHS Trust,16/06/2016,Ic Pay Recharge In: Med,"Div Of Surg, Cardiov & Cancer",Imperial College London,3379332,"209,597.12",Optional requirement only
Department of Health,Imperial College Healthcare NHS Trust,16/06/2016,Ic Pay Recharge In: Med,"Div Of Surg, Cardiov & Cancer",Imperial College London,3379333,"106,051.00",Optional requirement only
Department of Health,Imperial College Healthcare NHS Trust,16/06/2016,Ic Pay Recharge In: Med,Div Of Women & Clin Support,Imperial College London,3379332,"63,141.81",Optional requirement only
Department of Health,Imperial College Healthcare NHS Trust,16/06/2016,Ic Pay Rechge In: Admin & Mgmt,Rd Medical Directorate,Imperial College London,3379330,"67,115.75",Optional requirement only
Department of Health,Imperial College Healthcare NHS Trust,16/06/2016,Insurance Costs,Office Of Chief Executive,Nhs Litigation Authority,3382307,"50,617.00",Optional requirement only
Department of Health,Imperial College Healthcare NHS Trust,16/06/2016,Jac - Stock,Stock,Baxalta Uk Limited,3377770,"38,500.00",Optional requirement only
Department of Health,Imperial College Healthcare NHS Trust,16/06/2016,Jac - Stock,Stock,Bayer Plc,3377678,"99,636.00",Optional requirement only
Department of Health,Imperial College Healthcare NHS Trust,16/06/2016,Jac - Stock,Stock,Bms Pharmaceuticals Ltd (0034),3373889,"44,212.50",Optional requirement only
Department of Health,Imperial College Healthcare NHS Trust,16/06/2016,Jac - Stock,Stock,Genzyme Therapeutics Ltd,3372925,"101,448.00",Optional requirement only
Department of Health,Imperial College Healthcare NHS Trust,16/06/2016,Jac - Stock,Stock,Novartis Pharmaceutical (Uk) Ltd,3372927,"49,150.08",Optional requirement only
Department of Health,Imperial College Healthcare NHS Trust,16/06/2016,Jac - Stock,Stock,Qualasept Ltd,3379909,"138,295.32",Optional requirement only
Department of Health,Imperial College Healthcare NHS Trust,16/06/2016,Lease Rents,Div Of Med & Integrated Care,Nhs Property Services Ltd,3381482,"78,000.00",Optional requirement only
Department of Health,Imperial College Healthcare NHS Trust,16/06/2016,Lloyds Resale Of Drugs,"Div Of Surg, Cardiov & Cancer",Healthcare At Home Ltd,3381431,"25,680.00",Optional requirement only
Department of Health,Imperial College Healthcare NHS Trust,16/06/2016,Non-Nhs Pay Recharge In: Med,Div Of Med & Integrated Care,London Central & West Unscheduled Care Collab,3379321,"182,721.44",Optional requirement only
Department of Health,Imperial College Healthcare NHS Trust,16/06/2016,Non-Nhs Pay Recharge In: Med,Div Of Med & Integrated Care,London Central & West Unscheduled Care Collab,3379322,"182,721.44",Optional requirement only
Department of Health,Imperial College Healthcare NHS Trust,16/06/2016,Non-Nhs Pay Recharge In: Med,Div Of Med & Integrated Care,London Central & West Unscheduled Care Collab,3379323,"182,721.44",Optional requirement only
Department of Health,Imperial College Healthcare NHS Trust,16/06/2016,Non-Nhs Pay Recharge In: Med,Div Of Med & Integrated Care,London Central & West Unscheduled Care Collab,3379347,"43,928.56",Optional requirement only
Department of Health,Imperial College Healthcare NHS Trust,16/06/2016,Non-Nhs Pay Recharge In: Med,Div Of Med & Integrated Care,London Central & West Unscheduled Care Collab,3381642,"43,928.56",Optional requirement only
Department of Health,Imperial College Healthcare NHS Trust,16/06/2016,Non-Nhs Pay Rechge In Clerical,Div Of Med & Integrated Care,London Central & West Unscheduled Care Collab,3379321,"44,494.66",Optional requirement only
Department of Health,Imperial College Healthcare NHS Trust,16/06/2016,Non-Nhs Pay Rechge In Clerical,Div Of Med & Integrated Care,London Central & West Unscheduled Care Collab,3379322,"44,494.66",Optional requirement only
Department of Health,Imperial College Healthcare NHS Trust,16/06/2016,Non-Nhs Pay Rechge In Clerical,Div Of Med & Integrated Care,London Central & West Unscheduled Care Collab,3379323,"44,494.66",Optional requirement only
Department of Health,Imperial College Healthcare NHS Trust,16/06/2016,Organ Donor Expenses,Div Of Women & Clin Support,The Anthony Nolan Trust,3382377,"30,306.85",Optional requirement only
Department of Health,Imperial College Healthcare NHS Trust,16/06/2016,Other Research Exp - Pay,Rd Medicine Division,Imperial College London,3380044,"72,177.28",Optional requirement only
Department of Health,Imperial College Healthcare NHS Trust,16/06/2016,Other Research Exp - Pay,Rdwomen And Children Division,Imperial College London,3376824,"32,278.37",Optional requirement only
Department of Health,Imperial College Healthcare NHS Trust,16/06/2016,Other Research Exp - Pay,Rdwomen And Children Division,Imperial College London,3379427,"34,464.82",Optional requirement only
Department of Health,Imperial College Healthcare NHS Trust,16/06/2016,Purch Hcare Independent Sector,Div Of Med & Integrated Care,London Central & West Unscheduled Care Collab,3379321,"113,505.27",Optional requirement only
Department of Health,Imperial College Healthcare NHS Trust,16/06/2016,Purch Hcare Independent Sector,Div Of Med & Integrated Care,London Central & West Unscheduled Care Collab,3379322,"113,505.27",Optional requirement only
Department of Health,Imperial College Healthcare NHS Trust,16/06/2016,Purch Hcare Independent Sector,Div Of Med & Integrated Care,London Central & West Unscheduled Care Collab,3379323,"113,505.27",Optional requirement only
Department of Health,Imperial College Healthcare NHS Trust,16/06/2016,Rent,Div Of Med & Integrated Care,Nhs Property Services Ltd,3381485,"78,016.00",Optional requirement only
Department of Health,Imperial College Healthcare NHS Trust,16/06/2016,Stents,"Div Of Surg, Cardiov & Cancer",W L Gore & Associates (Uk) Ltd,3368043,"39,840.00",Optional requirement only
Department of Health,Imperial College Healthcare NHS Trust,16/06/2016,Supplies Issues Recharges,Stock,Nhs Supply Chain,3380124,"126,267.38",Optional requirement only
Department of Health,Imperial College Healthcare NHS Trust,16/06/2016,Supplies Issues Recharges,Stock,Nhs Supply Chain,3382371,"117,809.58",Optional requirement only
Department of Health,Imperial College Healthcare NHS Trust,16/06/2016,Supplies Issues Recharges,Stock,Nhs Supply Chain,3382372,"92,357.88",Optional requirement only
Department of Health,Imperial College Healthcare NHS Trust,16/06/2016,Supplies Issues Recharges,Stock,Nhs Supply Chain,3382382,"146,711.93",Optional requirement only
Department of Health,Imperial College Healthcare NHS Trust,17/06/2016,Computer Maintenance,"Div Of Surg, Cardiov & Cancer",Stat One Services,3353210,"52,438.80",Optional requirement only
Department of Health,Imperial College Healthcare NHS Trust,17/06/2016,Computer Maintenance,"Div Of Surg, Cardiov & Cancer",Stat One Services,3382535,"44,199.00",Optional requirement only
Department of Health,Imperial College Healthcare NHS Trust,20/06/2016,Income Tax Paye,Ichnt Balance Sheet,Hmrc Government Employers Account,3379706,"12,870,324.40",Optional requirement only
Department of Health,Imperial College Healthcare NHS Trust,21/06/2016,Buildings-Additions-Purchased,Capital Summary,Conduct Services Ltd,3384120,"38,628.00",Optional requirement only
Department of Health,Imperial College Healthcare NHS Trust,21/06/2016,Buildings-Additions-Purchased,Capital Summary,Maracom Ltd,3384592,"51,415.20",Optional requirement only
Department of Health,Imperial College Healthcare NHS Trust,21/06/2016,Buildings-Additions-Purchased,Capital Summary,T & B Contractors Ltd,3380194,"36,780.00",Optional requirement only
Department of Health,Imperial College Healthcare NHS Trust,21/06/2016,Computer Software/License,"Div Of Surg, Cardiov & Cancer",Erota Ltd,3383297,"43,118.69",Optional requirement only
Department of Health,Imperial College Healthcare NHS Trust,21/06/2016,Cx-Hh Consultant Load,Ichnt Balance Sheet,Dr Andrew Wright,3384173,"92,668.50",Optional requirement only
Department of Health,Imperial College Healthcare NHS Trust,21/06/2016,Cx-Hh Consultant Load,Ichnt Balance Sheet,Dr J. De La Fuente,3384177,"32,772.75",Optional requirement only
Department of Health,Imperial College Healthcare NHS Trust,21/06/2016,Cx-Hh Consultant Load,Ichnt Balance Sheet,Miss L Mcmullen Mr M Osborn,3384221,"31,589.00",Optional requirement only
Department of Health,Imperial College Healthcare NHS Trust,21/06/2016,Ext Contr Logistics,Finance Directorate,Dhl Supply Chain  (Former Excel),3382623,"140,854.42",Optional requirement only
Department of Health,Imperial College Healthcare NHS Trust,21/06/2016,Ext Contr Logistics,Finance Directorate,Dhl Supply Chain  (Former Excel),3382624,"140,854.40",Optional requirement only
Department of Health,Imperial College Healthcare NHS Trust,21/06/2016,Gbs - Main Bank Account,Ichnt Balance Sheet,Les Geonnais Limited,3383671,"1,565,000.00",Optional requirement only
Department of Health,Imperial College Healthcare NHS Trust,21/06/2016,Gbs - Main Bank Account,Ichnt Balance Sheet,Les Geonnais Limited,3383911,"1,565,000.00",Optional requirement only
Department of Health,Imperial College Healthcare NHS Trust,21/06/2016,Ic Pay Rechge In: Admin & Mgmt,Medical Director Summary,Imperial College London,3383712,"30,493.86",Optional requirement only
Department of Health,Imperial College Healthcare NHS Trust,21/06/2016,Jac - Stock,Stock,Alloga Uk Ltd,3383329,"55,146.00",Optional requirement only
Department of Health,Imperial College Healthcare NHS Trust,21/06/2016,Laboratory Test Kits,Pathology,Becton Dickinson Uk Ltd,3373460,"109,846.78",Optional requirement only
Department of Health,Imperial College Healthcare NHS Trust,21/06/2016,Med & Prof Fees (Imaging Cons),Ichnt Balance Sheet,Lindo Wing Radiology Llp,3384245,"132,440.25",Optional requirement only
Department of Health,Imperial College Healthcare NHS Trust,21/06/2016,Med & Surg Equip Leases,"Div Of Surg, Cardiov & Cancer",De Lage Landen Leasing Limited,3383034,"41,994.00",Optional requirement only
Department of Health,Imperial College Healthcare NHS Trust,21/06/2016,Med & Surg Equip Leases,"Div Of Surg, Cardiov & Cancer",De Lage Landen Leasing Limited,3383037,"41,994.00",Optional requirement only
Department of Health,Imperial College Healthcare NHS Trust,21/06/2016,Nhs Pay Recharge In: Med,Div Of Med & Integrated Care,Royal Borough Of Kensington & Chelsea,3383057,"30,000.00",Optional requirement only
Department of Health,Imperial College Healthcare NHS Trust,21/06/2016,P & M-Additions-Purchased,Capital Summary,Ge Medical Systems Limited,3383680,"112,889.68",Optional requirement only
Department of Health,Imperial College Healthcare NHS Trust,21/06/2016,Postage & Carriage,Nursing Directorate,Whistl London Limited,3377268,"50,444.38",Optional requirement only
Department of Health,Imperial College Healthcare NHS Trust,21/06/2016,Rates,Nursing Directorate,London Borough Hammersmith & Fulham,3383669,"139,073.00",Optional requirement only
Department of Health,Imperial College Healthcare NHS Trust,21/06/2016,Rates,Nursing Directorate,London Borough Hammersmith & Fulham,3383670,"158,719.00",Optional requirement only
Department of Health,Imperial College Healthcare NHS Trust,21/06/2016,Stents,"Div Of Surg, Cardiov & Cancer",W L Gore & Associates (Uk) Ltd,3383946,"39,840.00",Optional requirement only
Department of Health,Imperial College Healthcare NHS Trust,23/06/2016,Agency Nursing: Qualified,Div Of Med & Integrated Care,Reed,3386257,"62,038.34",Optional requirement only
Department of Health,Imperial College Healthcare NHS Trust,23/06/2016,Agency Nursing: Qualified,"Div Of Surg, Cardiov & Cancer",Reed,3386257,"82,749.48",Optional requirement only
Department of Health,Imperial College Healthcare NHS Trust,23/06/2016,Agency Scient & Prof Qualified,"Div Of Surg, Cardiov & Cancer",Reed,3386256,"33,382.83",Optional requirement only
Department of Health,Imperial College Healthcare NHS Trust,23/06/2016,Agency Scient & Prof Qualified,Div Of Women & Clin Support,Reed,3386256,"48,831.04",Optional requirement only
Department of Health,Imperial College Healthcare NHS Trust,23/06/2016,Buildings-Additions-Purchased,Capital Summary,Deanway Builders,3386228,"33,480.00",Optional requirement only
Department of Health,Imperial College Healthcare NHS Trust,23/06/2016,Buildings-Additions-Purchased,Capital Summary,Nightglade Limited,3371045,"65,395.62",Optional requirement only
Department of Health,Imperial College Healthcare NHS Trust,23/06/2016,Buildings-Additions-Purchased,Capital Summary,Playfords Limited,3371060,"80,884.44",Optional requirement only
Department of Health,Imperial College Healthcare NHS Trust,23/06/2016,Computer Software/License,Finance Directorate,Advanced Business Solutions,3386392,"119,295.00",Optional requirement only
Department of Health,Imperial College Healthcare NHS Trust,23/06/2016,Computer Software/License,Information & Comms Technology,Cerner Uk Ltd,3385569,"138,000.00",Optional requirement only
Department of Health,Imperial College Healthcare NHS Trust,23/06/2016,Computer Software/License,Information & Comms Technology,Cerner Uk Ltd,3385896,"149,520.00",Optional requirement only
Department of Health,Imperial College Healthcare NHS Trust,23/06/2016,Computer Software/License,Information & Comms Technology,Optimus It Infra Ltd,3375098,"35,245.66",Optional requirement only
Department of Health,Imperial College Healthcare NHS Trust,23/06/2016,Consultancy Fees,Finance Directorate,Rsm Uk Consulting Llp,3360293,"30,871.20",Optional requirement only
Department of Health,Imperial College Healthcare NHS Trust,23/06/2016,Consultancy Fees,Medical Director Summary,Fat Planet Ltd,3378534,"36,000.00",Optional requirement only
Department of Health,Imperial College Healthcare NHS Trust,23/06/2016,Electricity,Nursing Directorate,Edf Energy Customer Plc,3379653,"32,181.35",Optional requirement only
Department of Health,Imperial College Healthcare NHS Trust,23/06/2016,Electricity,Nursing Directorate,Edf Energy Customer Plc,3379654,"82,054.02",Optional requirement only
Department of Health,Imperial College Healthcare NHS Trust,23/06/2016,Electricity,Nursing Directorate,Edf Energy Customer Plc,3379657,"219,224.70",Optional requirement only
Department of Health,Imperial College Healthcare NHS Trust,23/06/2016,Electricity,Nursing Directorate,Edf Energy Customer Plc,3379660,"220,687.06",Optional requirement only
Department of Health,Imperial College Healthcare NHS Trust,23/06/2016,Ext Contract Portering,Nursing Directorate,Sodexo Limited,3372701,"450,366.06",Optional requirement only
Department of Health,Imperial College Healthcare NHS Trust,23/06/2016,Ext Contr Catering,Nursing Directorate,Sodexo Limited,3372701,"616,582.46",Optional requirement only
Department of Health,Imperial College Healthcare NHS Trust,23/06/2016,Ext Contr Domestics,Nursing Directorate,Sodexo Limited,3372701,"1,199,406.14",Optional requirement only
Department of Health,Imperial College Healthcare NHS Trust,23/06/2016,Ext Contr Oth Hotel Srv,Nursing Directorate,Sodexo Limited,3372701,"89,174.20",Optional requirement only
Department of Health,Imperial College Healthcare NHS Trust,23/06/2016,Jac - Stock,Stock,Genzyme Therapeutics Ltd,3377711,"42,270.00",Optional requirement only
Department of Health,Imperial College Healthcare NHS Trust,23/06/2016,Jac - Stock,Stock,Roche Products Ltd,3375073,"102,234.94",Optional requirement only
Department of Health,Imperial College Healthcare NHS Trust,23/06/2016,Med & Surg Equip General,Div Of Women & Clin Support,Alliance Diagnostic Services Ltd,3384749,"77,881.20",Optional requirement only
Department of Health,Imperial College Healthcare NHS Trust,23/06/2016,Other Research Exp - Non-Pay,Rd Medical Directorate,Multiple Sclerosis Trials Collaboration,3383677,"79,290.00",Optional requirement only
Department of Health,Imperial College Healthcare NHS Trust,28/06/2016,Acton Housing Association,Housing Deductions,A2dominion Housing Group Ltd,3389029,"184,304.11",Optional requirement only
Department of Health,Imperial College Healthcare NHS Trust,28/06/2016,Agency Admin & Clerical,Information & Comms Technology,Ideal Health Consultants Ltd,3389062,"31,441.80",Optional requirement only
Department of Health,Imperial College Healthcare NHS Trust,28/06/2016,Agency Nursing: Qualified,Div Of Med & Integrated Care,Reed,3388393,"59,084.54",Optional requirement only
Department of Health,Imperial College Healthcare NHS Trust,28/06/2016,Agency Nursing: Qualified,"Div Of Surg, Cardiov & Cancer",Reed,3388393,"47,058.28",Optional requirement only
Department of Health,Imperial College Healthcare NHS Trust,28/06/2016,Agency Nursing: Qualified,Div Of Women & Clin Support,Reed,3388393,"32,839.39",Optional requirement only
Department of Health,Imperial College Healthcare NHS Trust,28/06/2016,Agency Scient & Prof Qualified,Div Of Women & Clin Support,Reed,3388030,"30,731.83",Optional requirement only
Department of Health,Imperial College Healthcare NHS Trust,28/06/2016,Agency Scient & Prof Qualified,Div Of Women & Clin Support,Reed,3388335,"38,174.50",Optional requirement only
Department of Health,Imperial College Healthcare NHS Trust,28/06/2016,Agency Scient & Prof Qualified,Pathology,Reed,3388335,"30,957.80",Optional requirement only
Department of Health,Imperial College Healthcare NHS Trust,28/06/2016,Agency Senior Manager,Finance Directorate,Rsm Uk Consulting Llp,3387798,"30,871.20",Optional requirement only
Department of Health,Imperial College Healthcare NHS Trust,28/06/2016,Audit Fees: Internal,Finance Directorate,Tiaa Ltd,3389281,"69,675.00",Optional requirement only
Department of Health,Imperial College Healthcare NHS Trust,28/06/2016,Buildings-Additions-Purchased,Capital Summary,Alarm Communication Limited,3380760,"36,120.00",Optional requirement only
Department of Health,Imperial College Healthcare NHS Trust,28/06/2016,Buildings-Additions-Purchased,Capital Summary,Metricab Power Engineering Ltd,3386490,"64,405.07",Optional requirement only
Department of Health,Imperial College Healthcare NHS Trust,28/06/2016,Buildings-Add(Prof Fee)-Purch,Capital Summary,Dp9,3374771,"33,855.88",Optional requirement only
Department of Health,Imperial College Healthcare NHS Trust,28/06/2016,Clinical Managed Service Contr,"Div Of Surg, Cardiov & Cancer",Chas A Blatchford And Sons Ltd,3375660,"46,259.60",Optional requirement only
Department of Health,Imperial College Healthcare NHS Trust,28/06/2016,Consultancy Fees,Div Of Med & Integrated Care,Private Public Ltd,3389006,"34,710.00",Optional requirement only
Department of Health,Imperial College Healthcare NHS Trust,28/06/2016,Consultancy Fees,Div Of Women & Clin Support,Cloud 21 Limited,3378862,"43,166.40",Optional requirement only
Department of Health,Imperial College Healthcare NHS Trust,28/06/2016,Consultancy Fees,Finance Directorate,Rsm Uk Consulting Llp,3387801,"42,000.00",Optional requirement only
Department of Health,Imperial College Healthcare NHS Trust,28/06/2016,Dialysers,Div Of Med & Integrated Care,Baxter Healthcare Ltd,3380803,"77,952.29",Optional requirement only
Department of Health,Imperial College Healthcare NHS Trust,28/06/2016,Ext Contr Oth Hotel Srv,Private Patients Directorate,Sodexo Limited,3385815,"165,075.94",Optional requirement only
Department of Health,Imperial College Healthcare NHS Trust,28/06/2016,Gas,Nursing Directorate,Corona Energy,3379840,"46,814.16",Optional requirement only
Department of Health,Imperial College Healthcare NHS Trust,28/06/2016,Gas,Nursing Directorate,Corona Energy,3379847,"30,147.50",Optional requirement only
Department of Health,Imperial College Healthcare NHS Trust,28/06/2016,Gas,Nursing Directorate,Corona Energy,3379851,"74,889.92",Optional requirement only
Department of Health,Imperial College Healthcare NHS Trust,28/06/2016,Gas,Nursing Directorate,Corona Energy,3379854,"49,084.34",Optional requirement only
Department of Health,Imperial College Healthcare NHS Trust,28/06/2016,It Eqpt-Additions,Capital Summary,Oracle Corporation Uk Ltd,3381488,"457,526.64",Optional requirement only
Department of Health,Imperial College Healthcare NHS Trust,28/06/2016,Patients Appl: Purchase,"Div Of Surg, Cardiov & Cancer",Chas A Blatchford And Sons Ltd,3375097,"36,548.21",Optional requirement only
Department of Health,Imperial College Healthcare NHS Trust,28/06/2016,Thames Valley Housing Assoc,Housing Deductions,Thames Valley Charitable Housing,3389030,"110,601.48",Optional requirement only
Department of Health,Imperial College Healthcare NHS Trust,28/06/2016,Transcription Services,Div Of Med & Integrated Care,Dictate It Ltd,3379631,"33,381.59",Optional requirement only
Department of Health,Imperial College Healthcare NHS Trust,28/06/2016,Transcription Services,"Div Of Surg, Cardiov & Cancer",Dictate It Ltd,3379633,"37,320.18",Optional requirement only
Department of Health,Imperial College Healthcare NHS Trust,30/06/2016,Supplies Issues Recharges,Stock,Nhs Supply Chain,3391189,"96,632.33",Optional requirement only
Department of Health,Imperial College Healthcare NHS Trust,05/07/2016,Agency Nursing: Qualified,Div Of Med & Integrated Care,Reed,3392880,"179,111.31",Optional requirement only
Department of Health,Imperial College Healthcare NHS Trust,05/07/2016,Agency Nursing: Qualified,"Div Of Surg, Cardiov & Cancer",Reed,3392880,"162,303.52",Optional requirement only
Department of Health,Imperial College Healthcare NHS Trust,05/07/2016,Agency Nursing: Qualified,Div Of Women & Clin Support,Reed,3392880,"59,823.67",Optional requirement only
Department of Health,Imperial College Healthcare NHS Trust,05/07/2016,Agency Scient & Prof Qualified,Div Of Women & Clin Support,Reed,3392863,"40,841.27",Optional requirement only
Department of Health,Imperial College Healthcare NHS Trust,05/07/2016,Buildings-Add(Prof Fee)-Purch,Capital Summary,Kpmg Llp,3390571,"117,073.20",Optional requirement only
Department of Health,Imperial College Healthcare NHS Trust,05/07/2016,Cleaning Materials,Nursing Directorate,Synergy Health Managed Services Ltd,3390987,"41,005.07",Optional requirement only
Department of Health,Imperial College Healthcare NHS Trust,05/07/2016,Computer Software/License,Medical Director Summary,Premier It Ltd,3390449,"41,652.00",Optional requirement only
Department of Health,Imperial College Healthcare NHS Trust,05/07/2016,Consultancy Fees,Finance Directorate,Oxygen Finance Ltd,3386379,"63,477.60",Optional requirement only
Department of Health,Imperial College Healthcare NHS Trust,05/07/2016,Consultancy Fees,Finance Directorate,Salford Royal Nhs Foundation Trust,3374919,"34,215.00",Optional requirement only
Department of Health,Imperial College Healthcare NHS Trust,05/07/2016,Consultancy Fees,Information & Comms Technology,Ideal Health Consultants Ltd,3391149,"75,342.65",Optional requirement only
Department of Health,Imperial College Healthcare NHS Trust,05/07/2016,Drugs Nhs,Div Of Women & Clin Support,Nhs Business Services Authority,3351569,"39,049.69",Optional requirement only
Department of Health,Imperial College Healthcare NHS Trust,05/07/2016,Drugs Nhs,Div Of Women & Clin Support,Nhs Business Services Authority,3366348,"43,102.41",Optional requirement only
Department of Health,Imperial College Healthcare NHS Trust,05/07/2016,Ext Contr Laundry,Nursing Directorate,Synergy Health Managed Services Ltd,3390988,"50,652.74",Optional requirement only
Department of Health,Imperial College Healthcare NHS Trust,05/07/2016,Ext Contr Laundry,Nursing Directorate,Synergy Health Managed Services Ltd,3390989,"48,105.08",Optional requirement only
Department of Health,Imperial College Healthcare NHS Trust,05/07/2016,Ext Contr Laundry,Nursing Directorate,Synergy Health Managed Services Ltd,3390990,"49,248.64",Optional requirement only
Department of Health,Imperial College Healthcare NHS Trust,05/07/2016,Isotopes,Div Of Women & Clin Support,Siemens Healthcare Plc,3390278,"32,400.00",Optional requirement only
Department of Health,Imperial College Healthcare NHS Trust,05/07/2016,Isotopes,Div Of Women & Clin Support,Siemens Healthcare Plc,3390279,"32,760.00",Optional requirement only
Department of Health,Imperial College Healthcare NHS Trust,05/07/2016,Jac - Stock,Stock,Csl Behring Uk Ltd,3385970,"56,358.00",Optional requirement only
Department of Health,Imperial College Healthcare NHS Trust,05/07/2016,Jac - Stock,Stock,Qualasept Ltd,3390785,"149,160.00",Optional requirement only
Department of Health,Imperial College Healthcare NHS Trust,05/07/2016,Jac - Stock,Stock,Roche Products Ltd,3374913,"76,391.04",Optional requirement only
Department of Health,Imperial College Healthcare NHS Trust,05/07/2016,Jac - Stock,Stock,Roche Products Ltd,3382081,"42,448.20",Optional requirement only
Department of Health,Imperial College Healthcare NHS Trust,05/07/2016,Other Gen Supplies & Srv,Information & Comms Technology,Crown Records Management,3390574,"36,125.10",Optional requirement only
Department of Health,Imperial College Healthcare NHS Trust,05/07/2016,Other Research Exp - Non-Pay,Rd Medicine Division,Imperial College London,3390576,"88,518.59",Optional requirement only
Department of Health,Imperial College Healthcare NHS Trust,05/07/2016,Phone Rental And Calls,Information & Comms Technology,Virgin Media Business  Ltd,3375659,"71,189.64",Optional requirement only
Department of Health,Imperial College Healthcare NHS Trust,05/07/2016,Phone Rental And Calls,Information & Comms Technology,Virgin Media Business  Ltd,3377371,"77,397.55",Optional requirement only
Department of Health,Imperial College Healthcare NHS Trust,05/07/2016,Services Received - Nhsts,Div Of Med & Integrated Care,West London Mental Health Nhs Trust,3379344,"49,054.00",Optional requirement only
Department of Health,Imperial College Healthcare NHS Trust,05/07/2016,Services Received - Nhsts,Div Of Women & Clin Support,Chelsea And  Westminster Hospital Nhs,3393257,"51,136.50",Optional requirement only
Department of Health,Imperial College Healthcare NHS Trust,05/07/2016,Srvcsrecd-Foundationtrust,Pathology,Chelsea And  Westminster Hospital Nhs,3391803,"39,308.83",Optional requirement only
Department of Health,Imperial College Healthcare NHS Trust,05/07/2016,Srvcsrecd-Foundationtrust,Pathology,Chelsea And  Westminster Hospital Nhs,3391806,"39,308.83",Optional requirement only
Department of Health,Imperial College Healthcare NHS Trust,07/07/2016,Blood Products,Pathology,Nhs Blood And Transplant,3389037,"31,031.20",Optional requirement only
Department of Health,Imperial College Healthcare NHS Trust,07/07/2016,Buildings-Additions-Purchased,Capital Summary,Eta  Projects Ltd,3395019,"30,186.00",Optional requirement only
Department of Health,Imperial College Healthcare NHS Trust,07/07/2016,Computer Software/License,Information & Comms Technology,Cerner Uk Ltd,3395016,"149,520.00",Optional requirement only
Department of Health,Imperial College Healthcare NHS Trust,07/07/2016,Computer Software/License,Information & Comms Technology,Cerner Uk Ltd,3395020,"149,520.00",Optional requirement only
Department of Health,Imperial College Healthcare NHS Trust,07/07/2016,Jac - Stock,Stock,Roche Products Ltd,3381979,"35,445.84",Optional requirement only
Department of Health,Imperial College Healthcare NHS Trust,07/07/2016,Laboratory Test Kits,Pathology,Becton Dickinson Uk Ltd,3389080,"77,167.40",Optional requirement only
Department of Health,Imperial College Healthcare NHS Trust,07/07/2016,Supplies Issues Recharges,Stock,Nhs Supply Chain,3392625,"133,304.58",Optional requirement only
Department of Health,Imperial College Healthcare NHS Trust,07/07/2016,Supplies Issues Recharges,Stock,Nhs Supply Chain,3392631,"111,645.10",Optional requirement only
Department of Health,Imperial College Healthcare NHS Trust,07/07/2016,Supplies Issues Recharges,Stock,Nhs Supply Chain,3392638,"102,918.60",Optional requirement only
Department of Health,Imperial College Healthcare NHS Trust,07/07/2016,Supplies Issues Recharges,Stock,Nhs Supply Chain,3392651,"144,649.84",Optional requirement only
Department of Health,Imperial College Healthcare NHS Trust,07/07/2016,Supplies Issues Recharges,Stock,Nhs Supply Chain,3392675,"108,758.93",Optional requirement only
Department of Health,Imperial College Healthcare NHS Trust,12/07/2016,Buildings-Add(Prof Fee)-Purch,Capital Summary,Alarm Communication Limited,3396442,"101,627.72",Optional requirement only
Department of Health,Imperial College Healthcare NHS Trust,12/07/2016,Buildings-Add(Prof Fee)-Purch,Capital Summary,Alarm Communication Limited,3396443,"35,123.28",Optional requirement only
Department of Health,Imperial College Healthcare NHS Trust,12/07/2016,Clinical Managed Service Contr,"Div Of Surg, Cardiov & Cancer",Medtronic Ltd,3385760,"469,186.26",Optional requirement only
Department of Health,Imperial College Healthcare NHS Trust,12/07/2016,Clinical Managed Service Contr,"Div Of Surg, Cardiov & Cancer",Medtronic Ltd,3385858,"679,635.18",Optional requirement only
Department of Health,Imperial College Healthcare NHS Trust,12/07/2016,Consultancy Fees,Nursing Directorate,Dixon Walter Ltd,3396713,"30,960.00",Optional requirement only
Department of Health,Imperial College Healthcare NHS Trust,12/07/2016,Ext Contr Catering,Nursing Directorate,Sodexo Limited,3395096,"41,482.21",Optional requirement only
Department of Health,Imperial College Healthcare NHS Trust,12/07/2016,Ext Contr Catering,Nursing Directorate,Sodexo Limited,3395100,"39,737.54",Optional requirement only
Department of Health,Imperial College Healthcare NHS Trust,12/07/2016,Gbs - Main Bank Account,Ravenscourt Directorate,Les Geonnais Limited,3398185,"1,565,000.00",Optional requirement only
Department of Health,Imperial College Healthcare NHS Trust,12/07/2016,Jac - Stock,Stock,Qualasept Ltd,3396486,"68,443.20",Optional requirement only
Department of Health,Imperial College Healthcare NHS Trust,12/07/2016,Jac - Stock,Stock,Roche Products Ltd,3386328,"74,570.35",Optional requirement only
Department of Health,Imperial College Healthcare NHS Trust,12/07/2016,Med & Surg Equip Repair,Nursing Directorate,Ge Medical Systems Limited,3381999,"702,606.50",Optional requirement only
Department of Health,Imperial College Healthcare NHS Trust,12/07/2016,Med & Surg Equip Repair,Nursing Directorate,Ge Medical Systems Limited,3382000,"742,242.40",Optional requirement only
Department of Health,Imperial College Healthcare NHS Trust,12/07/2016,Med & Surg Equip Repair,Nursing Directorate,Ge Medical Systems Limited,3382001,"721,857.55",Optional requirement only
Department of Health,Imperial College Healthcare NHS Trust,12/07/2016,Nhs Pay Recharge In: Med,"Div Of Surg, Cardiov & Cancer",Guys And St Thomas Nhs Foundation Trust,3353174,"46,300.00",Optional requirement only
Department of Health,Imperial College Healthcare NHS Trust,12/07/2016,Organ Donor Expenses,"Div Of Surg, Cardiov & Cancer",The Anthony Nolan Trust,3396654,"34,419.60",Optional requirement only
Department of Health,Imperial College Healthcare NHS Trust,12/07/2016,Rates,Nursing Directorate,City Of Westminster,3397087,"119,944.00",Optional requirement only
Department of Health,Imperial College Healthcare NHS Trust,12/07/2016,Rent,Nursing Directorate,Thames Valley Charitable Housing,3397349,"42,028.71",Optional requirement only
Department of Health,Imperial College Healthcare NHS Trust,12/07/2016,Services Received - Nhsts,Private Patients Directorate,St George'S University Hospital Nhs,3396807,"52,320.00",Optional requirement only
Department of Health,Imperial College Healthcare NHS Trust,12/07/2016,Srvcsrecd-Other Nhs,"Div Of Surg, Cardiov & Cancer",Guys And St Thomas Nhs Foundation Trust,3361916,"37,078.10",Optional requirement only
Department of Health,Imperial College Healthcare NHS Trust,12/07/2016,Supplies Issues Recharges,Stock,Nhs Supply Chain,3397292,"99,306.97",Optional requirement only
Department of Health,Imperial College Healthcare NHS Trust,12/07/2016,Supplies Issues Recharges,Stock,Nhs Supply Chain,3397302,"84,426.95",Optional requirement only
Department of Health,Imperial College Healthcare NHS Trust,14/07/2016,Blood Products,Pathology,Nhs Blood And Transplant,3384591,"60,345.25",Optional requirement only
Department of Health,Imperial College Healthcare NHS Trust,14/07/2016,Clinical Managed Service Contr,Pathology,Beckman Coulter Uk Ltd,3385633,"156,344.51",Optional requirement only
Department of Health,Imperial College Healthcare NHS Trust,14/07/2016,Computer Software/License,Information & Comms Technology,Optimus It Infra Ltd,3394264,"33,858.00",Optional requirement only
Department of Health,Imperial College Healthcare NHS Trust,14/07/2016,Computer Software/License,Medical Director Summary,Hicom Technology Ltd,3384588,"50,580.00",Optional requirement only
Department of Health,Imperial College Healthcare NHS Trust,14/07/2016,Contr Refuse & Clin Waste,Nursing Directorate,Grundon Waste Management Ltd,3397815,"30,827.09",Optional requirement only
Department of Health,Imperial College Healthcare NHS Trust,14/07/2016,Decontamination Services,Nursing Directorate,Berendsen Uk,3388016,"325,014.85",Optional requirement only
Department of Health,Imperial College Healthcare NHS Trust,14/07/2016,Dist Award - Local Cea,Div Of Med & Integrated Care,Imperial College London,3397474,"42,180.19",Optional requirement only
Department of Health,Imperial College Healthcare NHS Trust,14/07/2016,Dist Award - Nat Cea,Div Of Med & Integrated Care,Imperial College London,3397474,"87,771.67",Optional requirement only
Department of Health,Imperial College Healthcare NHS Trust,14/07/2016,Dist Award - Nat Cea,"Div Of Surg, Cardiov & Cancer",Imperial College London,3397474,"81,341.75",Optional requirement only
Department of Health,Imperial College Healthcare NHS Trust,14/07/2016,Dist Award - Nat Cea,Div Of Women & Clin Support,Imperial College London,3397474,"52,851.82",Optional requirement only
Department of Health,Imperial College Healthcare NHS Trust,14/07/2016,Dist Award - Nat Cea,Medical Director Summary,Imperial College London,3397474,"28,796.85",Optional requirement only
Department of Health,Imperial College Healthcare NHS Trust,14/07/2016,Ext Contract - Patient Travel,Div Of Med & Integrated Care,Dhl Supply Chain  (Former Excel),3383914,"762,435.41",Optional requirement only
Department of Health,Imperial College Healthcare NHS Trust,14/07/2016,Ext Contract - Patient Travel,"Div Of Surg, Cardiov & Cancer",Dhl Supply Chain  (Former Excel),3383914,"240,758.05",Optional requirement only
Department of Health,Imperial College Healthcare NHS Trust,14/07/2016,Ext Contract - Patient Travel,Finance Directorate,Dhl Supply Chain  (Former Excel),3383914,"47,118.23",Optional requirement only
Department of Health,Imperial College Healthcare NHS Trust,14/07/2016,Ext Contract - Patient Travel,Nursing Directorate,Dhl Supply Chain  (Former Excel),3388025,"52,544.00",Optional requirement only
Department of Health,Imperial College Healthcare NHS Trust,14/07/2016,Ext Contr Logistics,Finance Directorate,Dhl Supply Chain  (Former Excel),3384578,"140,446.18",Optional requirement only
Department of Health,Imperial College Healthcare NHS Trust,14/07/2016,Ic Pay Recharge In: Med,Div Of Med & Integrated Care,Imperial College London,3397474,"70,115.79",Optional requirement only
Department of Health,Imperial College Healthcare NHS Trust,14/07/2016,Ic Pay Recharge In: Med,Div Of Med & Integrated Care,Imperial College London,3397475,"130,062.67",Optional requirement only
Department of Health,Imperial College Healthcare NHS Trust,14/07/2016,Ic Pay Recharge In: Med,Div Of Med & Integrated Care,Imperial College London,3397477,"25,379.53",Optional requirement only
Department of Health,Imperial College Healthcare NHS Trust,14/07/2016,Ic Pay Recharge In: Med,"Div Of Surg, Cardiov & Cancer",Imperial College London,3397474,"115,250.25",Optional requirement only
Department of Health,Imperial College Healthcare NHS Trust,14/07/2016,Ic Pay Recharge In: Med,"Div Of Surg, Cardiov & Cancer",Imperial College London,3397475,"213,125.00",Optional requirement only
Department of Health,Imperial College Healthcare NHS Trust,14/07/2016,Ic Pay Recharge In: Med,Div Of Women & Clin Support,Imperial College London,3397475,"63,141.51",Optional requirement only
Department of Health,Imperial College Healthcare NHS Trust,14/07/2016,Jac - Stock,Stock,Genzyme Therapeutics Ltd,3390073,"109,902.00",Optional requirement only
Department of Health,Imperial College Healthcare NHS Trust,14/07/2016,Jac - Stock,Stock,Janssen-Cilag Ltd,3391570,"33,849.67",Optional requirement only
Department of Health,Imperial College Healthcare NHS Trust,14/07/2016,Other Transport Costs,Pathology,Dhl Supply Chain  (Former Excel),3386434,"78,951.28",Optional requirement only
Department of Health,Imperial College Healthcare NHS Trust,14/07/2016,Taxi & Other Vehicle Hire,Nursing Directorate,Dhl Supply Chain  (Former Excel),3388028,"65,427.98",Optional requirement only
Department of Health,Imperial College Healthcare NHS Trust,14/07/2016,Water,Nursing Directorate,Thames Water Utilities Limited,3396857,"48,464.36",Optional requirement only
Department of Health,Imperial College Healthcare NHS Trust,14/07/2016,Water,Nursing Directorate,Thames Water Utilities Limited,3398700,"26,122.36",Optional requirement only
Department of Health,Imperial College Healthcare NHS Trust,18/07/2016,Supplies Issues Recharges,Stock,Nhs Supply Chain,3398463,"141,576.03",Optional requirement only
Department of Health,Imperial College Healthcare NHS Trust,19/07/2016,Clinical Managed Service Contr,Pathology,Genmed.Me Ltd,3389906,"626,341.42",Optional requirement only
Department of Health,Imperial College Healthcare NHS Trust,19/07/2016,Clinical Managed Service Contr,Pathology,Genmed.Me Ltd,3393452,"86,035.49",Optional requirement only
Department of Health,Imperial College Healthcare NHS Trust,19/07/2016,Clinical Managed Service Contr,Pathology,Genmed.Me Ltd,3393456,"140,534.33",Optional requirement only
Department of Health,Imperial College Healthcare NHS Trust,19/07/2016,Cnst Contributions,Other Hq Departments,Nhs Litigation Authority,3400578,"2,757,489.00",Optional requirement only
Department of Health,Imperial College Healthcare NHS Trust,19/07/2016,Computer Software/License,Information & Comms Technology,Cerner Uk Ltd,3399551,"149,520.00",Optional requirement only
Department of Health,Imperial College Healthcare NHS Trust,19/07/2016,Drugs Nhs,Div Of Women & Clin Support,Lloyds Retail Chemists Ltd,3392619,"3,793,351.33",Optional requirement only
Department of Health,Imperial College Healthcare NHS Trust,19/07/2016,Insurance Costs,Office Of Chief Executive,Nhs Litigation Authority,3400579,"45,941.00",Optional requirement only
Department of Health,Imperial College Healthcare NHS Trust,19/07/2016,Items Pending Investigation,Ichnt Balance Sheet,London North West Healthcare Nhs Trust,3399014,"209,140.57",Optional requirement only
Department of Health,Imperial College Healthcare NHS Trust,19/07/2016,It Eqpt-Additions,Capital Summary,Mckesson Information Solutions (Uk) Ltd,3360097,"33,672.00",Optional requirement only
Department of Health,Imperial College Healthcare NHS Trust,19/07/2016,It Eqpt-Additions,Capital Summary,Mckesson Technologies Uk Ltd,3400370,"33,672.00",Optional requirement only
Department of Health,Imperial College Healthcare NHS Trust,19/07/2016,Jac - Stock,Stock,Csl Behring Uk Ltd,3388447,"81,468.00",Optional requirement only
Department of Health,Imperial College Healthcare NHS Trust,19/07/2016,Jac - Stock,Stock,Novartis Pharmaceutical (Uk) Ltd,3397496,"54,492.48",Optional requirement only
Department of Health,Imperial College Healthcare NHS Trust,19/07/2016,Med & Surg Equip General,"Div Of Surg, Cardiov & Cancer",Parkside Hospital,3385867,"91,125.00",Optional requirement only
Department of Health,Imperial College Healthcare NHS Trust,19/07/2016,Med & Surg Equip Leases,"Div Of Surg, Cardiov & Cancer",De Lage Landen Leasing Limited,3401239,"41,994.00",Optional requirement only
Department of Health,Imperial College Healthcare NHS Trust,19/07/2016,Other Research Exp - Pay,Rd Medicine Division,Imperial College London,3397260,"37,985.26",Optional requirement only
Department of Health,Imperial College Healthcare NHS Trust,19/07/2016,Other Research Exp - Pay,Rd Medicine Division,Imperial College London,3399689,"34,785.89",Optional requirement only
Department of Health,Imperial College Healthcare NHS Trust,19/07/2016,Other Research Exp - Pay,Rd Medicine Division,Imperial College London,3400688,"72,177.28",Optional requirement only
Department of Health,Imperial College Healthcare NHS Trust,19/07/2016,Other Research Exp - Pay,Rd Surgery & Cancer Division,Imperial College London,3399703,"28,883.71",Optional requirement only
Department of Health,Imperial College Healthcare NHS Trust,19/07/2016,Other Research Exp - Pay,Rdwomen And Children Division,Imperial College London,3397268,"42,133.37",Optional requirement only
Department of Health,Imperial College Healthcare NHS Trust,19/07/2016,P & M-Additions-Purchased,Capital Summary,H + C Contracts Ltd,3401134,"48,780.11",Optional requirement only
Department of Health,Imperial College Healthcare NHS Trust,19/07/2016,Provisions,Office Of Chief Executive,Imperial College London,3397255,"262,000.00",Optional requirement only
Department of Health,Imperial College Healthcare NHS Trust,19/07/2016,Provisions,Office Of Chief Executive,Imperial College London,3397259,"38,869.00",Optional requirement only
Department of Health,Imperial College Healthcare NHS Trust,19/07/2016,Rates,Nursing Directorate,London Borough Hammersmith & Fulham,3400581,"139,073.00",Optional requirement only
Department of Health,Imperial College Healthcare NHS Trust,19/07/2016,Rates,Nursing Directorate,London Borough Hammersmith & Fulham,3400582,"158,719.00",Optional requirement only
Department of Health,Imperial College Healthcare NHS Trust,20/07/2016,Income Tax Paye,Ichnt Balance Sheet,Hmrc Government Employers Account,3400020,"12,952,078.12",Optional requirement only
Department of Health,Imperial College Healthcare NHS Trust,21/07/2016,Blood Products,Pathology,Nhs Blood And Transplant,3401773,"60,345.25",Optional requirement only
Department of Health,Imperial College Healthcare NHS Trust,21/07/2016,Blood Products,Pathology,Nhs Blood And Transplant,3401774,"60,345.25",Optional requirement only
Department of Health,Imperial College Healthcare NHS Trust,21/07/2016,Blood Products,Pathology,Nhs Blood And Transplant,3402437,"312,901.75",Optional requirement only
Department of Health,Imperial College Healthcare NHS Trust,21/07/2016,Blood Products,Pathology,Nhs Blood And Transplant,3402439,"312,901.75",Optional requirement only
Department of Health,Imperial College Healthcare NHS Trust,21/07/2016,Blood Products,Pathology,Nhs Blood And Transplant,3402444,"312,901.75",Optional requirement only
Department of Health,Imperial College Healthcare NHS Trust,21/07/2016,Electricity,Nursing Directorate,Edf Energy Customer Plc,3398690,"32,040.05",Optional requirement only
Department of Health,Imperial College Healthcare NHS Trust,21/07/2016,Electricity,Nursing Directorate,Edf Energy Customer Plc,3398691,"83,048.36",Optional requirement only
Department of Health,Imperial College Healthcare NHS Trust,21/07/2016,Electricity,Nursing Directorate,Edf Energy Customer Plc,3398696,"232,614.08",Optional requirement only
Department of Health,Imperial College Healthcare NHS Trust,21/07/2016,Ext Contract Portering,Nursing Directorate,Sodexo Limited,3389907,"450,366.06",Optional requirement only
Department of Health,Imperial College Healthcare NHS Trust,21/07/2016,Ext Contr Catering,Nursing Directorate,Sodexo Limited,3389907,"616,582.46",Optional requirement only
Department of Health,Imperial College Healthcare NHS Trust,21/07/2016,Ext Contr Domestics,Nursing Directorate,Sodexo Limited,3389907,"1,199,406.14",Optional requirement only
Department of Health,Imperial College Healthcare NHS Trust,21/07/2016,Ext Contr Oth Hotel Srv,Nursing Directorate,Sodexo Limited,3389907,"89,174.20",Optional requirement only
Department of Health,Imperial College Healthcare NHS Trust,21/07/2016,It Eqpt-Additions,Capital Summary,Sdx Services Ltd,3401202,"92,778.00",Optional requirement only
Department of Health,Imperial College Healthcare NHS Trust,21/07/2016,Jac - Stock,Stock,Novartis Pharmaceutical (Uk) Ltd,3390075,"57,697.92",Optional requirement only
Department of Health,Imperial College Healthcare NHS Trust,21/07/2016,Jac - Stock,Stock,Roche Products Ltd,3395683,"73,332.00",Optional requirement only
Department of Health,Imperial College Healthcare NHS Trust,21/07/2016,Jac - Stock,Stock,Roche Products Ltd,3402837,"31,507.44",Optional requirement only
Department of Health,Imperial College Healthcare NHS Trust,21/07/2016,Jac - Stock,Stock,Roche Products Ltd,3402838,"61,110.00",Optional requirement only
Department of Health,Imperial College Healthcare NHS Trust,21/07/2016,Jac - Stock,Stock,Roche Products Ltd,3402847,"52,389.00",Optional requirement only
Department of Health,Imperial College Healthcare NHS Trust,21/07/2016,Med & Surg Equip Hire,Div Of Women & Clin Support,Medical Research Council,3401811,"40,560.00",Optional requirement only
Department of Health,Imperial College Healthcare NHS Trust,21/07/2016,Other Research Exp - Pay,Rd Surgery & Cancer Division,Imperial College London,3401982,"28,668.21",Optional requirement only
Department of Health,Imperial College Healthcare NHS Trust,21/07/2016,P & M-Additions-Purchased,Capital Summary,Draeger Medical Uk Ltd,3402408,"35,123.89",Optional requirement only
Department of Health,Imperial College Healthcare NHS Trust,25/07/2016,Childcare Voucher (Kids Unltd),Childcare Vouchers,Dnu P And Mm Limited[Replaced By 042127],3396876,"72,954.93",Optional requirement only
Department of Health,Imperial College Healthcare NHS Trust,25/07/2016,Supplies Issues Recharges,Stock,Nhs Supply Chain,3403422,"88,711.26",Optional requirement only
Department of Health,Imperial College Healthcare NHS Trust,25/07/2016,Supplies Issues Recharges,Stock,Nhs Supply Chain,3403424,"95,337.65",Optional requirement only
Department of Health,Imperial College Healthcare NHS Trust,26/07/2016,Agency Nursing: Qualified,Div Of Med & Integrated Care,Reed,3404090,"110,984.07",Optional requirement only
Department of Health,Imperial College Healthcare NHS Trust,26/07/2016,Agency Nursing: Qualified,"Div Of Surg, Cardiov & Cancer",Reed,3404090,"89,739.30",Optional requirement only
Department of Health,Imperial College Healthcare NHS Trust,26/07/2016,Agency Nursing: Qualified,Div Of Women & Clin Support,Reed,3404090,"62,065.78",Optional requirement only
Department of Health,Imperial College Healthcare NHS Trust,26/07/2016,Agency Scient & Prof Qualified,Div Of Women & Clin Support,Reed,3404092,"31,725.67",Optional requirement only
Department of Health,Imperial College Healthcare NHS Trust,26/07/2016,Blood Products,Pathology,Nhs Blood And Transplant,3403389,"60,345.25",Optional requirement only
Department of Health,Imperial College Healthcare NHS Trust,26/07/2016,Buildings-Additions-Purchased,Capital Summary,Nightglade Limited,3392887,"39,950.88",Optional requirement only
Department of Health,Imperial College Healthcare NHS Trust,26/07/2016,Buildings-Additions-Purchased,Capital Summary,Playfords Limited,3397321,"47,701.02",Optional requirement only
Department of Health,Imperial College Healthcare NHS Trust,26/07/2016,Buildings-Add(Prof Fee)-Purch,Capital Summary,Kpmg Llp,3404641,"31,800.00",Optional requirement only
Department of Health,Imperial College Healthcare NHS Trust,26/07/2016,Buildings-Add(Prof Fee)-Purch,Capital Summary,Kpmg Llp,3404642,"55,096.80",Optional requirement only
Department of Health,Imperial College Healthcare NHS Trust,26/07/2016,Buildings-Add(Prof Fee)-Purch,Capital Summary,Murphy Philipps Associates Llp,3399063,"36,474.66",Optional requirement only
Department of Health,Imperial College Healthcare NHS Trust,26/07/2016,Clinical Managed Service Contr,"Div Of Surg, Cardiov & Cancer",Chas A Blatchford And Sons Ltd,3393150,"46,259.60",Optional requirement only
Department of Health,Imperial College Healthcare NHS Trust,26/07/2016,Clinical Managed Service Contr,Pathology,Abbott Laboratories Ltd,3397075,"151,297.07",Optional requirement only
Department of Health,Imperial College Healthcare NHS Trust,26/07/2016,Clinical Managed Service Contr,Pathology,Abbott Laboratories Ltd,3397076,"411,024.61",Optional requirement only
Department of Health,Imperial College Healthcare NHS Trust,26/07/2016,Computer Software/License,Private Patients Directorate,Streets Heaver Computer Systems,3393437,"43,566.26",Optional requirement only
Department of Health,Imperial College Healthcare NHS Trust,26/07/2016,Consultancy Fees,Finance Directorate,Pricewaterhousecoopers Llp,3403502,"78,258.00",Optional requirement only
Department of Health,Imperial College Healthcare NHS Trust,26/07/2016,Contr Photocopier Rental,Information & Comms Technology,Canon (Uk) Ltd,3399023,"199,710.02",Optional requirement only
Department of Health,Imperial College Healthcare NHS Trust,26/07/2016,Electricity,Nursing Directorate,Edf Energy Customer Plc,3398698,"222,695.38",Optional requirement only
Department of Health,Imperial College Healthcare NHS Trust,26/07/2016,Equip Maint Contracts,Pathology,Roche Diagnostics Ltd,3392854,"56,436.74",Optional requirement only
Department of Health,Imperial College Healthcare NHS Trust,26/07/2016,Gas,Nursing Directorate,Corona Energy,3404854,"42,691.20",Optional requirement only
Department of Health,Imperial College Healthcare NHS Trust,26/07/2016,Gas,Nursing Directorate,Corona Energy,3404856,"67,842.28",Optional requirement only
Department of Health,Imperial College Healthcare NHS Trust,26/07/2016,Gas,Nursing Directorate,Corona Energy,3404860,"41,840.92",Optional requirement only
Department of Health,Imperial College Healthcare NHS Trust,26/07/2016,Gbs - Main Bank Account,Ichnt Balance Sheet,Nhs Supply Chain,3404886,"601,277.05",Optional requirement only
Department of Health,Imperial College Healthcare NHS Trust,26/07/2016,It Eqpt-Additions,Capital Summary,Cdw Ltd,3392888,"87,814.37",Optional requirement only
Department of Health,Imperial College Healthcare NHS Trust,26/07/2016,Jac - Stock,Stock,Aah Pharmaceuticals Limited,3402258,"42,690.24",Optional requirement only
Department of Health,Imperial College Healthcare NHS Trust,26/07/2016,Jac - Stock,Stock,Roche Products Ltd,3396388,"71,563.26",Optional requirement only
Department of Health,Imperial College Healthcare NHS Trust,26/07/2016,Laboratory Chemicals/ Reagents,Pathology,Sysmex Uk Ltd,3404748,"304,881.30",Optional requirement only
Department of Health,Imperial College Healthcare NHS Trust,26/07/2016,Nhs Pay Recharge In: Med,"Div Of Surg, Cardiov & Cancer",Mid Essex Hospitals  Nhs Trust,3403407,"29,679.00",Optional requirement only
Department of Health,Imperial College Healthcare NHS Trust,26/07/2016,Other Research Exp - Non-Pay,Rd Medical Directorate,London North West Healthcare Nhs Trust,3393373,"384,429.00",Optional requirement only
Department of Health,Imperial College Healthcare NHS Trust,26/07/2016,Other Research Exp - Non-Pay,Rd Medical Directorate,Royal Brompton And Harefield Nhs Trust,3404875,"220,406.00",Optional requirement only
Department of Health,Imperial College Healthcare NHS Trust,26/07/2016,Other Research Exp - Non-Pay,Rd Medical Directorate,West London Mental Health Nhs Trust,3394443,"55,905.00",Optional requirement only
Department of Health,Imperial College Healthcare NHS Trust,26/07/2016,Other Research Exp - Pay,Rd Medical Directorate,Imperial College London,3401981,"33,537.00",Optional requirement only
Department of Health,Imperial College Healthcare NHS Trust,26/07/2016,Other Research Exp - Pay,Rd Surgery & Cancer Division,Imperial College London,3401988,"34,866.71",Optional requirement only
Department of Health,Imperial College Healthcare NHS Trust,26/07/2016,Patients Appl: Purchase,"Div Of Surg, Cardiov & Cancer",Chas A Blatchford And Sons Ltd,3399772,"38,883.29",Optional requirement only
Department of Health,Imperial College Healthcare NHS Trust,26/07/2016,Phone Instal & Maint,Information & Comms Technology,M&S Medicom,3403485,"47,224.20",Optional requirement only
Department of Health,Imperial College Healthcare NHS Trust,26/07/2016,P & M-Additions-Purchased,Capital Summary,Jackson Lift Services Limited,3403365,"356,400.00",Optional requirement only
Department of Health,Imperial College Healthcare NHS Trust,26/07/2016,P & M-Additions-Purchased,Capital Summary,Jackson Lift Services Limited,3403372,"430,826.40",Optional requirement only
Department of Health,Imperial College Healthcare NHS Trust,26/07/2016,Prostheses,"Div Of Surg, Cardiov & Cancer",Chas A Blatchford And Sons Ltd,3394788,"47,131.40",Optional requirement only
Department of Health,Imperial College Healthcare NHS Trust,26/07/2016,Service Charge,Finance Directorate,Oxford University Hospital Nhs Ft,3403484,"100,000.00",Optional requirement only
Department of Health,Imperial College Healthcare NHS Trust,26/07/2016,Services Received - Nhsts,Div Of Med & Integrated Care,West London Mental Health Nhs Trust,3396570,"49,054.00",Optional requirement only
Department of Health,Imperial College Healthcare NHS Trust,26/07/2016,Services Received - Nhsts,"Div Of Surg, Cardiov & Cancer",University Hospitals Bristol Nhs Found.Trust,3403790,"64,635.00",Optional requirement only
Department of Health,Imperial College Healthcare NHS Trust,26/07/2016,Srvcsrecd-Foundationtrust,Pathology,Chelsea And  Westminster Hospital Nhs,3391805,"39,308.83",Optional requirement only
Department of Health,Imperial College Healthcare NHS Trust,26/07/2016,Supplies Issues Recharges,Stock,Nhs Supply Chain,3405442,"133,304.58",Optional requirement only
Department of Health,Imperial College Healthcare NHS Trust,26/07/2016,Supplies Issues Recharges,Stock,Nhs Supply Chain,3405443,"111,645.10",Optional requirement only
Department of Health,Imperial College Healthcare NHS Trust,26/07/2016,Supplies Issues Recharges,Stock,Nhs Supply Chain,3405444,"102,918.60",Optional requirement only
Department of Health,Imperial College Healthcare NHS Trust,26/07/2016,Supplies Issues Recharges,Stock,Nhs Supply Chain,3405445,"144,649.84",Optional requirement only
Department of Health,Imperial College Healthcare NHS Trust,26/07/2016,Supplies Issues Recharges,Stock,Nhs Supply Chain,3405446,"108,758.93",Optional requirement only
Department of Health,Imperial College Healthcare NHS Trust,02/08/2016,Agency Nursing: Qualified,Div Of Med & Integrated Care,Reed,3405634,"113,554.87",Optional requirement only
Department of Health,Imperial College Healthcare NHS Trust,02/08/2016,Agency Nursing: Qualified,"Div Of Surg, Cardiov & Cancer",Reed,3405634,"87,260.43",Optional requirement only
Department of Health,Imperial College Healthcare NHS Trust,02/08/2016,Agency Nursing: Qualified,Div Of Women & Clin Support,Reed,3405634,"37,860.18",Optional requirement only
Department of Health,Imperial College Healthcare NHS Trust,02/08/2016,Agency Scient & Prof Qualified,Div Of Women & Clin Support,Reed,3407380,"33,459.26",Optional requirement only
Department of Health,Imperial College Healthcare NHS Trust,02/08/2016,Clinical Managed Service Contr,"Div Of Surg, Cardiov & Cancer",Medtronic Ltd,3408549,"1,126,596.17",Optional requirement only
Department of Health,Imperial College Healthcare NHS Trust,02/08/2016,Computer Software/License,Information & Comms Technology,Qlickit  Ltd,3407606,"87,411.60",Optional requirement only
Department of Health,Imperial College Healthcare NHS Trust,02/08/2016,Consultancy Fees,Finance Directorate,Salford Royal Nhs Foundation Trust,3405889,"31,173.00",Optional requirement only
Department of Health,Imperial College Healthcare NHS Trust,02/08/2016,Contr Other External,Nursing Directorate,Cbre Managed Services Ltd,3407384,"722,893.15",Optional requirement only
Department of Health,Imperial College Healthcare NHS Trust,02/08/2016,Cx-Hh Consultant Load,Ichnt Balance Sheet,Dr Andrew Wright,3405649,"74,918.30",Optional requirement only
Department of Health,Imperial College Healthcare NHS Trust,02/08/2016,Cx-Hh Consultant Load,Ichnt Balance Sheet,Dr J. De La Fuente,3405654,"37,803.00",Optional requirement only
Department of Health,Imperial College Healthcare NHS Trust,02/08/2016,Interpreting Services,Div Of Women & Clin Support,Dnu Pearl Linguistics Ltd [In]  [Use 042172],3406643,"35,780.15",Optional requirement only
Department of Health,Imperial College Healthcare NHS Trust,02/08/2016,Interpreting Services,Div Of Women & Clin Support,Dnu Pearl Linguistics Ltd [In]  [Use 042172],3406662,"38,908.33",Optional requirement only
Department of Health,Imperial College Healthcare NHS Trust,02/08/2016,It Eqpt-Additions,Capital Summary,Unify Enterprise Communications Ltd,3396244,"114,000.00",Optional requirement only
Department of Health,Imperial College Healthcare NHS Trust,02/08/2016,Jac - Stock,Stock,Bayer Plc,3404148,"93,572.16",Optional requirement only
Department of Health,Imperial College Healthcare NHS Trust,02/08/2016,Jac - Stock,Stock,Bpl (Bio-Products Laboratory),3407137,"27,397.67",Optional requirement only
Department of Health,Imperial College Healthcare NHS Trust,02/08/2016,Jac - Stock,Stock,Csl Behring Uk Ltd,3406979,"30,690.00",Optional requirement only
Department of Health,Imperial College Healthcare NHS Trust,02/08/2016,Jac - Stock,Stock,Genzyme Therapeutics Ltd,3404150,"42,270.00",Optional requirement only
Department of Health,Imperial College Healthcare NHS Trust,02/08/2016,Jac - Stock,Stock,Genzyme Therapeutics Ltd,3407276,"84,540.00",Optional requirement only
Department of Health,Imperial College Healthcare NHS Trust,02/08/2016,Jac - Stock,Stock,Genzyme Therapeutics Ltd,3407277,"33,816.00",Optional requirement only
Department of Health,Imperial College Healthcare NHS Trust,02/08/2016,Jac - Stock,Stock,Qualasept Ltd,3404340,"68,464.44",Optional requirement only
Department of Health,Imperial College Healthcare NHS Trust,02/08/2016,Med & Prof Fees (Imaging Cons),Ichnt Balance Sheet,Lindo Wing Radiology Llp,3405720,"105,780.25",Optional requirement only
Department of Health,Imperial College Healthcare NHS Trust,02/08/2016,Med & Surg Maint Contract,Div Of Women & Clin Support,Nhs Supply Chain,3405606,"81,504.37",Optional requirement only
Department of Health,Imperial College Healthcare NHS Trust,02/08/2016,Other Research Exp - Pay,Rd Medical Directorate,Imperial College London,3406646,"31,665.38",Optional requirement only
Department of Health,Imperial College Healthcare NHS Trust,02/08/2016,Other Research Exp - Pay,Rd Medical Directorate,Imperial College London,3408364,"26,263.00",Optional requirement only
Department of Health,Imperial College Healthcare NHS Trust,02/08/2016,Other Research Exp - Pay,Rd Medicine Division,Imperial College London,3406657,"87,790.96",Optional requirement only
Department of Health,Imperial College Healthcare NHS Trust,02/08/2016,Other Research Exp - Pay,Rd Medicine Division,Imperial College London,3406667,"50,430.82",Optional requirement only
Department of Health,Imperial College Healthcare NHS Trust,02/08/2016,Other Research Exp - Pay,Rd Surgery & Cancer Division,Imperial College London,3406649,"87,952.87",Optional requirement only
Department of Health,Imperial College Healthcare NHS Trust,02/08/2016,Other Research Exp - Pay,Rdwomen And Children Division,Imperial College London,3406633,"38,909.67",Optional requirement only
Department of Health,Imperial College Healthcare NHS Trust,02/08/2016,Other Research Exp - Pay,Rdwomen And Children Division,Imperial College London,3406635,"408,644.71",Optional requirement only
Department of Health,Imperial College Healthcare NHS Trust,02/08/2016,Service Charge,Finance Directorate,Guys And St Thomas Nhs Foundation Trust,3407819,"73,708.00",Optional requirement only
Department of Health,Imperial College Healthcare NHS Trust,02/08/2016,Srvcsrecd-Other Nhs,Div Of Women & Clin Support,Chelsea And  Westminster Hospital Nhs,3405756,"86,231.00",Optional requirement only
Department of Health,Imperial College Healthcare NHS Trust,02/08/2016,Supplies Issues Recharges,Stock,Nhs Supply Chain,3406641,"108,856.02",Optional requirement only
Department of Health,Imperial College Healthcare NHS Trust,02/08/2016,Supplies Issues Recharges,Stock,Nhs Supply Chain,3406652,"101,865.34",Optional requirement only
Department of Health,Imperial College Healthcare NHS Trust,02/08/2016,Supplies Issues Recharges,Stock,Nhs Supply Chain,3406670,"154,259.71",Optional requirement only
Department of Health,Imperial College Healthcare NHS Trust,02/08/2016,Supplies Issues Recharges,Stock,Nhs Supply Chain,3406674,"88,832.56",Optional requirement only
Department of Health,Imperial College Healthcare NHS Trust,02/08/2016,Supplies Issues Recharges,Stock,Nhs Supply Chain,3406677,"106,576.00",Optional requirement only
Department of Health,Imperial College Healthcare NHS Trust,02/08/2016,Supplies Issues Recharges,Stock,Nhs Supply Chain,3407624,"156,294.62",Optional requirement only
Department of Health,Imperial College Healthcare NHS Trust,02/08/2016,Supplies Issues Recharges,Stock,Nhs Supply Chain,3407627,"134,922.99",Optional requirement only
Department of Health,Imperial College Healthcare NHS Trust,02/08/2016,Transcription Services,Div Of Med & Integrated Care,Dictate It Ltd,3405619,"33,306.58",Optional requirement only
Department of Health,Imperial College Healthcare NHS Trust,02/08/2016,Transcription Services,"Div Of Surg, Cardiov & Cancer",Dictate It Ltd,3405621,"38,390.81",Optional requirement only
Department of Health,Imperial College Healthcare NHS Trust,04/08/2016,Acton Housing Association,Housing Deductions,A2dominion Housing Group Ltd,3408172,"182,335.38",Optional requirement only
Department of Health,Imperial College Healthcare NHS Trust,04/08/2016,Agency Nursing: Qualified,Div Of Med & Integrated Care,Reed,3409641,"98,795.77",Optional requirement only
Department of Health,Imperial College Healthcare NHS Trust,04/08/2016,Agency Nursing: Qualified,"Div Of Surg, Cardiov & Cancer",Reed,3409641,"66,675.02",Optional requirement only
Department of Health,Imperial College Healthcare NHS Trust,04/08/2016,Agency Scient & Prof Qualified,Pathology,Reed,3408163,"34,184.97",Optional requirement only
Department of Health,Imperial College Healthcare NHS Trust,04/08/2016,Buildings-Additions-Purchased,Capital Summary,Princebuild Limited,3404753,"66,265.03",Optional requirement only
Department of Health,Imperial College Healthcare NHS Trust,04/08/2016,Buildings-Add(Prof Fee)-Purch,Capital Summary,Aecom,3398241,"30,258.00",Optional requirement only
Department of Health,Imperial College Healthcare NHS Trust,04/08/2016,Buildings-Add(Prof Fee)-Purch,Capital Summary,Aecom,3398242,"133,260.00",Optional requirement only
Department of Health,Imperial College Healthcare NHS Trust,04/08/2016,Buildings-Add(Prof Fee)-Purch,Capital Summary,Aecom,3398245,"72,421.50",Optional requirement only
Department of Health,Imperial College Healthcare NHS Trust,04/08/2016,Computer Software/License,Information & Comms Technology,Optimus It Infra Ltd,3399041,"62,671.44",Optional requirement only
Department of Health,Imperial College Healthcare NHS Trust,04/08/2016,Drugs Nhs,Div Of Women & Clin Support,Nhs Business Services Authority,3390656,"31,762.27",Optional requirement only
Department of Health,Imperial College Healthcare NHS Trust,04/08/2016,It Eqpt-Additions,Capital Summary,Esaloni Systems Limited,3401124,"39,000.00",Optional requirement only
Department of Health,Imperial College Healthcare NHS Trust,04/08/2016,It Eqpt-Additions,Capital Summary,Gecko Technologies Ltd,3398346,"31,200.00",Optional requirement only
Department of Health,Imperial College Healthcare NHS Trust,04/08/2016,Jac - Stock,Stock,Bayer Plc,3407199,"102,258.00",Optional requirement only
Department of Health,Imperial College Healthcare NHS Trust,04/08/2016,Jac - Stock,Stock,Janssen-Cilag Ltd,3406778,"36,594.24",Optional requirement only
Department of Health,Imperial College Healthcare NHS Trust,04/08/2016,Jac - Stock,Stock,Novartis Pharmaceutical (Uk) Ltd,3407281,"59,843.80",Optional requirement only
Department of Health,Imperial College Healthcare NHS Trust,04/08/2016,Jac - Stock,Stock,Qualasept Ltd,3407308,"68,467.20",Optional requirement only
Department of Health,Imperial College Healthcare NHS Trust,04/08/2016,Laboratory Test Kits,Pathology,Becton Dickinson Uk Ltd,3399826,"155,746.86",Optional requirement only
Department of Health,Imperial College Healthcare NHS Trust,04/08/2016,Med & Surg Maint Contract,"Div Of Surg, Cardiov & Cancer",Elekta Limited,3406603,"43,107.60",Optional requirement only
Department of Health,Imperial College Healthcare NHS Trust,04/08/2016,Other Research Exp - Non-Pay,Rd Medical Directorate,Imperial College London,3406645,"28,699.27",Optional requirement only
Department of Health,Imperial College Healthcare NHS Trust,04/08/2016,Other Research Exp - Pay,Rd Medical Directorate,Imperial College London,3406673,"246,170.37",Optional requirement only
Department of Health,Imperial College Healthcare NHS Trust,04/08/2016,Other Research Exp - Pay,Rd Surgery & Cancer Division,Imperial College London,3407810,"96,608.18",Optional requirement only
Department of Health,Imperial College Healthcare NHS Trust,04/08/2016,Other Research Exp - Pay,Rdwomen And Children Division,Imperial College London,3407804,"102,395.09",Optional requirement only
Department of Health,Imperial College Healthcare NHS Trust,04/08/2016,Services Received - Nhsts,Div Of Med & Integrated Care,West London Mental Health Nhs Trust,3410182,"49,054.00",Optional requirement only
Department of Health,Imperial College Healthcare NHS Trust,09/08/2016,Bldg/Eng Equip Maint/Rep,Nursing Directorate,Hsb Haughton,3412048,"58,547.41",Optional requirement only
Department of Health,Imperial College Healthcare NHS Trust,09/08/2016,Blood Products,Pathology,Nhs Blood And Transplant,3411799,"146,430.08",Optional requirement only
Department of Health,Imperial College Healthcare NHS Trust,09/08/2016,Computer Software/License,Information & Comms Technology,Cerner Uk Ltd,3411621,"279,161.45",Optional requirement only
Department of Health,Imperial College Healthcare NHS Trust,09/08/2016,Computer Software/License,Information & Comms Technology,Cerner Uk Ltd,3411622,"303,856.15",Optional requirement only
Department of Health,Imperial College Healthcare NHS Trust,09/08/2016,Consultancy Fees,Information & Comms Technology,Ideal Health Consultants Ltd,3411824,"79,596.37",Optional requirement only
Department of Health,Imperial College Healthcare NHS Trust,09/08/2016,Consultancy Fees,Information & Comms Technology,Ideal Health Consultants Ltd,3411828,"79,596.37",Optional requirement only
Department of Health,Imperial College Healthcare NHS Trust,09/08/2016,Drugs Nhs,Div Of Med & Integrated Care,London North West Healthcare Nhs Trust,3411989,"464,796.00",Optional requirement only
Department of Health,Imperial College Healthcare NHS Trust,09/08/2016,Jac - Stock,Stock,Genzyme Therapeutics Ltd,3407275,"84,540.00",Optional requirement only
Department of Health,Imperial College Healthcare NHS Trust,09/08/2016,Jac - Stock,Stock,Qualasept Ltd,3411174,"149,160.00",Optional requirement only
Department of Health,Imperial College Healthcare NHS Trust,09/08/2016,Jac - Stock,Stock,Roche Products Ltd,3402383,"45,984.00",Optional requirement only
Department of Health,Imperial College Healthcare NHS Trust,09/08/2016,Other Research Exp - Non-Pay,Rd Medical Directorate,London Ambulance Service Nhs Trust,3401163,"39,880.00",Optional requirement only
Department of Health,Imperial College Healthcare NHS Trust,09/08/2016,Services Received - Nhsts,Other Hq Departments,Nhs Hammersmith And Fulham Ccg,3411991,"400,000.00",Optional requirement only
Department of Health,Imperial College Healthcare NHS Trust,09/08/2016,Supplies Issues Recharges,Stock,Nhs Supply Chain,3411294,"97,053.61",Optional requirement only
Department of Health,Imperial College Healthcare NHS Trust,09/08/2016,Supplies Issues Recharges,Stock,Nhs Supply Chain,3411539,"109,144.05",Optional requirement only
Department of Health,Imperial College Healthcare NHS Trust,09/08/2016,Supplies Issues Recharges,Stock,Nhs Supply Chain,3411551,"161,408.71",Optional requirement only
Department of Health,Imperial College Healthcare NHS Trust,10/08/2016,Consultancy Fees,Finance Directorate,Rsm Uk Consulting Llp,3413723,"42,000.00",Optional requirement only
Department of Health,Imperial College Healthcare NHS Trust,11/08/2016,Blood Products,Pathology,Nhs Blood And Transplant,3401775,"60,345.25",Optional requirement only
Department of Health,Imperial College Healthcare NHS Trust,11/08/2016,Blood Products,Pathology,Nhs Blood And Transplant,3402438,"312,901.75",Optional requirement only
Department of Health,Imperial College Healthcare NHS Trust,11/08/2016,Blood Products,Pathology,Nhs Blood And Transplant,3411800,"146,430.08",Optional requirement only
Department of Health,Imperial College Healthcare NHS Trust,11/08/2016,Buildings-Add(Prof Fee)-Purch,Capital Summary,Alarm Communication Limited,3413385,"49,800.00",Optional requirement only
Department of Health,Imperial College Healthcare NHS Trust,11/08/2016,Childcare Voucher (Kids Unltd),Childcare Vouchers,Dnu P And Mm Limited[Replaced By 042127],3412631,"72,093.85",Optional requirement only
Department of Health,Imperial College Healthcare NHS Trust,11/08/2016,Cleaning Materials,Nursing Directorate,Synergy Health Managed Services Ltd,3413195,"41,005.07",Optional requirement only
Department of Health,Imperial College Healthcare NHS Trust,11/08/2016,Clinical Managed Service Contr,Pathology,Beckman Coulter Uk Ltd,3404608,"52,114.84",Optional requirement only
Department of Health,Imperial College Healthcare NHS Trust,11/08/2016,Dist Award - Local Cea,Div Of Med & Integrated Care,Imperial College London,3413756,"46,291.06",Optional requirement only
Department of Health,Imperial College Healthcare NHS Trust,11/08/2016,Dist Award - Nat Cea,Div Of Med & Integrated Care,Imperial College London,3413756,"87,310.22",Optional requirement only
Department of Health,Imperial College Healthcare NHS Trust,11/08/2016,Dist Award - Nat Cea,"Div Of Surg, Cardiov & Cancer",Imperial College London,3413756,"83,780.25",Optional requirement only
Department of Health,Imperial College Healthcare NHS Trust,11/08/2016,Dist Award - Nat Cea,Div Of Women & Clin Support,Imperial College London,3413756,"54,438.07",Optional requirement only
Department of Health,Imperial College Healthcare NHS Trust,11/08/2016,Dist Award - Nat Cea,Medical Director Summary,Imperial College London,3413756,"29,656.81",Optional requirement only
Department of Health,Imperial College Healthcare NHS Trust,11/08/2016,Electricity,Nursing Directorate,Edf Energy Customer Plc,3413734,"243,428.06",Optional requirement only
Department of Health,Imperial College Healthcare NHS Trust,11/08/2016,Electricity,Nursing Directorate,Edf Energy Customer Plc,3413737,"254,828.32",Optional requirement only
Department of Health,Imperial College Healthcare NHS Trust,11/08/2016,Electricity,Nursing Directorate,Edf Energy Customer Plc,3413739,"82,920.22",Optional requirement only
Department of Health,Imperial College Healthcare NHS Trust,11/08/2016,Electricity,Nursing Directorate,Edf Energy Customer Plc,3413740,"254,832.27",Optional requirement only
Department of Health,Imperial College Healthcare NHS Trust,11/08/2016,Equip Maint Contracts,Pathology,Roche Diagnostics Ltd,3401791,"396,478.61",Optional requirement only
Department of Health,Imperial College Healthcare NHS Trust,11/08/2016,Equip Maint Contracts,Pathology,Roche Diagnostics Ltd,3401792,"396,478.61",Optional requirement only
Department of Health,Imperial College Healthcare NHS Trust,11/08/2016,Ext Contr Laundry,Nursing Directorate,Synergy Health Managed Services Ltd,3413196,"44,231.05",Optional requirement only
Department of Health,Imperial College Healthcare NHS Trust,11/08/2016,Ext Contr Laundry,Nursing Directorate,Synergy Health Managed Services Ltd,3413197,"48,359.75",Optional requirement only
Department of Health,Imperial College Healthcare NHS Trust,11/08/2016,Ext Contr Laundry,Nursing Directorate,Synergy Health Managed Services Ltd,3413198,"50,060.02",Optional requirement only
Department of Health,Imperial College Healthcare NHS Trust,11/08/2016,Ext Contr Logistics,Finance Directorate,Dhl Supply Chain  (Former Excel),3401104,"140,446.18",Optional requirement only
Department of Health,Imperial College Healthcare NHS Trust,11/08/2016,Ic Pay Recharge In: Med,Div Of Med & Integrated Care,Imperial College London,3413756,"66,209.46",Optional requirement only
Department of Health,Imperial College Healthcare NHS Trust,11/08/2016,Ic Pay Recharge In: Med,Div Of Med & Integrated Care,Imperial College London,3413758,"120,400.12",Optional requirement only
Department of Health,Imperial College Healthcare NHS Trust,11/08/2016,Ic Pay Recharge In: Med,"Div Of Surg, Cardiov & Cancer",Imperial College London,3413756,"115,610.59",Optional requirement only
Department of Health,Imperial College Healthcare NHS Trust,11/08/2016,Ic Pay Recharge In: Med,"Div Of Surg, Cardiov & Cancer",Imperial College London,3413757,"33,344.32",Optional requirement only
Department of Health,Imperial College Healthcare NHS Trust,11/08/2016,Ic Pay Recharge In: Med,"Div Of Surg, Cardiov & Cancer",Imperial College London,3413758,"221,629.07",Optional requirement only
Department of Health,Imperial College Healthcare NHS Trust,11/08/2016,Ic Pay Recharge In: Med,Div Of Women & Clin Support,Imperial College London,3413756,"25,640.20",Optional requirement only
Department of Health,Imperial College Healthcare NHS Trust,11/08/2016,Ic Pay Recharge In: Med,Div Of Women & Clin Support,Imperial College London,3413758,"100,525.19",Optional requirement only
Department of Health,Imperial College Healthcare NHS Trust,11/08/2016,It Eqpt-Additions,Capital Summary,Dell Software International Limited,3403431,"85,020.00",Optional requirement only
Department of Health,Imperial College Healthcare NHS Trust,11/08/2016,Jac - Stock,Stock,Csl Behring Uk Ltd,3402121,"60,264.00",Optional requirement only
Department of Health,Imperial College Healthcare NHS Trust,11/08/2016,Jac - Stock,Stock,Healthcare At Home Ltd,3407854,"40,680.00",Optional requirement only
Department of Health,Imperial College Healthcare NHS Trust,11/08/2016,Jac - Stock,Stock,Healthcare At Home Ltd,3407855,"40,680.00",Optional requirement only
Department of Health,Imperial College Healthcare NHS Trust,11/08/2016,Jac - Stock,Stock,Roche Products Ltd,3402844,"59,864.33",Optional requirement only
Department of Health,Imperial College Healthcare NHS Trust,11/08/2016,Laboratory Chemicals/ Reagents,Pathology,Sysmex Uk Ltd,3413388,"101,627.10",Optional requirement only
Department of Health,Imperial College Healthcare NHS Trust,11/08/2016,Miscellaneous Expenditure,Div Of Med & Integrated Care,Hayes Cottage Renal Unit Ltd,3413944,"68,244.00",Optional requirement only
Department of Health,Imperial College Healthcare NHS Trust,11/08/2016,Other Transport Costs,Pathology,Dhl Supply Chain  (Former Excel),3402713,"78,951.28",Optional requirement only
Department of Health,Imperial College Healthcare NHS Trust,11/08/2016,P & M-Additions-Purchased,Capital Summary,Hologic Uk Ltd,3413359,"150,756.00",Optional requirement only
Department of Health,Imperial College Healthcare NHS Trust,11/08/2016,Postage & Carriage,Nursing Directorate,Whistl London Limited,3413404,"41,849.71",Optional requirement only
Department of Health,Imperial College Healthcare NHS Trust,11/08/2016,Purch Hcare Independent Sector,Div Of Med & Integrated Care,London Central & West Unscheduled Care Collab,3413750,"345,813.67",Optional requirement only
Department of Health,Imperial College Healthcare NHS Trust,11/08/2016,Purch Hcare Independent Sector,Div Of Med & Integrated Care,London Central & West Unscheduled Care Collab,3413751,"345,813.67",Optional requirement only
Department of Health,Imperial College Healthcare NHS Trust,11/08/2016,Supplies Issues Recharges,Stock,Nhs Supply Chain,3413828,"110,186.22",Optional requirement only
Department of Health,Imperial College Healthcare NHS Trust,11/08/2016,Supplies Issues Recharges,Stock,Nhs Supply Chain,3413831,"111,536.89",Optional requirement only
Department of Health,Imperial College Healthcare NHS Trust,11/08/2016,Supplies Issues Recharges,Stock,Nhs Supply Chain,3413832,"133,405.58",Optional requirement only
Department of Health,Imperial College Healthcare NHS Trust,12/08/2016,Rates,Nursing Directorate,City Of Westminster,3414025,"119,944.00",Optional requirement only
Department of Health,Imperial College Healthcare NHS Trust,16/08/2016,Agency Admin & Clerical,Information & Comms Technology,Brook Street Uk Ltd,3415593,"31,439.20",Optional requirement only
Department of Health,Imperial College Healthcare NHS Trust,16/08/2016,Cleaning Materials,Nursing Directorate,Synergy Health Managed Services Ltd,3416031,"41,005.07",Optional requirement only
Department of Health,Imperial College Healthcare NHS Trust,16/08/2016,Computer Maintenance,Information & Comms Technology,Hornet It Limited,3414063,"31,933.56",Optional requirement only
Department of Health,Imperial College Healthcare NHS Trust,16/08/2016,Ic Library Expenditure,Medical Director Summary,Imperial College London,3415691,"92,131.00",Optional requirement only
Department of Health,Imperial College Healthcare NHS Trust,16/08/2016,Jac - Stock,Stock,Genzyme Therapeutics Ltd,3406791,"84,540.00",Optional requirement only
Department of Health,Imperial College Healthcare NHS Trust,16/08/2016,Laboratory Chemicals/ Reagents,Pathology,Diamed Gb Ltd,3404620,"194,521.52",Optional requirement only
Department of Health,Imperial College Healthcare NHS Trust,16/08/2016,Other Research Exp - Pay,"Div Of Surg, Cardiov & Cancer",Imperial College London,3415713,"44,883.77",Optional requirement only
Department of Health,Imperial College Healthcare NHS Trust,16/08/2016,Other Research Exp - Pay,Rd Medical Directorate,King'S College London,3415401,"166,931.45",Optional requirement only
Department of Health,Imperial College Healthcare NHS Trust,16/08/2016,Other Research Exp - Pay,Rd Surgery & Cancer Division,Imperial College London,3415546,"98,608.18",Optional requirement only
Department of Health,Imperial College Healthcare NHS Trust,16/08/2016,P & M-Additions-Purchased,Capital Summary,Mindray (Uk) Limited,3415504,"55,746.00",Optional requirement only
Department of Health,Imperial College Healthcare NHS Trust,18/08/2016,Bldg/Eng Equip Maint/Rep,Nursing Directorate,Cbre Managed Services Ltd,3416434,"47,758.66",Optional requirement only
Department of Health,Imperial College Healthcare NHS Trust,18/08/2016,Computer Software/License,Human Resources,Skills For Health Ltd,3417526,"40,000.00",Optional requirement only
Department of Health,Imperial College Healthcare NHS Trust,18/08/2016,Cx-Hh Consultant Load,Ichnt Balance Sheet,Dr Andrew Wright,3417160,"79,808.65",Optional requirement only
Department of Health,Imperial College Healthcare NHS Trust,18/08/2016,Electricity,Nursing Directorate,Edf Energy Customer Plc,3415632,"34,509.39",Optional requirement only
Department of Health,Imperial College Healthcare NHS Trust,18/08/2016,Electricity,Nursing Directorate,Edf Energy Customer Plc,3415635,"91,177.46",Optional requirement only
Department of Health,Imperial College Healthcare NHS Trust,18/08/2016,Electricity,Nursing Directorate,Edf Energy Customer Plc,3415641,"251,927.80",Optional requirement only
Department of Health,Imperial College Healthcare NHS Trust,18/08/2016,Ext Contr Catering,Nursing Directorate,Sodexo Limited,3416489,"41,482.15",Optional requirement only
Department of Health,Imperial College Healthcare NHS Trust,18/08/2016,Ext Contr Domestics,Private Patients Directorate,Sodexo Limited,3416979,"165,075.94",Optional requirement only
Department of Health,Imperial College Healthcare NHS Trust,18/08/2016,Income Tax Paye,Ichnt Balance Sheet,Hmrc Government Employers Account,3417996,"12,917,812.39",Optional requirement only
Department of Health,Imperial College Healthcare NHS Trust,18/08/2016,It Eqpt-Additions,Capital Summary,Sdx Services Ltd,3415511,"84,286.08",Optional requirement only
Department of Health,Imperial College Healthcare NHS Trust,18/08/2016,It Eqpt-Additions,Capital Summary,Sdx Services Ltd,3415976,"116,902.00",Optional requirement only
Department of Health,Imperial College Healthcare NHS Trust,18/08/2016,Jac - Stock,Stock,Roche Products Ltd,3407127,"60,621.12",Optional requirement only
Department of Health,Imperial College Healthcare NHS Trust,18/08/2016,Laboratory Chemicals/ Reagents,Pathology,Sysmex Uk Ltd,3413389,"101,627.10",Optional requirement only
Department of Health,Imperial College Healthcare NHS Trust,18/08/2016,Med & Prof Fees (Imaging Cons),Ichnt Balance Sheet,Lindo Wing Radiology Llp,3417224,"133,628.25",Optional requirement only
Department of Health,Imperial College Healthcare NHS Trust,18/08/2016,Med & Surg Equip Leases,"Div Of Surg, Cardiov & Cancer",De Lage Landen Leasing Limited,3411328,"41,994.00",Optional requirement only
Department of Health,Imperial College Healthcare NHS Trust,18/08/2016,Other Research Exp - Pay,Rdwomen And Children Division,Imperial College London,3417358,"30,644.01",Optional requirement only
Department of Health,Imperial College Healthcare NHS Trust,18/08/2016,Other Research Exp - Pay,Rdwomen And Children Division,Imperial College London,3417505,"60,968.17",Optional requirement only
Department of Health,Imperial College Healthcare NHS Trust,18/08/2016,Season Ticket Cr Abellio,Ichnt Balance Sheet,Abellio Transport Holdings Ltd,3413947,"37,457.40",Optional requirement only
Department of Health,Imperial College Healthcare NHS Trust,18/08/2016,Stents,"Div Of Surg, Cardiov & Cancer",Medtronic Ltd,3406613,"42,600.00",Optional requirement only
Department of Health,Imperial College Healthcare NHS Trust,18/08/2016,Supplies Issues Recharges,Stock,Nhs Supply Chain,3416987,"149,177.79",Optional requirement only
Department of Health,Imperial College Healthcare NHS Trust,18/08/2016,Supplies Issues Recharges,Stock,Nhs Supply Chain,3416991,"109,548.42",Optional requirement only
Department of Health,Imperial College Healthcare NHS Trust,18/08/2016,Supplies Issues Recharges,Stock,Nhs Supply Chain,3416992,"117,390.54",Optional requirement only
Department of Health,Imperial College Healthcare NHS Trust,23/08/2016,Agency Nursing: Qualified,Div Of Med & Integrated Care,Reed,3418373,"112,935.96",Optional requirement only
Department of Health,Imperial College Healthcare NHS Trust,23/08/2016,Agency Nursing: Qualified,Div Of Med & Integrated Care,Reed,3418875,"103,654.76",Optional requirement only
Department of Health,Imperial College Healthcare NHS Trust,23/08/2016,Agency Nursing: Qualified,"Div Of Surg, Cardiov & Cancer",Reed,3418373,"124,095.40",Optional requirement only
Department of Health,Imperial College Healthcare NHS Trust,23/08/2016,Agency Nursing: Qualified,"Div Of Surg, Cardiov & Cancer",Reed,3418875,"80,863.07",Optional requirement only
Department of Health,Imperial College Healthcare NHS Trust,23/08/2016,Agency Nursing: Qualified,Div Of Women & Clin Support,Reed,3418373,"79,592.84",Optional requirement only
Department of Health,Imperial College Healthcare NHS Trust,23/08/2016,Agency Nursing: Qualified,Div Of Women & Clin Support,Reed,3418875,"44,165.16",Optional requirement only
Department of Health,Imperial College Healthcare NHS Trust,23/08/2016,Agency Scient & Prof Qualified,"Div Of Surg, Cardiov & Cancer",Reed,3417995,"30,045.54",Optional requirement only
Department of Health,Imperial College Healthcare NHS Trust,23/08/2016,Agency Scient & Prof Qualified,Div Of Women & Clin Support,Reed,3417995,"34,600.70",Optional requirement only
Department of Health,Imperial College Healthcare NHS Trust,23/08/2016,Agency Scient & Prof Qualified,Pathology,Reed,3417995,"32,043.77",Optional requirement only
Department of Health,Imperial College Healthcare NHS Trust,23/08/2016,Agency Scient & Prof Qualified,Pathology,Reed,3418402,"34,343.08",Optional requirement only
Department of Health,Imperial College Healthcare NHS Trust,23/08/2016,Buildings-Additions-Purchased,Capital Summary,Kpl Electrical Services Limited,3417437,"105,591.36",Optional requirement only
Department of Health,Imperial College Healthcare NHS Trust,23/08/2016,Consultancy Fees,Finance Directorate,Rsm Uk Consulting Llp,3420300,"42,000.00",Optional requirement only
Department of Health,Imperial College Healthcare NHS Trust,23/08/2016,Consultancy Fees,Office Of Chief Executive,Imperial College Health Partners,3418224,"55,000.00",Optional requirement only
Department of Health,Imperial College Healthcare NHS Trust,23/08/2016,Drugs Nhs,Div Of Women & Clin Support,Lloyds Retail Chemists Ltd,3418901,"4,088,052.23",Optional requirement only
Department of Health,Imperial College Healthcare NHS Trust,23/08/2016,Ext Contract Portering,Nursing Directorate,Sodexo Limited,3405595,"450,366.06",Optional requirement only
Department of Health,Imperial College Healthcare NHS Trust,23/08/2016,Ext Contr Catering,Nursing Directorate,Sodexo Limited,3405595,"616,582.46",Optional requirement only
Department of Health,Imperial College Healthcare NHS Trust,23/08/2016,Ext Contr Domestics,Nursing Directorate,Sodexo Limited,3405595,"1,199,406.14",Optional requirement only
Department of Health,Imperial College Healthcare NHS Trust,23/08/2016,Ext Contr Oth Hotel Srv,Nursing Directorate,Sodexo Limited,3405595,"89,174.20",Optional requirement only
Department of Health,Imperial College Healthcare NHS Trust,23/08/2016,It Eqpt-Additions,Capital Summary,Insight Direct (Uk) Ltd,3418186,"125,236.80",Optional requirement only
Department of Health,Imperial College Healthcare NHS Trust,23/08/2016,It Eqpt-Additions,Capital Summary,Royal Marsden Nhs Foundation Trust,3419626,"50,614.00",Optional requirement only
Department of Health,Imperial College Healthcare NHS Trust,23/08/2016,It Eqpt-Additions,Capital Summary,Ultima Business Solutions Ltd,3419657,"82,008.00",Optional requirement only
Department of Health,Imperial College Healthcare NHS Trust,23/08/2016,It Eqpt-Additions,Capital Summary,Worksmart Technology Limited,3419233,"99,968.40",Optional requirement only
Department of Health,Imperial College Healthcare NHS Trust,23/08/2016,Other Research Exp - Non-Pay,Rd Medical Directorate,Royal Brompton And Harefield Nhs Trust,3410526,"205,824.00",Optional requirement only
Department of Health,Imperial College Healthcare NHS Trust,23/08/2016,Other Research Exp - Pay,Rd Medical Directorate,Imperial College London,3418903,"289,315.03",Optional requirement only
Department of Health,Imperial College Healthcare NHS Trust,23/08/2016,Other Research Exp - Pay,Rdwomen And Children Division,Imperial College London,3418892,"294,190.04",Optional requirement only
Department of Health,Imperial College Healthcare NHS Trust,23/08/2016,Other Research Exp - Pay,Rdwomen And Children Division,Imperial College London,3418894,"295,159.52",Optional requirement only
Department of Health,Imperial College Healthcare NHS Trust,23/08/2016,P & M-Additions-Purchased,Capital Summary,Carl Zeiss Ltd,3417425,"251,339.34",Optional requirement only
Department of Health,Imperial College Healthcare NHS Trust,23/08/2016,Purch Hcare Independent Sector,Div Of Women & Clin Support,Ivf Hammersmith Ltd,3418895,"195,404.00",Optional requirement only
Department of Health,Imperial College Healthcare NHS Trust,25/08/2016,Agency Nursing: Qualified,Div Of Med & Integrated Care,Reed,3420186,"183,319.27",Optional requirement only
Department of Health,Imperial College Healthcare NHS Trust,25/08/2016,Agency Nursing: Qualified,"Div Of Surg, Cardiov & Cancer",Reed,3420186,"187,970.70",Optional requirement only
Department of Health,Imperial College Healthcare NHS Trust,25/08/2016,Agency Nursing: Qualified,Div Of Women & Clin Support,Reed,3420186,"80,921.62",Optional requirement only
Department of Health,Imperial College Healthcare NHS Trust,25/08/2016,Buildings-Additions-Purchased,Capital Summary,Playfords Limited,3408518,"54,571.09",Optional requirement only
Department of Health,Imperial College Healthcare NHS Trust,25/08/2016,Buildings-Add(Prof Fee)-Purch,Capital Summary,Eta  Projects Ltd,3408542,"56,980.80",Optional requirement only
Department of Health,Imperial College Healthcare NHS Trust,25/08/2016,Buildings-Add(Prof Fee)-Purch,Capital Summary,Feilden Clegg Bardley Studios,3415459,"126,600.00",Optional requirement only
Department of Health,Imperial College Healthcare NHS Trust,25/08/2016,Buildings-Add(Prof Fee)-Purch,Capital Summary,Feilden Clegg Bardley Studios,3415970,"126,600.00",Optional requirement only
Department of Health,Imperial College Healthcare NHS Trust,25/08/2016,Clinical Managed Service Contr,Pathology,Abbott Laboratories Ltd,3413752,"153,162.43",Optional requirement only
Department of Health,Imperial College Healthcare NHS Trust,25/08/2016,Clinical Managed Service Contr,Pathology,Abbott Laboratories Ltd,3413755,"435,497.96",Optional requirement only
Department of Health,Imperial College Healthcare NHS Trust,25/08/2016,Electricity,Nursing Directorate,Edf Energy Customer Plc,3415642,"232,346.08",Optional requirement only
Department of Health,Imperial College Healthcare NHS Trust,25/08/2016,Ext Contract - Patient Travel,Nursing Directorate,Dhl Supply Chain  (Former Excel),3419742,"53,204.11",Optional requirement only
Department of Health,Imperial College Healthcare NHS Trust,25/08/2016,Ext Contr Catering,Nursing Directorate,Sodexo Limited,3419704,"41,482.15",Optional requirement only
Department of Health,Imperial College Healthcare NHS Trust,25/08/2016,Ext Contr Domestics,Div Of Med & Integrated Care,Sodexo Limited,3419704,"31,325.84",Optional requirement only
Department of Health,Imperial College Healthcare NHS Trust,25/08/2016,Ext Contr Hotel Srvcs - Pp,Private Patients Directorate,Sodexo Limited,3420350,"25,678.82",Optional requirement only
Department of Health,Imperial College Healthcare NHS Trust,25/08/2016,Ext Contr Laundry,Nursing Directorate,Synergy Health Managed Services Ltd,3416032,"48,138.59",Optional requirement only
Department of Health,Imperial College Healthcare NHS Trust,25/08/2016,Ext Contr Laundry,Nursing Directorate,Synergy Health Managed Services Ltd,3416033,"45,781.43",Optional requirement only
Department of Health,Imperial College Healthcare NHS Trust,25/08/2016,Ext Contr Laundry,Nursing Directorate,Synergy Health Managed Services Ltd,3416034,"44,087.32",Optional requirement only
Department of Health,Imperial College Healthcare NHS Trust,25/08/2016,Isotopes,Div Of Women & Clin Support,Mallinckrodt Rp Uk Ltd,3401250,"30,000.00",Optional requirement only
Department of Health,Imperial College Healthcare NHS Trust,25/08/2016,Items Pending Investigation,Ichnt Balance Sheet,Synergy Health Managed Services Ltd,3416900,"41,005.07",Optional requirement only
Department of Health,Imperial College Healthcare NHS Trust,25/08/2016,Jac - Stock,Stock,Aah Pharmaceuticals Limited,3420829,"35,198.74",Optional requirement only
Department of Health,Imperial College Healthcare NHS Trust,25/08/2016,Jac - Stock,Stock,Aah Pharmaceuticals Limited,3421638,"31,110.77",Optional requirement only
Department of Health,Imperial College Healthcare NHS Trust,25/08/2016,Jac - Stock,Stock,Healthcare At Home Ltd,3421141,"40,680.00",Optional requirement only
Department of Health,Imperial College Healthcare NHS Trust,25/08/2016,Jac - Stock,Stock,Qualasept Ltd,3418255,"67,748.87",Optional requirement only
Department of Health,Imperial College Healthcare NHS Trust,25/08/2016,Jac - Stock,Stock,Qualasept Ltd,3418257,"102,025.44",Optional requirement only
Department of Health,Imperial College Healthcare NHS Trust,25/08/2016,Jac - Stock,Stock,Qualasept Ltd,3420595,"134,244.00",Optional requirement only
Department of Health,Imperial College Healthcare NHS Trust,25/08/2016,Laboratory Chemicals/ Reagents,Pathology,Sysmex Uk Ltd,3413390,"101,627.10",Optional requirement only
Department of Health,Imperial College Healthcare NHS Trust,25/08/2016,Laboratory Chemicals/ Reagents,Pathology,Sysmex Uk Ltd,3422987,"47,602.20",Optional requirement only
Department of Health,Imperial College Healthcare NHS Trust,25/08/2016,Med & Surg Maint Contract,"Div Of Surg, Cardiov & Cancer",Nhs Supply Chain,3416902,"60,875.14",Optional requirement only
Department of Health,Imperial College Healthcare NHS Trust,25/08/2016,Med & Surg Maint Contract,Div Of Women & Clin Support,Nhs Supply Chain,3416902,"44,522.70",Optional requirement only
Department of Health,Imperial College Healthcare NHS Trust,25/08/2016,Other Gen Supplies & Srv,Information & Comms Technology,Crown Records Management,3422607,"40,024.40",Optional requirement only
Department of Health,Imperial College Healthcare NHS Trust,25/08/2016,Patients Appl: Purchase,"Div Of Surg, Cardiov & Cancer",Chas A Blatchford And Sons Ltd,3410338,"43,371.92",Optional requirement only
Department of Health,Imperial College Healthcare NHS Trust,25/08/2016,Prostheses,"Div Of Surg, Cardiov & Cancer",Chas A Blatchford And Sons Ltd,3410320,"54,787.80",Optional requirement only
Department of Health,Imperial College Healthcare NHS Trust,25/08/2016,Taxi & Other Vehicle Hire,Nursing Directorate,Dhl Supply Chain  (Former Excel),3419745,"66,817.18",Optional requirement only
Department of Health,Imperial College Healthcare NHS Trust,25/08/2016,Transcription Services,Div Of Med & Integrated Care,Dictate It Ltd,3413743,"31,599.98",Optional requirement only
Department of Health,Imperial College Healthcare NHS Trust,25/08/2016,Transcription Services,"Div Of Surg, Cardiov & Cancer",Dictate It Ltd,3413745,"36,085.36",Optional requirement only
Department of Health,Imperial College Healthcare NHS Trust,30/08/2016,Cnst Contributions,Other Hq Departments,Nhs Litigation Authority,3419714,"2,757,489.00",Optional requirement only
Department of Health,Imperial College Healthcare NHS Trust,30/08/2016,Ext Contract - Patient Travel,Div Of Med & Integrated Care,Dhl Supply Chain  (Former Excel),3423652,"772,522.91",Optional requirement only
Department of Health,Imperial College Healthcare NHS Trust,30/08/2016,Ext Contract - Patient Travel,"Div Of Surg, Cardiov & Cancer",Dhl Supply Chain  (Former Excel),3423652,"242,995.00",Optional requirement only
Department of Health,Imperial College Healthcare NHS Trust,30/08/2016,Ext Contract - Patient Travel,Finance Directorate,Dhl Supply Chain  (Former Excel),3423652,"39,265.19",Optional requirement only
Department of Health,Imperial College Healthcare NHS Trust,30/08/2016,Ext Contract - Patient Travel,Nursing Directorate,Dhl Supply Chain  (Former Excel),3420309,"43,408.07",Optional requirement only
Department of Health,Imperial College Healthcare NHS Trust,30/08/2016,Insurance Costs,Office Of Chief Executive,Nhs Litigation Authority,3419715,"45,941.00",Optional requirement only
Department of Health,Imperial College Healthcare NHS Trust,30/08/2016,Laboratory Culture Media,Pathology,Dhl Supply Chain  (Former Excel),3418219,"37,044.00",Optional requirement only
Department of Health,Imperial College Healthcare NHS Trust,30/08/2016,Other Transport Costs,Pathology,Dhl Supply Chain  (Former Excel),3422941,"78,951.28",Optional requirement only
Department of Health,Imperial College Healthcare NHS Trust,30/08/2016,Rates,Nursing Directorate,London Borough Hammersmith & Fulham,3419717,"158,719.00",Optional requirement only
Department of Health,Imperial College Healthcare NHS Trust,30/08/2016,Rates,Nursing Directorate,London Borough Hammersmith & Fulham,3419718,"139,073.00",Optional requirement only
Department of Health,Imperial College Healthcare NHS Trust,30/08/2016,Supplies Issues Recharges,Stock,Nhs Supply Chain,3424821,"85,386.17",Optional requirement only
Department of Health,Imperial College Healthcare NHS Trust,30/08/2016,Supplies Issues Recharges,Stock,Nhs Supply Chain,3424837,"93,387.15",Optional requirement only
Department of Health,Imperial College Healthcare NHS Trust,30/08/2016,Taxi & Other Vehicle Hire,Nursing Directorate,Dhl Supply Chain  (Former Excel),3420312,"66,266.58",Optional requirement only
Department of Health,Imperial College Healthcare NHS Trust,01/09/2016,Agency Nursing: Qualified,Div Of Med & Integrated Care,Reed,3426865,"95,421.93",Optional requirement only
Department of Health,Imperial College Healthcare NHS Trust,01/09/2016,Agency Nursing: Qualified,"Div Of Surg, Cardiov & Cancer",Reed,3426865,"89,207.32",Optional requirement only
Department of Health,Imperial College Healthcare NHS Trust,01/09/2016,Agency Nursing: Qualified,Div Of Women & Clin Support,Reed,3426865,"58,169.66",Optional requirement only
Department of Health,Imperial College Healthcare NHS Trust,01/09/2016,Agency Scient & Prof Qualified,Div Of Women & Clin Support,Reed,3426900,"30,723.96",Optional requirement only
Department of Health,Imperial College Healthcare NHS Trust,01/09/2016,Agency Scient & Prof Qualified,Div Of Women & Clin Support,Reed,3426901,"31,318.32",Optional requirement only
Department of Health,Imperial College Healthcare NHS Trust,01/09/2016,Agency Scient & Prof Qualified,Pathology,Reed,3426900,"33,074.88",Optional requirement only
Department of Health,Imperial College Healthcare NHS Trust,01/09/2016,Agency Scient & Prof Qualified,Pathology,Reed,3426901,"33,713.26",Optional requirement only
Department of Health,Imperial College Healthcare NHS Trust,01/09/2016,Buildings-Add(Prof Fee)-Purch,Capital Summary,Aecom,3412042,"102,772.50",Optional requirement only
Department of Health,Imperial College Healthcare NHS Trust,01/09/2016,Buildings-Add(Prof Fee)-Purch,Capital Summary,Alarm Communication Limited,3426909,"33,360.00",Optional requirement only
Department of Health,Imperial College Healthcare NHS Trust,01/09/2016,Computer Software/License,Finance Directorate,Bellis-Jones Hill,3424851,"39,039.60",Optional requirement only
Department of Health,Imperial College Healthcare NHS Trust,01/09/2016,Consultancy Fees,Finance Directorate,Salford Royal Nhs Foundation Trust,3405887,"31,173.00",Optional requirement only
Department of Health,Imperial College Healthcare NHS Trust,01/09/2016,Contr Other External,Finance Directorate,Imperial Innovations Limited,3424193,"48,000.00",Optional requirement only
Department of Health,Imperial College Healthcare NHS Trust,01/09/2016,Dialysers,Div Of Med & Integrated Care,Baxter Healthcare Ltd,3426574,"75,981.30",Optional requirement only
Department of Health,Imperial College Healthcare NHS Trust,01/09/2016,Gas,Nursing Directorate,Corona Energy,3417278,"47,301.04",Optional requirement only
Department of Health,Imperial College Healthcare NHS Trust,01/09/2016,Gas,Nursing Directorate,Corona Energy,3417281,"57,607.15",Optional requirement only
Department of Health,Imperial College Healthcare NHS Trust,01/09/2016,Gas,Nursing Directorate,Corona Energy,3417290,"40,290.31",Optional requirement only
Department of Health,Imperial College Healthcare NHS Trust,01/09/2016,Jac - Stock,Stock,Aah Pharmaceuticals Limited,3424314,"36,792.73",Optional requirement only
Department of Health,Imperial College Healthcare NHS Trust,01/09/2016,Jac - Stock,Stock,Bayer Plc,3425305,"88,099.20",Optional requirement only
Department of Health,Imperial College Healthcare NHS Trust,01/09/2016,Jac - Stock,Stock,Genzyme Therapeutics Ltd,3425363,"169,080.00",Optional requirement only
Department of Health,Imperial College Healthcare NHS Trust,01/09/2016,Jac - Stock,Stock,Genzyme Therapeutics Ltd,3425364,"194,442.00",Optional requirement only
Department of Health,Imperial College Healthcare NHS Trust,01/09/2016,Jac - Stock,Stock,Novartis Pharmaceutical (Uk) Ltd,3422251,"58,232.16",Optional requirement only
Department of Health,Imperial College Healthcare NHS Trust,01/09/2016,Med & Surg Equip General,"Div Of Surg, Cardiov & Cancer",Triple Point Lease Partners,3412761,"44,584.44",Optional requirement only
Department of Health,Imperial College Healthcare NHS Trust,01/09/2016,Med & Surg Equip General,"Div Of Surg, Cardiov & Cancer",Vanguard Healthcare Solutions Ltd,3424885,"91,190.10",Optional requirement only
Department of Health,Imperial College Healthcare NHS Trust,01/09/2016,Med & Surg Equip General,"Div Of Surg, Cardiov & Cancer",Vanguard Healthcare Solutions Ltd,3426489,"83,894.89",Optional requirement only
Department of Health,Imperial College Healthcare NHS Trust,01/09/2016,Other Research Exp - Pay,Rd Surgery & Cancer Division,Imperial College London,3424828,"25,275.03",Optional requirement only
Department of Health,Imperial College Healthcare NHS Trust,01/09/2016,Other Research Exp - Pay,Rd Surgery & Cancer Division,Imperial College London,3424836,"29,035.15",Optional requirement only
Department of Health,Imperial College Healthcare NHS Trust,01/09/2016,Other Research Exp - Pay,Rdwomen And Children Division,Imperial College London,3424824,"48,213.73",Optional requirement only
Department of Health,Imperial College Healthcare NHS Trust,01/09/2016,Services Received - Nhsts,Div Of Med & Integrated Care,West London Mental Health Nhs Trust,3413224,"49,054.00",Optional requirement only
Department of Health,Imperial College Healthcare NHS Trust,01/09/2016,Staff Recruitment Costs,"Div Of Surg, Cardiov & Cancer",Vanguard Healthcare Solutions Ltd,3424885,"41,850.00",Optional requirement only
Department of Health,Imperial College Healthcare NHS Trust,01/09/2016,Staff Recruitment Costs,"Div Of Surg, Cardiov & Cancer",Vanguard Healthcare Solutions Ltd,3426489,"36,828.00",Optional requirement only
Department of Health,Imperial College Healthcare NHS Trust,06/09/2016,Acton Housing Association,Housing Deductions,A2dominion Housing Group Ltd,3429325,"181,573.03",Optional requirement only
Department of Health,Imperial College Healthcare NHS Trust,06/09/2016,Blood Products,Pathology,Nhs Blood And Transplant,3428604,"146,430.08",Optional requirement only
Department of Health,Imperial College Healthcare NHS Trust,06/09/2016,Blood Products,Pathology,Nhs Blood And Transplant,3428605,"146,430.08",Optional requirement only
Department of Health,Imperial College Healthcare NHS Trust,06/09/2016,Buildings-Additions-Purchased,Capital Summary,Logan Construction (Se) Ltd,3428602,"138,756.00",Optional requirement only
Department of Health,Imperial College Healthcare NHS Trust,06/09/2016,Buildings-Additions-Purchased,Capital Summary,Princebuild Limited,3428632,"96,747.22",Optional requirement only
Department of Health,Imperial College Healthcare NHS Trust,06/09/2016,Clinical Managed Service Contr,Pathology,Abbott Laboratories Ltd,3428842,"46,253.09",Optional requirement only
Department of Health,Imperial College Healthcare NHS Trust,06/09/2016,Clinical Managed Service Contr,Pathology,Abbott Laboratories Ltd,3428843,"158,049.86",Optional requirement only
Department of Health,Imperial College Healthcare NHS Trust,06/09/2016,Clinical Managed Service Contr,Pathology,Abbott Laboratories Ltd,3428847,"373,172.84",Optional requirement only
Department of Health,Imperial College Healthcare NHS Trust,06/09/2016,Clinical Managed Service Contr,Pathology,Abbott Laboratories Ltd,3428919,"42,833.55",Optional requirement only
Department of Health,Imperial College Healthcare NHS Trust,06/09/2016,Decontamination Services,Nursing Directorate,Berendsen Uk,3428917,"325,014.85",Optional requirement only
Department of Health,Imperial College Healthcare NHS Trust,06/09/2016,Engineering Contracts,Nursing Directorate,Siemens Financial Services Ltd,3429162,"53,058.98",Optional requirement only
Department of Health,Imperial College Healthcare NHS Trust,06/09/2016,Equip Maint Contracts,Pathology,Waters Limited,3422960,"65,067.85",Optional requirement only
